Workbook

Sheet 壁量計算（2F）
I2: 壁量等手計算支援ツール（大連協版） | AB2: 更新日： | AC2: 2025-12-08
AB3: version： | AC3: 1
Y4: （大阪府内建築行政連絡協議会）
B6: このツールの計算内容及び計算結果については、設計者として問題ないことを確認しており、自己の責任において使用することに同意します。
J9: 建築士番号 | V9: 設計者氏名
B12: 1.基本条件の入力
B14: Input➀基本条件 | O14: 【セル着色の凡例】 | AI14: 荷重リスト
B15: 項目 | I15: 入力欄 | L15: 単位 | R15: ： | S15: 入力必須の項目 | Y15: ： | Z15: 案件ごとに適宜入力する項目 | AI15: 分類 | AJ15: No | AK15: 仕様名
B16: 2階外壁のX方向長さ(合計) | H16: LX2 | I16: 20 | L16: (ｍ) | AI16: 屋根 | AJ16: 1 | AK16: =IFERROR(VLOOKUP(AJ16,荷重リスト,2,FALSE),"") -> 【標準】 瓦屋根（ふき土無）
B17: 2階外壁のY方向長さ(合計) | H17: LY2 | I17: 20 | L17: (ｍ) | R17: ： | S17: 空白となっているセルは赤く着色されます。 数字（0を含む）の入力又はリストの選択を行ってください。 | AJ17: 2 | AK17: 【標準】 スレート屋根
B18: 1階外壁のX方向長さ(合計) | H18: LX1 | I18: 20 | L18: (ｍ) | AJ18: 3 | AK18: 【標準】 金属板ぶき
B19: 1階外壁のY方向長さ(合計) | H19: LY1 | I19: 20 | L19: (ｍ) | AJ19: 4 | AK19: 【45分準耐】 瓦屋根（ふき土無）
B20: 最高高さ | E20: ― | F20: 軒高さ | H20: h3 | I20: 1.5 | L20: (ｍ) | AJ20: 5 | AK20: 【45分準耐】 スレート屋根
B21: 軒高さ | E21: ― | F21: 2階梁天 | H21: h2 | I21: 3 | L21: (ｍ) | AJ21: 6 | AK21: 【45分準耐】 金属板ぶき
B22: 2階梁天 | E22: ― | F22: 土台天 | H22: h1 | I22: 3 | L22: (ｍ) | AJ22: 7 | AK22: 【任意仕様1】
B23: 土台天 | E23: ― | F23: 地盤面 | H23: h0 | I23: 0.5 | L23: (ｍ) | AJ23: - | AK23: 【荷重の直接入力】
B24: 2階床面積(重量算定用) | H24: AfW2 | I24: 100 | L24: (㎡) | N24: ← | O24: 床面積に算入されないﾎﾟｰﾁ・ｲﾝﾅｰﾊﾞﾙｺﾆｰ、吹抜け等も含めた見上げ面積を入力してください。 | AI24: 床 | AJ24: 11 | AK24: 【標準】 居室 （板張り）
B25: 1階床面積(重量算定用) | H25: AfW1 | I25: 100 | L25: (㎡) | AJ25: 12 | AK25: 【標準】 居室 （板張り+畳敷き）
B26: 2階床面積(壁量算定用) | H26: Af2 | I26: 100 | L26: (㎡) | N26: ← | O26: 告示で定義されている床面積で、床面積に補正した小屋裏面積を加算したものを入力してください。 | AJ26: 13 | AK26: 【標準】 居室 （畳敷き）
B27: 1階床面積(壁量算定用) | H27: Af1 | I27: 100 | L27: (㎡) | AJ27: 14 | AK27: 【45分準耐】 居室（板張り）
B28: 軒の出 | H28: Lr | I28: 0.5 | L28: (ｍ) | N28: ← | O28: 外壁芯からの出の長さを入力してください。(外壁長さ×軒の出を軒面積として考慮。) | AJ28: 15 | AK28: 【任意仕様2】
B29: ="屋根勾配（"&ROUND(ATAN(I29/10)*180/PI(),1)& " °）" -> 屋根勾配（0 °） | H29: ⊿ | I29: 0 | L29: (寸) | N29: ← | O29: 屋根重量の勾配補正に使用。複数ある場合は、一番大きい勾配を入力。（推奨） | AJ29: - | AK29: 【荷重の直接入力】
B30: 開口比率 | H30: η | I30: 0.09 | L30: (－) | N30: ← | O30: 外壁面積（軒下）に対する開口部面積の割合を入力してください。（η>0.09とする場合は、根拠資料を添付してください。） | AI30: 外壁 | AJ30: 31 | AK30: =IFERROR(VLOOKUP(AJ30,荷重リスト,2,FALSE),"") -> 【標準】 土塗り壁等
B31: 標準せん断力係数 | H31: C0 | I31: 0.2 | L31: (－) | AJ31: 32 | AK31: 【標準】 モルタル等
AJ32: 33 | AK32: 【標準】 窯業系サイディング
B33: Input②荷重入力 | AJ33: 34 | AK33: 【標準】 金属板張
B34: 項目 | I34: 単位荷重 | L34: 単位 | N34: 仕様名 | V34: 直接入力 | AJ34: 35 | AK34: 【標準】 下見板張
B35: 屋根重量 | H35: ω1 | I35: =IF($N35="【荷重の直接入力】",$V35,VLOOKUP($N35,荷重数値_屋根,6,FALSE)) -> 800 | L35: (N/㎡) | N35: 【標準】 スレート屋根 | V35: 1 | AJ35: 36 | AK35: 【45分準耐】 窯業系サイディング
B36: 2階床重量 | H36: ω2 | I36: =IF($N36="【荷重の直接入力】",$V36,VLOOKUP($N36,荷重数値_床,6,FALSE)) -> 650 | L36: (N/㎡) | N36: 【標準】 居室 （畳敷き） | V36: 500 | AJ36: 37 | AK36: 【45分準耐】 金属板張
B37: 外壁重量 | H37: ω3 | I37: =IF($N37="【荷重の直接入力】",$V37,VLOOKUP($N37,荷重数値_外壁,6,FALSE)) -> 650 | L37: (N/㎡) | N37: 【標準】 窯業系サイディング | V37: 650 | AJ37: 38 | AK37: 【任意仕様6】
B38: 屋根断熱材 | H38: ω4 | I38: 100 | L38: (N/㎡) | N38: ← | O38: ﾃﾞﾌｫﾙﾄではGW24K 400㎜を想定し100N/㎡としています。 | AJ38: - | AK38: 【荷重の直接入力】
B39: 外壁断熱材 | H39: ω5 | I39: 70 | L39: (N/㎡) | N39: ← | O39: ﾃﾞﾌｫﾙﾄではGW24K 170㎜ + 胴縁を想定し70N/㎡としています。
B40: 開口部 | H40: ω6 | I40: 400 | L40: (N/㎡) | N40: ← | O40: ﾃﾞﾌｫﾙﾄではﾄﾘﾌﾟﾙｶﾞﾗｽ（400N/㎡）を想定。荷重表を参考に入力してください。
B41: 太陽光発電設備等 | H41: ω7 | I41: （機器重量の合計） | N41: ← | O41: 機器重量の合計又は単位面積当たりの重量（屋根全面に適用）を選択してください。
I42: 0 | L42: =IF(I41="（面積当たりの荷重）","(N/㎡)","(kg)") -> (kg) | O42: ﾃﾞﾌｫﾙﾄでは両面石膏ﾎﾞｰﾄﾞで天井高さ2.7m程度を想定して350N/㎡としています。実情に応じて適宜調整してください。
B43: 内壁(床面積当たり) | H43: ω8 | I43: 350 | L43: (N/㎡) | N43: ←
B45: 積載荷重（LL） | S45: 積載荷重（直接入力） | AI45: 積載荷重
B46: 部位 | E46: 用途 | H46: 床用 | K46: 柱・梁用 | N46: 地震用 | S46: 追加用途名 | V46: 床用 | Y46: 柱・梁用 | AB46: 地震用 | AJ46: 床用 | AK46: 柱・梁用 | AL46: 地震用
B47: 2階床 | E47: 住宅 | H47: =VLOOKUP($E47,$AI$47:$AL$49,2,FALSE) -> 1800 | K47: =VLOOKUP($E47,$AI$47:$AL$49,3,FALSE) -> 1300 | N47: =VLOOKUP($E47,$AI$47:$AL$49,4,FALSE) -> 600 | S47: 店舗 | V47: 2900 | Y47: 2400 | AB47: 1300 | AI47: 住宅 | AJ47: 1800 | AK47: 1300 | AL47: 600
AI48: 事務所 | AJ48: 2900 | AK48: 1800 | AL48: 800
AI49: 直接入力 | AJ49: =V47 -> 2900 | AK49: =Y47 -> 2400 | AL49: =AB47 -> 1300
B50: Input③その他の荷重入力 （※壁量計算用）
B51: 項目 | I51: 入力欄 | L51: 単位 | N51: 面積 | Q51: 単位
B52: 軒上外壁面積 | H52: AO | I52: 面積の直接入力 | N52: 0 | Q52: (㎡)
B53: 2階床の吹抜け面積 | H53: AH | N53: 0 | Q53: (㎡)
B54: 2階バルコニー | G54: ω11,A11 | I54: 700 | L54: (N/㎡) | N54: 0 | Q54: (㎡)
B55: 2～R階間の小屋裏物置 | G55: ω12,A12 | I55: 300 | L55: (N/㎡) | N55: 0 | Q55: (㎡)
B56: 1～2階間の小屋裏物置 | G56: ω13,A13 | I56: 300 | L56: (N/㎡) | N56: 0 | Q56: (㎡)
B57: 2階浴室（浴槽の有無） | H57: ω14 | I57: 無し | L57: (－) | N57: =IF(I57="有り","（水の重量2kNを考慮）","") ->  | AI57: 2階浴室 | AJ57: =IF(I57="有り",2,0) -> 0
B59: 項目 | I59: 入力欄 | L59: 単位 | N59: 面積 | Q59: 単位 | S59: 備考（追加荷重の種類・根拠等を記載）
B60: R階屋根の追加等分布荷重 | G60: ω15,A15 | I60: 0 | L60: (N/㎡) | N60: 0 | Q60: (㎡)
B61: 2階床の追加等分布荷重 | G61: ω16,A16 | I61: 0 | L61: (N/㎡) | N61: 0 | Q61: (㎡)
B62: 2F上部への追加集中荷重 | H62: ω17 | I62: 0 | L62: (kN)
B63: 2F下部-1F上部への追加集中荷重 | H63: ω18 | I63: 0 | L63: (kN)
B66: 1）各階で最大の床面積 { Amax = max(AfW1, AfW2) } | S66: 2）１階下屋の床面積 { Ay = max(AfW1-AfW2 , 0) }
C67: Amax | D67: = | E67: =DispFormula(K67) -> MAX(100.00 ,100.00 ) | J67: = | K67: =MAX(I24,I25) -> 100 | M67: (m2) | T67: Ay | U67: = | V67: =DispFormula(AC67) -> MAX(100.00 -100.00 ,0) | AB67: = | AC67: =MAX(I25-I24,0) -> 0 | AE67: (㎡)
B69: 3）地震力算定用の建物高さ { H = h3/2+h2+h1+h0 } | S69: 4）勾配を考慮した補正係数 { β1 = √(⊿2+102)/10 } | AI69: 建物高さ | AJ69: 勾配係数
C70: H | D70: = | E70: =DispFormula(AI70) -> 1.500 /2+3.000 +3.000 +0.500 | M70: = | N70: =ROUNDUP(AI70,2) -> 7.25 | P70: (m) | T70: β1 | U70: = | V70: =DispFormula(AJ70) -> √(0.0 ^2+10^2)/10 | AB70: = | AC70: =ROUNDUP(AJ70,3) -> 1 | AI70: =I20/2+I21+I22+I23 -> 7.25 | AJ70: =SQRT(I29^2+10^2)/10 -> 1
B72: 5）軒を考慮した補正係数 〔 β2 = {(LX2+LY2+4*Lr)*Lr+AfW2}/AfW2 〕 | AI72: 軒係数 | AJ72: 2階X方向 | AK72: 2階Y方向 | AL72: 軒の出 | AM72: 2階面積
C73: β2 | D73: = | E73: =DispFormula(AI73) -> ((20.00 +20.00 +4*0.50 )*0.50 +100.00 )/100.00 | P73: = | Q73: =ROUNDUP(AI73,3) -> 1.21 | AI73: =((AJ73+AK73+4*AL73)*AL73+AM73)/AM73 -> 1.21 | AJ73: =$I$16 -> 20 | AK73: =$I$17 -> 20 | AL73: =$I$28 -> 0.5 | AM73: =$I$24 -> 100
B75: 6）勾配（β1）・軒（β2）・太陽光発電設備を考慮した補正荷重 | AI75: 屋根重量 | AJ75: 太陽光発電設備 | AL75: 屋根断熱
C76: 補正屋根重量： | G76: ω"1 | H76: = | I76: ω1*β1*β2 | M76: = | N76: =DispFormula(AI77) -> 800 *1.000*1.210 | S76: = | T76: =ROUNDUP(AI77,0) -> 968 | V76: (N/㎡) | AJ76: 面積当たり | AK76: 機器重量
C77: 補正断熱重量： | G77: ω"4 | H77: = | I77: ω4*β1 | M77: = | N77: =DispFormula(AL77) -> 100 *1.000 | S77: = | T77: =ROUNDUP(AL77,0) -> 100 | V77: (N/㎡) | AI77: =$I$35*$AC70*$Q$73 -> 968 | AJ77: =$I$42*$AC$70*$Q$73 -> 0 | AK77: =$I$42*9.8/$K$67 -> 0 | AL77: =$I$38*$AC$70 -> 100
B78: 補正太陽光設備： | G78: ω"7 | H78: = | I78: =IF(I41="（面積当たりの荷重）",AJ78,AK78) -> ω7*9.8/Amax | M78: = | N78: =IF($T$78=0,"【該当無し】",IF($I$41="（面積当たりの荷重）",DispFormula($AJ$77),DispFormula($AK$77))) -> 【該当無し】 | S78: = | T78: =ROUNDUP(IF(I41="（面積当たりの荷重）",AJ77,AK77),0) -> 0 | V78: (N/㎡) | AJ78: ω7*β1*β2 | AK78: ω7*9.8/Amax
B80: 7）開口部を考慮した補正外壁重量 | AI80: 外壁重量
C81: 外壁+断熱材： | G81: ωO1 | H81: = | I81: ω3+ω5 | N81: = | O81: =DispFormula(AI81) -> 650 +70 | V81: = | W81: =ROUNDUP(AI81,0) -> 720 | Y81: (N/m2) | AI81: =$I$37+$I$39 -> 720
F82: 補正外壁重量： | G82: ωO2 | H82: = | I82: ωO1*(1-η)+ω6*η | N82: = | O82: =DispFormula(AI82) -> 720 *(1-0.09 )+400 *0.09 | V82: = | W82: =ROUNDUP(AI82,0) -> 692 | Y82: (N/m2) | AI82: =$W$81*(1-$I$30)+$I$40*$I$30 -> 691.2
AM83: （参考）
B84: 8）軒上外壁面積の計算 | AI84: 片流れ | AJ84: 直接入力 | AM84: 切妻（X） | AN84: 切妻（Y）
C85: 軒上外壁面積： | G85: Ao | H85: = | I85: =IF($I$52="自動計算",$AI$86,IF($I$52="面積の直接入力",$AJ$86,"")) -> 【直接入力】 | N85: = | O85: =IF($I$52="自動計算",DispFormula($AI$85),"") ->  | V85: = | W85: =ROUNDUP(IF($I$52="自動計算",$AI$85,IF($I$52="面積の直接入力",$AJ$85,0)),2) -> 0 | Y85: (N/m2) | AI85: =($I$16+$I$17)*$I$20/2 -> 30 | AJ85: =N52 -> 0 | AM85: =$I$16*$I$20/2 -> 15 | AN85: =$I$17*$I$20/2 -> 15
AI86: (LX2+LY2)*h3/2 | AJ86: 【直接入力】 | AM86: LX2*h3/2 | AN86: LY2*h3/2
B87: 2.壁量の算定
B88: 1）外壁荷重 | AI88: 外壁荷重
C89: 2階 | D89: 外壁荷重（軒上） | H89: W2-1 | J89: = | K89: ωO1*AO/1000 | Q89: = | R89: =IF($AI89=0,"【該当無し】",DispFormula($AI89)) -> 【該当無し】 | AB89: = | AC89: =ROUNDUP(AI89,2) -> 0 | AE89: (kN) | AI89: =$W$81*$W$85/1000 -> 0 | AJ89: X方向の壁長 | AK89: Y方向の壁長 | AL89: 階高
C90: 2階 | D90: 外壁荷重（軒下） | H90: W2-2 | J90: = | K90: ωO2*h2*(LX2+LY2)/1000 | Q90: = | R90: =IF($AI90=0,"",DispFormula($AI90)) -> 692 *3.000 *(20.000 +20.000 )/1000 | AB90: = | AC90: =ROUNDUP(AI90,2) -> 83.04 | AE90: (kN) | AI90: =$W$82*$AL90*(AJ90+AK90)/1000 -> 83.04 | AJ90: =$I$16 -> 20 | AK90: =$I$17 -> 20 | AL90: =$I$21 -> 3
C91: 1階 | D91: 外壁荷重 | H91: W1-1 | J91: = | K91: ωO2*h1*(LX1+LY1)/1000 | Q91: = | R91: 692 *3.000 *(20.000 +20.000 )/1000 | AB91: = | AC91: =ROUNDUP(AI91,2) -> 83.04 | AE91: (kN) | AI91: =$W$82*$AL91*(AJ91+AK91)/1000 -> 83.04 | AJ91: =$I$18 -> 20 | AK91: =$I$19 -> 20 | AL91: =$I$22 -> 3
B93: 2）当該階が支えている部分の固定荷重（外壁・内壁） | AI93: 壁荷重
C94: 2階 | D94: 壁荷重（軒下） | H94: W2-3 | J94: = | K94: W2-2+ω8*(AfW2-AH)/1000 | Q94: = | R94: =IF($AI94=0,"",DispFormula($AI94)) -> 83.04+350 *(100.00 -0.00 )/1000 | AB94: = | AC94: =ROUNDUP(AI94,2) -> 118.04 | AE94: (kN) | AI94: =AC90+$I$43*($I$24-$N$53)/1000 -> 118.04
C95: 1階 | D95: 壁荷重 | H95: W1-2 | J95: = | K95: W1-1+ω8*(AfW1-AH)/1000 | Q95: = | R95: 83.04+350 *(100.00 -0.00 )/1000 | AB95: = | AC95: =ROUNDUP(AI95,2) -> 118.04 | AE95: (kN) | AI95: =AC91+$I$43*($I$25-$N$53)/1000 -> 118.04
B97: 3）当該階が支えている部分の固定荷重と積載荷重の和（屋根、床） | AC97: 柱梁用のLL | AI97: 屋根・床 | AJ97: 柱梁用のLL
C98: 各階 | D98: 屋根荷重 | H98: W2-4 | J98: = | K98: ω"1+ω"4+ω"7 | Q98: = | R98: =IF($AI98=0,"",DispFormula($AI98)) -> 968 +100 +0 | X98: = | Y98: =ROUNDUP(AI98,0) -> 1068 | AA98: (N/m2) | AC98: （ | AD98: =ROUNDUP(AJ98,0) -> 1068 | AF98: ） | AI98: =$T$76+$T$77+$T$78 -> 1068 | AJ98: =$T$76+$T$77+$T$78 -> 1068
C99: 2階 | D99: 床荷重 | H99: W2-5 | J99: = | K99: ω2+LL | Q99: = | R99: =IF($AI99=0,"",DispFormula($AI99)) -> 650 +600 | X99: = | Y99: =ROUNDUP(AI99,0) -> 1250 | AA99: (N/m2) | AC99: （ | AD99: =ROUNDUP(AJ99,0) -> 1950 | AF99: ） | AI99: =$I$36+$N$47 -> 1250 | AJ99: =$I$36+$K$47 -> 1950
B101: 4）追加荷重 | AI101: 地震用 | AJ101: 確認用
C102: 2-R階 | D102: 小屋裏荷重 | H102: W" 2-11 | J102: = | K102: {ω12+LL(住宅)*2/3}*A12/1000 | S102: = | T102: =IF($AJ102=0,"【該当無し】",DispFormula($AI102)) -> 【該当無し】 | AB102: = | AC102: =IF($AJ102=0,0,ROUNDUP($AI102,2)) -> 0 | AE102: (kN) | AI102: =($I$55+$AL$47*2/3)*$N$55/1000 -> 0 | AJ102: =$I$55*$N$55/1000 -> 0
C103: R階 | D103: 追加等分布荷重 | H103: W" 2-12 | J103: = | K103: ω15*A15/1000 | S103: = | T103: =IF($AI103=0,"【該当無し】",DispFormula($AI103)) -> 【該当無し】 | AB103: = | AC103: =ROUNDUP(AI103,2) -> 0 | AE103: (kN) | AI103: =$I$60*$N$60/1000 -> 0
C104: 2階 | D104: 追加荷重合計 | H104: ΣW" 2 | J104: = | K104: W"2-11+W"2-12+ω17 | S104: = | T104: =IF($AI104=0,"【該当無し】",DispFormula($AI104)) -> 【該当無し】 | AB104: = | AC104: =ROUNDUP(AI104,2) -> 0 | AE104: (kN) | AI104: =$AC$102+$AC$103+$I$62 -> 0
C106: 2階 | D106: バルコニー | H106: W"1-11 | J106: = | K106: {ω11+LL(住宅)}*A11/1000 | S106: = | T106: =IF($AJ106=0,"【該当無し】",DispFormula($AI106)) -> 【該当無し】 | AB106: = | AC106: =IF($AJ106=0,0,ROUNDUP($AI106,2)) -> 0 | AE106: (kN) | AI106: =($I$54+$AL$47)*$N$54/1000 -> 0 | AJ106: =$I$54*$N$54/1000 -> 0
C107: 1-2階 | D107: 小屋裏荷重 | H107: W" 1-12 | J107: = | K107: {ω13+LL(住宅)*2/3}*A13/1000 | S107: = | T107: =IF($AJ107=0,"【該当無し】",DispFormula($AI107)) -> 【該当無し】 | AB107: = | AC107: 0 | AE107: (kN) | AI107: =($I$56+$AL$47*2/3)*$N$56/1000 -> 0 | AJ107: =$I$56*$N$56/1000 -> 0
C108: 2階 | D108: 追加等分布荷重 | H108: W"1-13 | J108: = | K108: ω16*A16/1000 | S108: = | T108: =IF($AI108=0,"【該当無し】",DispFormula($AI108)) -> 【該当無し】 | AB108: = | AC108: =ROUNDUP(AI108,2) -> 0 | AE108: (kN) | AI108: =$I$61*$N$61/1000 -> 0
C109: 1階 | D109: 追加荷重合計 | H109: ΣW" 1 | J109: = | K109: W"1-11+W"1-12+W"1-13+ω14+ω18 | S109: = | T109: =IF($AI109=0,"【該当無し】",DispFormula($AI109)) -> 【該当無し】 | AB109: = | AC109: =ROUNDUP(AI109,2) -> 0 | AE109: (kN) | AI109: =$AC$106+$AC$107+$AC$108+$AJ$57+$I$63 -> 0
B111: 5）壁量計算用の各階重量 | AI111: 2階重量
C112: 2階 | D112: ΣW2 | F112: = | G112: W2-4*AfW2/1000+W2-1+W2-3/2+ΣW" 2 | Q112: = | R112: =IF($AI112=0,"",DispFormula($AI112)) -> 1068*100.00 /1000+0.00+118.04/2+0.00 | AB112: = | AC112: =ROUNDUP(AI112,0) -> 166 | AE112: (kN) | AI112: =Y98*I24/1000+AC89+AC94/2+AC104 -> 165.82
C114: 1階 | D114: ΣW1 | F114: = | G114: {W2-4*(AfW2+Ay)+W2-5*(AfW2-AH)}/1000+W2-1+W2-3+W1-2/2+ΣW" 2+ΣW" 1 | AI114: 1階重量
F115: = | G115: =IF($AI115=0,"",DispFormula($AI115)) -> (1068*(100.00 +0.00 )+1250*(100.00 -0.00 ))/1000+0.00+118.04+118.04/2+0.00+0.00 | AB115: = | AC115: =ROUNDUP(AI115,0) -> 409 | AE115: (kN) | AI115: =($Y$98*($I$24+$AC$67)+$Y$99*($I$24-$N$53))/1000+$AC$89+$AC$94+$AC$95/2+$AC$104+$AC$109 -> 408.86
B117: Output➀ 単位面積当たりの必要壁量Lwの算定 | AI117: α2 | AJ117: T
C118: α2 | D118: = | E118: ΣW2/ΣW1 | H118: = | I118: =IF($AI118=0,"",DispFormula($AI118)) -> 166 /409 | M118: = | N118: =ROUND(AI118,3) -> 0.406 | T118: T | U118: = | V118: 0.03*H | X118: = | Y118: =IF($AJ118=0,"",DispFormula($AJ118)) -> 0.03*7.25 | AB118: = | AC118: =ROUNDUP(AJ118,3) -> 0.218 | AI118: =AC112/AC115 -> 0.4058679707 | AJ118: =0.03*N70 -> 0.2175
C119: A2 | D119: = | E119: 1+{1/√(α2)-α2}*2*T/(1+3*T) | T119: A1 | U119: = | V119: 1 | AI119: Ai（2階）
D120: = | E120: =IF($AI120=0,"",DispFormula($AI120)) -> 1+(1/√(0.406)-0.406)*2*0.218/(1+3*0.218) | P120: = | Q120: =IFERROR(ROUNDUP(AI120,3),"") -> 1.307 | AI120: =1+(1/SQRT(N118)-N118)*2*AC118/(1+3*AC118) -> 1.306679356
D122: ΣLW | E122: = | F122: Ai*C0*ΣWi/(0.0196*Afi) | Y122: 1.25倍 | AC122: 1.50倍 | AI122: Lw
C123: 2階 | D123: LW2 | E123: = | F123: =IF($AI123=0,"",DispFormula($AI123)) -> 1.307*0.2*166 /(0.0196*100.00 ) | M123: = | N123: =IFERROR(ROUNDUP(AI123,1),"") -> 22.2 | P123: (cm/m2) | R123: → | S123: =IFERROR(ROUNDUP($N123,0),"") -> 23 | U123: (cm/m2) | X123: （ | Y123: =IFERROR(ROUNDUP(1.25*$N123,0),"") -> 28 | AA123: ） | AB123: （ | AC123: =IFERROR(ROUNDUP(1.5*$N123,0),"") -> 34 | AE123: ） | AI123: =$Q$120*$I$31*$AC$112/(0.0196*$I$26) -> 22.13897959
C124: 1階 | D124: LW1 | E124: = | F124: =IF($AI124=0,"",DispFormula($AI124)) -> 1.000*0.2*409 /(0.0196*100.00 ) | M124: = | N124: =IFERROR(ROUNDUP(AI124,1),"") -> 41.8 | P124: (cm/m2) | R124: → | S124: =IFERROR(ROUNDUP($N124,0),"") -> 42 | U124: (cm/m2) | X124: （ | Y124: =IFERROR(ROUNDUP(1.25*$N124,0),"") -> 53 | AA124: ） | AB124: （ | AC124: =IFERROR(ROUNDUP(1.5*$N124,0),"") -> 63 | AE124: ） | AI124: =$V$119*$I$31*$AC$115/(0.0196*$I$27) -> 41.73469388
B127: 3.柱の小径の算定
B129: （参考）木材の圧縮基準強度 | AI129: 検索用
B130: No | C130: JAS規格 | H130: 樹種等 | M130: 等級等 | R130: 基準強度Fc | AI130: 全体 | AJ130: 集成材用
B131: 1 | C131: 無等級材 | H131: ひのき | M131: ― | R131: =IFERROR(VLOOKUP(AI131,List_Fc,6,FALSE),"該当無し") -> 20.7 | T131: (N/m㎡) | V131: =IF(AND(C131="無等級材",NOT(M131="―")),"※等級等を「－」としてください。",IF(AND(C131="対称異等級構成集成材",NOT(H131="―")),"※樹種等を「－」としてください。","")) ->  | AI131: =IFERROR(VLOOKUP(C131&"_"&H131,List_No,3,FALSE)&M131,"") -> 22― | AJ131: =IF(C131="同一等級構成集成材",H131,"") -> 
B132: 2 | C132: 無等級材 | H132: すぎ | M132: ― | R132: =IFERROR(VLOOKUP(AI132,List_Fc,6,FALSE),"該当無し") -> 17.7 | T132: (N/m㎡) | V132: =IF(AND(C132="無等級材",NOT(M132="―")),"※等級等を「－」としてください。",IF(AND(C132="対称異等級構成集成材",NOT(H132="―")),"※樹種等を「－」としてください。","")) ->  | AI132: =IFERROR(VLOOKUP(C132&"_"&H132,List_No,3,FALSE)&M132,"") -> 24― | AJ132: =IF(C132="同一等級構成集成材",H132,"") -> 
B133: 3 | C133: 同一等級構成集成材 | H133: 4層以上 | M133: E95－F315 | R133: =IFERROR(VLOOKUP(AI133,List_Fc,6,FALSE),"該当無し") -> 26 | T133: (N/m㎡) | AI133: =IFERROR(VLOOKUP(C133&"_"&H133,List_No,3,FALSE)&M133,"") -> 31E95－F315 | AJ133: =IF(C133="同一等級構成集成材",H133,"") -> 4層以上
B136: Input④基本条件 | S136: ※ | T136: 2階柱と1階柱の入力内容は計算上リンクしていません。追加荷重等はそれぞれの柱ごとに入力してください。
B137: 項目 | I137: 単位 | K137: 外柱 | O137: 中柱
K138: 2階 | M138: 1階 | O138: 2階 | Q138: 1階
A139: 柱No | B139: 柱No | I139: (―) | K139: 1 | M139: 2 | O139: 3 | Q139: 4
A140: - | B140: 検討要否 | I140: (―) | S140: ← | AI140: Input1-3の入力内容（引用）
A141: 要否 | K141: TRUE | M141: TRUE | O141: TRUE | Q141: TRUE
A142: 符号 | B142: 柱符号 | I142: (―) | K142: C2o | M142: C1o | O142: C2i | Q142: C1i | S142: ← | AI142: ω8 | AJ142: 内壁(面積当たり) ω8 | AL142: =$I$43 -> 350
A143: 柱短辺 | B143: 柱短辺 | H143: Bc | I143: (mｍ) | K143: 105 | M143: 120 | O143: 105 | Q143: 120 | AI143: W2_4 | AJ143: 屋根荷重 W2-4（柱梁LL） | AL143: =$AD$98 -> 1068
A144: 柱長辺 | B144: 柱長辺 | H144: Dc | I144: (mｍ) | K144: 105 | M144: 120 | O144: 105 | Q144: 120 | AI144: W2_5 | AJ144: 床荷重 W2-5（柱梁LL） | AL144: =$AD$99 -> 1950
A145: Fc | B145: 基準強度 | H145: Fc | I145: (N/m㎡) | K145: 17.7 | M145: 17.7 | O145: 17.7 | Q145: 17.7 | AI145: ωo1 | AJ145: 外壁+断熱材 ωO1 | AL145: =$W$81 -> 720
A146: 高さ判定 | B146: 柱上部の梁せい HG 又は横架材間距離 ℓ | I146: (mｍ) | K146: 梁せい | M146: 梁せい | O146: 梁せい | Q146: 梁せい | AI146: ωo2 | AJ146: 補正外壁重量 ωO2 | AL146: =$W$82 -> 692
A147: 梁せい等 | K147: 105 | M147: 105 | O147: 105 | Q147: 105 | AI147: h3 | AJ147: 最高高さ―軒高さ h3 | AL147: =$I$20 -> 1.5
A148: 軒算定 | B148: 外壁を負担する2階柱 上部の軒上外壁高さ | H148: Ho | I148: (m) | K148: 自動計算 | M148: 自動計算 | O148: 直接入力 | Q148: 直接入力 | AI148: h2 | AJ148: 軒高さ―2階梁天 h2 | AL148: =$I$21 -> 3
A149: 軒上 | K149: 0 | M149: 0 | O149: 0 | Q149: 0 | AI149: h1 | AJ149: 2階梁天―土台天 h1 | AL149: =$I$22 -> 3
A150: 2階Lo | B150: 2階柱の外壁負担長さ | H150: LO2 | I150: (m) | K150: 1.82 | M150: 1.82 | O150: 0 | Q150: 0
A151: 1階Lo | B151: 1階柱の外壁負担長さ | H151: LO1 | I151: (m) | M151: 1.82 | Q151: 0
A152: 2階Ae | B152: 2階柱の負担面積 | H152: Ae2 | I152: (㎡) | K152: 5 | M152: 5 | O152: 5 | Q152: 5 | S152: ←
A153: 1階Ae | B153: 1階柱の負担面積 | H153: Ae1 | I153: (㎡) | M153: 5 | Q153: 5
A154: R階ω | B154: R階屋根の追加等分布荷重(※) | H154: ωC2 | I154: (N/㎡) | K154: 0 | M154: 0 | O154: 0 | Q154: 0 | S154: ←
A155: 2階ω | B155: 2階床の追加等分布荷重(※) | H155: ωC1 | I155: (N/㎡) | M155: 0 | Q155: 0 | AJ155: 案内文 | AK155: =IF(COUNTIF($K$158:$R$158,"NG1")>0,1,IF(COUNTIF($K$158:$R$158,"NG2")>0,2,0)) -> 0
A156: 追加Pc | B156: 柱の追加集中荷重(※) | H156: Pc | I156: (kN) | K156: 0 | M156: 0 | O156: 0 | Q156: 0 | S156: ← | AJ156: NG1は、HG又はℓの項目が「梁せい」「横架材間」以外となっています。
A157: 柱断面 | B157: 柱断面積 | H157: Ac | I157: (c㎡) | K157: =IF(K141=FALSE,0,K143*K144/100) -> 110.25 | M157: =IF(M141=FALSE,0,M143*M144/100) -> 144 | O157: =IF(O141=FALSE,0,O143*O144/100) -> 110.25 | Q157: =IF(Q141=FALSE,0,Q143*Q144/100) -> 144 | AJ157: NG2は、Hoの項目が「自動計算」「直接入力」以外となっています。
K158: =IF(NOT(OR(K$146="梁せい",K$146="横架材間")),"NG1",IF(NOT(OR(K$148="自動計算",K$148="直接入力")),"NG2","")) ->  | M158: =IF(NOT(OR(M$146="梁せい",M$146="横架材間")),"NG1",IF(NOT(OR(M$148="自動計算",M$148="直接入力")),"NG2","")) ->  | O158: =IF(NOT(OR(O$146="梁せい",O$146="横架材間")),"NG1",IF(NOT(OR(O$148="自動計算",O$148="直接入力")),"NG2","")) ->  | Q158: =IF(NOT(OR(Q$146="梁せい",Q$146="横架材間")),"NG1",IF(NOT(OR(Q$148="自動計算",Q$148="直接入力")),"NG2","")) ->  | S158: =IF($AK$155=0,"","←") ->  | T158: =IF(AK155=1,$AJ$156,IF(AK155=2,$AJ$157,"")) -> 
A160: （※） | C160: 下記の検討は外壁（軒上を含む）、内壁、屋根、2階床を考慮した検討です。
C161: 「Input③その他の荷重入力」で入力した追加荷重は別途（※）印の追加荷重で入力してください。
AH162: 行数 | AI162: =MATCH(AI163,$A$139:$A$157,0) -> 3 | AJ162: ℓ （計算） | AK162: ℓ （採用値） | AL162: =MATCH(AL163,$A$139:$A$157,0) -> 8 | AM162: =MATCH(AM163,$A$139:$A$157,0) -> 9 | AN162: ― | AO162: ― | AP162: =MATCH(AP163,$A$139:$A$157,0) -> 5
B163: 1）横架材間距離 {ℓ = h * 1000 - HG 又は直接入力} | S163: 2）断面二次半径（弱軸） { iy = Bc / √(12) } | AH163: No | AI163: 要否 | AL163: 高さ判定 | AM163: 梁せい等 | AN163: 階高 | AO163: i（弱軸） | AP163: 柱短辺
C164: ="2階"&$K$137 -> 2階外柱 | D164: ℓ2 | E164: = | F164: =IF($K164=0,"",IF(AL164="横架材間","【直接入力】",DispFormula($AJ164))) -> 3.000*1000-105 | J164: = | K164: =IF(AI164=FALSE,0,ROUNDUP(AK164,0)) -> 2895 | M164: (mm) | U164: iy2 | V164: = | W164: =IF($AB164=0,"",DispFormula($AO164)) -> 105/√(12) | AA164: = | AB164: =IF(AI164=FALSE,0,ROUNDDOWN(AO164,2)) -> 30.31 | AD164: (mm) | AH164: 1 | AI164: =HLOOKUP($AH164,List_柱,AI$162,FALSE) -> TRUE | AJ164: =$AN164*1000-$AM164 -> 2895 | AK164: =IF(AL164="横架材間",AM164,AJ164) -> 2895 | AL164: =HLOOKUP($AH164,List_柱,AL$162,FALSE) -> 梁せい | AM164: 105 | AN164: =$AL$148 -> 3 | AO164: =$AP164/SQRT(12) -> 30.31088913 | AP164: =HLOOKUP($AH164,List_柱,AP$162,FALSE) -> 105
C165: ="1階"&$K$137 -> 1階外柱 | D165: ℓ1 | E165: = | F165: =IF($K165=0,"",IF(AL165="横架材間","【直接入力】",DispFormula($AJ165))) -> 3.000*1000-105 | J165: = | K165: =IF(AI165=FALSE,0,ROUNDUP(AK165,0)) -> 2895 | M165: (mm) | U165: iy1 | V165: = | W165: =IF($AB165=0,"",DispFormula($AO165)) -> 120/√(12) | AA165: = | AB165: =IF(AI165=FALSE,0,ROUNDDOWN(AO165,2)) -> 34.64 | AD165: (mm) | AH165: 2 | AI165: =HLOOKUP($AH165,List_柱,AI$162,FALSE) -> TRUE | AJ165: =$AN165*1000-$AM165 -> 2895 | AK165: =IF(AL165="横架材間",AM165,AJ165) -> 2895 | AL165: 梁せい | AM165: 105 | AN165: =$AL$149 -> 3 | AO165: =$AP165/SQRT(12) -> 34.64101615 | AP165: =HLOOKUP($AH165,List_柱,AP$162,FALSE) -> 120
C166: ="2階"&$O$137 -> 2階中柱 | D166: ℓ2 | E166: = | F166: 3.000*1000-105 | J166: = | K166: =IF(AI166=FALSE,0,ROUNDUP(AK166,0)) -> 2895 | M166: (mm) | U166: iy2 | V166: = | W166: =IF($AB166=0,"",DispFormula($AO166)) -> 105/√(12) | AA166: = | AB166: =IF(AI166=FALSE,0,ROUNDDOWN(AO166,2)) -> 30.31 | AD166: (mm) | AH166: 3 | AI166: =HLOOKUP($AH166,List_柱,AI$162,FALSE) -> TRUE | AJ166: =$AN166*1000-$AM166 -> 2895 | AK166: =IF(AL166="横架材間",AM166,AJ166) -> 2895 | AL166: 梁せい | AM166: 105 | AN166: =$AL$148 -> 3 | AO166: =$AP166/SQRT(12) -> 30.31088913 | AP166: =HLOOKUP($AH166,List_柱,AP$162,FALSE) -> 105
C167: ="1階"&$O$137 -> 1階中柱 | D167: ℓ1 | E167: = | F167: =IF($K167=0,"",IF(AL167="横架材間","【直接入力】",DispFormula($AJ167))) -> 3.000*1000-105 | J167: = | K167: =IF(AI167=FALSE,0,ROUNDUP(AK167,0)) -> 2895 | M167: (mm) | U167: iy1 | V167: = | W167: =IF($AB167=0,"",DispFormula($AO167)) -> 120/√(12) | AA167: = | AB167: =IF(AI167=FALSE,0,ROUNDDOWN(AO167,2)) -> 34.64 | AD167: (mm) | AH167: 4 | AI167: =HLOOKUP($AH167,List_柱,AI$162,FALSE) -> TRUE | AJ167: =$AN167*1000-$AM167 -> 2895 | AK167: =IF(AL167="横架材間",AM167,AJ167) -> 2895 | AL167: 梁せい | AM167: 105 | AN167: =$AL$149 -> 3 | AO167: =$AP167/SQRT(12) -> 34.64101615 | AP167: =HLOOKUP($AH167,List_柱,AP$162,FALSE) -> 120
B169: 3）有効細長比 {λ = ℓ / iy } | S169: 4）有効細長比による必要最小径 { dse = √(12)*ℓ / 150 } | AI169: 細長比 | AJ169: 必要径
C170: ="2階"&$K$137 -> 2階外柱 | D170: λ2 | E170: = | F170: =IF($J170=0,"",DispFormula($AI170)) -> 2895/30.31 | I170: = | J170: =IFERROR(ROUNDUP(AI170,2),0) -> 95.52 | L170: =IF(J170<=M170,"≦",">") -> ≦ | M170: 150 | O170: =IF(J170=0,"",IF(J170<=M170,"【OK】","【NG】")) -> 【OK】 | U170: dse2 | V170: = | W170: =IF($AB170=0,"",DispFormula($AJ170)) -> √(12)*2895/150 | AA170: = | AB170: =ROUNDUP(AJ170,0) -> 67 | AD170: (mm) | AI170: =K164/AB164 -> 95.513032 | AJ170: =SQRT(12)*$K164/150 -> 66.85716117
C171: ="1階"&$K$137 -> 1階外柱 | D171: λ1 | E171: = | F171: =IF($J171=0,"",DispFormula($AI171)) -> 2895/34.64 | I171: = | J171: =IFERROR(ROUNDUP(AI171,2),0) -> 83.58 | L171: =IF(J171<=M171,"≦",">") -> ≦ | M171: 150 | O171: =IF(J171=0,"",IF(J171<=M171,"【OK】","【NG】")) -> 【OK】 | U171: dse1 | V171: = | W171: =IF($AB171=0,"",DispFormula($AJ171)) -> √(12)*2895/150 | AA171: = | AB171: 67 | AD171: (mm) | AI171: =K165/AB165 -> 83.573903 | AJ171: =SQRT(12)*$K165/150 -> 66.85716117
C172: ="2階"&$O$137 -> 2階中柱 | D172: λ2 | E172: = | F172: =IF($J172=0,"",DispFormula($AI172)) -> 2895/30.31 | I172: = | J172: =IFERROR(ROUNDUP(AI172,2),0) -> 95.52 | L172: =IF(J172<=M172,"≦",">") -> ≦ | M172: 150 | O172: =IF(J172=0,"",IF(J172<=M172,"【OK】","【NG】")) -> 【OK】 | U172: dse2 | V172: = | W172: √(12)*2895/150 | AA172: = | AB172: 67 | AD172: (mm) | AI172: =K166/AB166 -> 95.513032 | AJ172: =SQRT(12)*$K166/150 -> 66.85716117
C173: ="1階"&$O$137 -> 1階中柱 | D173: λ1 | E173: = | F173: =IF($J173=0,"",DispFormula($AI173)) -> 2895/34.64 | I173: = | J173: =IFERROR(ROUNDUP(AI173,2),0) -> 83.58 | L173: =IF(J173<=M173,"≦",">") -> ≦ | M173: 150 | O173: =IF(J173=0,"",IF(J173<=M173,"【OK】","【NG】")) -> 【OK】 | U173: dse1 | V173: = | W173: √(12)*2895/150 | AA173: = | AB173: 67 | AD173: (mm) | AI173: =K167/AB167 -> 83.573903 | AJ173: =SQRT(12)*$K167/150 -> 66.85716117 | AN173: =MATCH(AN174,$A$139:$A$157,0) -> 7
AH174: No | AI174: 採用値 | AJ174: （A） | AK174: （B） | AL174: （C） | AM174: λ | AN174: Fc | AQ174: 算定式
B175: 5）座屈の許容応力度の算定 | AJ175: (λ≦30) | AK175: (30＜λ≦100) | AL175: (100＜λ) | AP175: (λ≦30) | AQ175: 1.1/3*Fc
C176: ="2階"&$K$137 -> 2階外柱 | D176: =IF(AB176=0,"",IF(AI176="A",$AJ$175,IF(AI176="B",$AK$175,$AL$175))) -> (30＜λ≦100) | H176: Fk2 | I176: = | J176: =IF(AB176=0,"",IF(AI176="A",$AQ$175,IF(AI176="B",$AQ$176,$AQ$177))) -> 1.1/3*(1.3-0.01*λ)*Fc | Q176: = | R176: =IF(AB176=0,"",IF($AI176="A",DispFormula($AJ176),IF($AI176="B",DispFormula($AK176),DispFormula($AL176)))) -> 1.1/3*(1.3-0.01*95.52)*17.7 | AA176: = | AB176: =IF(AI164=FALSE,0,ROUNDDOWN(IF($AI176="A",$AJ176,IF($AI176="B",$AK176,$AL176)),2)) -> 2.23 | AD176: (N/mm2) | AH176: 1 | AI176: =IF(AM176<=30,"A",IF(AM176<=100,"B","C")) -> B | AJ176: =1.1/3*$AN176 -> 6.49 | AK176: =1.1/3*(1.3-0.01*$AM176)*$AN176 -> 2.237752 | AL176: =1.1/3*3000/($AM176^2)*$AN176 -> 2.133916021 | AM176: =$J170 -> 95.52 | AN176: =HLOOKUP($AH176,List_柱,AN$173,FALSE) -> 17.7 | AP176: (30＜λ≦100) | AQ176: 1.1/3*(1.3-0.01*λ)*Fc
C177: ="1階"&$K$137 -> 1階外柱 | D177: =IF(AB177=0,"",IF(AI177="A",$AJ$175,IF(AI177="B",$AK$175,$AL$175))) -> (30＜λ≦100) | H177: Fk1 | I177: = | J177: =IF(AB177=0,"",IF(AI177="A",$AQ$175,IF(AI177="B",$AQ$176,$AQ$177))) -> 1.1/3*(1.3-0.01*λ)*Fc | Q177: = | R177: =IF(AB177=0,"",IF($AI177="A",DispFormula($AJ177),IF($AI177="B",DispFormula($AK177),DispFormula($AL177)))) -> 1.1/3*(1.3-0.01*83.58)*17.7 | AA177: = | AB177: =IF(AI165=FALSE,0,ROUNDDOWN(IF($AI177="A",$AJ177,IF($AI177="B",$AK177,$AL177)),2)) -> 3.01 | AD177: (N/mm2) | AH177: 2 | AI177: =IF(AM177<=30,"A",IF(AM177<=100,"B","C")) -> B | AJ177: =1.1/3*$AN177 -> 6.49 | AK177: =1.1/3*(1.3-0.01*$AM177)*$AN177 -> 3.012658 | AL177: =1.1/3*3000/($AM177^2)*$AN177 -> 2.787155619 | AM177: =$J171 -> 83.58 | AN177: =HLOOKUP($AH177,List_柱,AN$173,FALSE) -> 17.7 | AP177: (100＜λ) | AQ177: 1.1/3*3000/(λ^2)*Fc
C178: ="2階"&$O$137 -> 2階中柱 | D178: =IF(AB178=0,"",IF(AI178="A",$AJ$175,IF(AI178="B",$AK$175,$AL$175))) -> (30＜λ≦100) | H178: Fk2 | I178: = | J178: =IF(AB178=0,"",IF(AI178="A",$AQ$175,IF(AI178="B",$AQ$176,$AQ$177))) -> 1.1/3*(1.3-0.01*λ)*Fc | Q178: = | R178: =IF(AB178=0,"",IF($AI178="A",DispFormula($AJ178),IF($AI178="B",DispFormula($AK178),DispFormula($AL178)))) -> 1.1/3*(1.3-0.01*95.52)*17.7 | AA178: = | AB178: =IF(AI166=FALSE,0,ROUNDDOWN(IF($AI178="A",$AJ178,IF($AI178="B",$AK178,$AL178)),2)) -> 2.23 | AD178: (N/mm2) | AH178: 3 | AI178: B | AJ178: =1.1/3*$AN178 -> 6.49 | AK178: =1.1/3*(1.3-0.01*$AM178)*$AN178 -> 2.237752 | AL178: =1.1/3*3000/($AM178^2)*$AN178 -> 2.133916021 | AM178: =$J172 -> 95.52 | AN178: =HLOOKUP($AH178,List_柱,AN$173,FALSE) -> 17.7
C179: ="1階"&$O$137 -> 1階中柱 | D179: =IF(AB179=0,"",IF(AI179="A",$AJ$175,IF(AI179="B",$AK$175,$AL$175))) -> (30＜λ≦100) | H179: Fk1 | I179: = | J179: =IF(AB179=0,"",IF(AI179="A",$AQ$175,IF(AI179="B",$AQ$176,$AQ$177))) -> 1.1/3*(1.3-0.01*λ)*Fc | Q179: = | R179: =IF(AB179=0,"",IF($AI179="A",DispFormula($AJ179),IF($AI179="B",DispFormula($AK179),DispFormula($AL179)))) -> 1.1/3*(1.3-0.01*83.58)*17.7 | AA179: = | AB179: =IF(AI167=FALSE,0,ROUNDDOWN(IF($AI179="A",$AJ179,IF($AI179="B",$AK179,$AL179)),2)) -> 3.01 | AD179: (N/mm2) | AH179: 4 | AI179: =IF(AM179<=30,"A",IF(AM179<=100,"B","C")) -> B | AJ179: =1.1/3*$AN179 -> 6.49 | AK179: =1.1/3*(1.3-0.01*$AM179)*$AN179 -> 3.012658 | AL179: =1.1/3*3000/($AM179^2)*$AN179 -> 2.787155619 | AM179: =$J173 -> 83.58 | AN179: =HLOOKUP($AH179,List_柱,AN$173,FALSE) -> 17.7
B182: 6）等分布荷重による柱の軸力（屋根、2階床、内壁、追加等分布荷重を考慮）
B183: 【算定式】 | E183: NW2 = {(W2-4+ω8/2+ωC2)*Ae2}/1000 | AJ183: =MATCH(AJ184,$A$139:$A$157,0) -> 14 | AK183: =MATCH(AK184,$A$139:$A$157,0) -> 15 | AL183: =MATCH(AL184,$A$139:$A$157,0) -> 16 | AM183: =MATCH(AM184,$A$139:$A$157,0) -> 17
E184: NW1 = {(W2-4+ω8+ωC2)*Ae2+(W2-5+ω8/2+ωC1)*Ae1}/1000 | AH184: No | AI184: Wc | AJ184: 2階Ae | AK184: 1階Ae | AL184: R階ω | AM184: 2階ω
C185: ="2階"&$K$137 -> 2階外柱 | D185: NW2 | E185: = | F185: =IF($W185=0,"",DispFormula($AI185)) -> (1068 +350 /2+0)*5.00/1000 | V185: = | W185: =IF(AI164=FALSE,0,ROUNDUP(AI185,2)) -> 6.22 | Y185: (kN) | AH185: 1 | AI185: =($AL$143+$AL$142/2+$AL185)*$AJ185/1000 -> 6.215 | AJ185: =HLOOKUP($AH185,List_柱,AJ$183,FALSE) -> 5 | AL185: 0
C186: ="1階"&$K$137 -> 1階外柱 | D186: NW1 | E186: = | F186: =IF($W186=0,"",DispFormula($AI186)) -> ((1068 +350 +0)*5.00+(1950 +350 /2+0)*5.00)/1000 | V186: = | W186: =IF(AI165=FALSE,0,ROUNDUP(AI186,2)) -> 17.72 | Y186: (kN) | AH186: 2 | AI186: =(($AL$143+$AL$142+$AL186)*AJ186+($AL$144+$AL$142/2+$AM186)*$AK186)/1000 -> 17.715 | AJ186: 5 | AK186: 5 | AL186: 0 | AM186: 0
C187: ="2階"&$O$137 -> 2階中柱 | D187: NW2 | E187: = | F187: =IF($W187=0,"",DispFormula($AI187)) -> (1068 +350 /2+0)*5.00/1000 | V187: = | W187: =IF(AI166=FALSE,0,ROUNDUP(AI187,2)) -> 6.22 | Y187: (kN) | AH187: 3 | AI187: =($AL$143+$AL$142/2+$AL187)*$AJ187/1000 -> 6.215 | AJ187: 5 | AL187: 0
C188: ="1階"&$O$137 -> 1階中柱 | D188: NW1 | E188: = | F188: =IF($W188=0,"",DispFormula($AI188)) -> ((1068 +350 +0)*5.00+(1950 +350 /2+0)*5.00)/1000 | V188: = | W188: =IF(AI167=FALSE,0,ROUNDUP(AI188,2)) -> 17.72 | Y188: (kN) | AH188: 4 | AI188: =(($AL$143+$AL$142+$AL188)*AJ188+($AL$144+$AL$142/2+$AM188)*$AK188)/1000 -> 17.715 | AJ188: 5 | AK188: 5 | AL188: 0 | AM188: 0
B191: 7）外壁・追加集中荷重による柱の軸力
B192: 【算定式】 | E192: NP2 = (ωO1*HO*LO2+ωO2*h2/2*LO2)/1000+Pc | Z192: 【座屈検討時の係数】 | AH192: 行数 | AI192: ― | AJ192: ― | AK192: ― | AL192: =MATCH(AL193,$A$139:$A$157,0) -> 10 | AM192: 11 | AN192: 12 | AO192: 13 | AP192: 18 | AQ192: 7
E193: NP1 = {ωO1*HO*LO2+ωO2*(h2*LO2+h1/2*LO1)}/1000+Pc | Y193: γ=(NP+NW)*1000/(1.1/3*Fc) | AH193: No | AI193: Pc | AJ193: 係数 | AK193: 階高 | AL193: 軒算定 | AM193: 軒上 | AN193: 2階Lo | AO193: 1階Lo | AP193: 追加Pc | AQ193: Fc
C194: ="2階"&$K$137 -> 2階外柱 | D194: NP2 | E194: = | F194: =IF($W194=0,"【該当無し】",DispFormula($AI194)) -> (720 *1.500*1.82+692 *3.000/2*1.82)/1000+0.00 | V194: = | W194: =IF($AI164=FALSE,0,ROUNDUP($AI194,2)) -> 3.86 | Y194: (kN) | AA194: （ | AB194: =IFERROR(IF($AI164=FALSE,0,ROUND($AJ194,0)),"") -> 1553 | AD194: ） | AH194: 1 | AI194: =($AL$145*AM194*$AN194+$AL$146*$AK194/2*$AN194)/1000+$AP194 -> 3.85476 | AJ194: =($W194+$W185)*1000/(1.1/3*$AQ194) -> 1553.158706 | AK194: =AN164 -> 3 | AL194: =HLOOKUP($AH194,List_柱,AL$192,FALSE) -> 自動計算 | AM194: =IF($AL194="直接入力",HLOOKUP($AH194,List_柱,AM$192,FALSE),$AL$147) -> 1.5 | AN194: =HLOOKUP($AH194,List_柱,AN$192,FALSE) -> 1.82 | AP194: 0 | AQ194: 17.7
C195: ="1階"&$K$137 -> 1階外柱 | D195: NP1 | E195: = | F195: =IF($W195=0,"【該当無し】",DispFormula($AI195)) -> (720 *1.500*1.82+692 *(3.000*1.82+3.000/2*1.82))/1000+0.00 | V195: = | W195: =IF($AI165=FALSE,0,ROUNDUP($AI195,2)) -> 7.64 | Y195: (kN) | AA195: （ | AB195: =IFERROR(IF($AI165=FALSE,0,ROUND($AJ195,0)),"") -> 3908 | AD195: ） | AH195: 2 | AI195: =($AL$145*$AM195*$AN195+$AL$146*(AK194*$AN195+$AK195/2*$AO195))/1000+$AP195 -> 7.63308 | AJ195: =($W195+$W186)*1000/(1.1/3*$AQ195) -> 3907.550077 | AK195: =AN165 -> 3 | AL195: 自動計算 | AM195: =IF($AL195="直接入力",HLOOKUP($AH195,List_柱,AM$192,FALSE),$AL$147) -> 1.5 | AN195: 1.82 | AO195: 1.82 | AP195: 0 | AQ195: 17.7
C196: ="2階"&$O$137 -> 2階中柱 | D196: NP2 | E196: = | F196: 【該当無し】 | V196: = | W196: =IF($AI166=FALSE,0,ROUNDUP($AI196,2)) -> 0 | Y196: (kN) | AA196: （ | AB196: 958 | AD196: ） | AH196: 3 | AI196: =($AL$145*AM196*$AN196+$AL$146*$AK196/2*$AN196)/1000+$AP196 -> 0 | AJ196: =($W196+$W187)*1000/(1.1/3*$AQ196) -> 958.3975347 | AK196: =AN166 -> 3 | AL196: 直接入力 | AM196: =IF($AL196="直接入力",HLOOKUP($AH196,List_柱,AM$192,FALSE),$AL$147) -> 0 | AN196: 0 | AP196: 0 | AQ196: 17.7
C197: ="1階"&$O$137 -> 1階中柱 | D197: NP1 | E197: = | F197: 【該当無し】 | V197: = | W197: =IF($AI167=FALSE,0,ROUNDUP($AI197,2)) -> 0 | Y197: (kN) | AA197: （ | AB197: 2730 | AD197: ） | AH197: 4 | AI197: =($AL$145*$AM197*$AN197+$AL$146*(AK196*$AN197+$AK197/2*$AO197))/1000+$AP197 -> 0 | AJ197: =($W197+$W188)*1000/(1.1/3*$AQ197) -> 2730.354391 | AK197: =AN167 -> 3 | AL197: 直接入力 | AM197: =IF($AL197="直接入力",HLOOKUP($AH197,List_柱,AM$192,FALSE),$AL$147) -> 0 | AN197: 0 | AO197: 0 | AP197: 0 | AQ197: 17.7
AH198: 行数 | AI198: ― | AJ198: =MATCH(AJ199,$A$139:$A$157,0) -> 19
B199: 8）柱の応力度 { σc = (NP+NW)*1000 )/ (Ac*100) } | V199: 【許容座屈応力度】 | AA199: 【検定比】 | AH199: No | AI199: σ | AJ199: 柱断面
C200: ="2階"&$K$137 -> 2階外柱 | D200: σC2 | E200: = | F200: =IF($P200=0,"",DispFormula($AI200)) -> (3.86+6.22)*1000/(110.25*100) | O200: = | P200: =IFERROR(ROUNDUP(AI200,2),0) -> 0.92 | R200: (N/mm2) | U200: =IF(P200<=V200,"≦",">") -> ≦ | V200: =$AB176 -> 2.23 | X200: (N/mm2) | Z200: （ | AA200: =IFERROR(ROUNDUP(P200/V200,2),"") -> 0.42 | AC200: ） | AD200: =IF(P200=0,"",IF(P200<=V200,"【OK】","【NG】")) -> 【OK】 | AH200: 1 | AI200: =($W194+W185)*1000/($AJ200*100) -> 0.9142857143 | AJ200: =HLOOKUP($AH200,List_柱,AJ$198,FALSE) -> 110.25
C201: ="1階"&$K$137 -> 1階外柱 | D201: σC1 | E201: = | F201: =IF($P201=0,"",DispFormula($AI201)) -> (7.64+17.72)*1000/(144.00*100) | O201: = | P201: =IFERROR(ROUNDUP(AI201,2),0) -> 1.77 | R201: (N/mm2) | U201: =IF(P201<=V201,"≦",">") -> ≦ | V201: =$AB177 -> 3.01 | X201: (N/mm2) | Z201: （ | AA201: =IFERROR(ROUNDUP(P201/V201,2),"") -> 0.59 | AC201: ） | AD201: =IF(P201=0,"",IF(P201<=V201,"【OK】","【NG】")) -> 【OK】 | AH201: 2 | AI201: =($W195+W186)*1000/($AJ201*100) -> 1.761111111 | AJ201: =HLOOKUP($AH201,List_柱,AJ$198,FALSE) -> 144
C202: ="2階"&$O$137 -> 2階中柱 | D202: σC2 | E202: = | F202: =IF($P202=0,"",DispFormula($AI202)) -> (0.00+6.22)*1000/(110.25*100) | O202: = | P202: =IFERROR(ROUNDUP(AI202,2),0) -> 0.57 | R202: (N/mm2) | U202: =IF(P202<=V202,"≦",">") -> ≦ | V202: =$AB178 -> 2.23 | X202: (N/mm2) | Z202: （ | AA202: =IFERROR(ROUNDUP(P202/V202,2),"") -> 0.26 | AC202: ） | AD202: =IF(P202=0,"",IF(P202<=V202,"【OK】","【NG】")) -> 【OK】 | AH202: 3 | AI202: =($W196+W187)*1000/($AJ202*100) -> 0.5641723356 | AJ202: =HLOOKUP($AH202,List_柱,AJ$198,FALSE) -> 110.25
C203: ="1階"&$O$137 -> 1階中柱 | D203: σC1 | E203: = | F203: =IF($P203=0,"",DispFormula($AI203)) -> (0.00+17.72)*1000/(144.00*100) | O203: = | P203: =IFERROR(ROUNDUP(AI203,2),0) -> 1.24 | R203: (N/mm2) | U203: =IF(P203<=V203,"≦",">") -> ≦ | V203: =$AB179 -> 3.01 | X203: (N/mm2) | Z203: （ | AA203: =IFERROR(ROUNDUP(P203/V203,2),"") -> 0.42 | AC203: ） | AD203: =IF(P203=0,"",IF(P203<=V203,"【OK】","【NG】")) -> 【OK】 | AH203: 4 | AI203: =($W197+W188)*1000/($AJ203*100) -> 1.230555556 | AJ203: =HLOOKUP($AH203,List_柱,AJ$198,FALSE) -> 144
B205: 9）柱の応力度による必要最小径
B206: 【算定式】 | D206: (100＜λ') | I206: dbe | J206: = | K206: {12*ℓ2/3000*γ}(1/4) | T206: ※ | U206: γは 7) 参照 { γ=(NP+NW)*1000/(1.1/3*Fc) }
D207: (30＜λ'≦100) | I207: dbe | J207: = | K207: ℓ/75.05+√{(ℓ/75.05)2+1/1.3*γ} | AH207: No | AI207: 採用値 | AJ207: 必要最小径 | AM207: 有効細長比 | AP207: 横架材間距離
D208: (λ'≦30) | I208: dbe | J208: = | K208: √(γ) | AB208: 【有効細長比λ'】 | AJ208: (A)λ≦30 | AK208: (B)30＜λ≦100 | AL208: (C)100＜λ | AM208: (λ'≦30) | AN208: (30＜λ'≦100) | AO208: (100＜λ')
C209: ="2階"&$K$137 -> 2階外柱 | D209: =IF(W209=0,"",IF(AI209="A",$AM$208,IF(AI209="B",$AN$208,$AO$208))) -> (100＜λ') | I209: dbe2 | J209: = | K209: =IF(W209=0,"",IF($AI209="A",DispFormula($AJ209),IF($AI209="B",DispFormula($AK209),DispFormula($AL209)))) -> ((12*2895^2)/3000*1553)^(1/4) | V209: = | W209: =IFERROR(ROUNDUP(IF($AI209="A",$AJ209,IF($AI209="B",$AK209,$AL209)),0),0) -> 85 | Y209: (mm) | AB209: （ | AC209: =IFERROR(SQRT(12)*AP209/W209,0) -> 117.9832256 | AE209: ） | AH209: 1 | AI209: =IF(AM209<=30,"A",IF(AN209<=100,"B","C")) -> C | AJ209: =SQRT(AB194) -> 39.40812099 | AK209: =AP209/75.05+SQRT((AP209/75.05)^2+1/1.3*AB194) -> 90.3680166 | AL209: =((12*AP209^2)/3000*AB194)^(1/4) -> 84.94389004 | AM209: =SQRT(12)*AP209/ROUNDUP(AJ209,0) -> 250.7143544 | AN209: =SQRT(12)*AP209/ROUNDUP(AK209,0) -> 110.2041118 | AO209: =SQRT(12)*AP209/ROUNDUP(AL209,0) -> 117.9832256 | AP209: =$K164 -> 2895
C210: ="1階"&$K$137 -> 1階外柱 | D210: =IF(W210=0,"",IF(AI210="A",$AM$208,IF(AI210="B",$AN$208,$AO$208))) -> (30＜λ'≦100) | I210: dbe1 | J210: = | K210: 2895/75.05+√((2895/75.05)^2+1/1.3*3908) | V210: = | W210: =IFERROR(ROUNDUP(IF($AI210="A",$AJ210,IF($AI210="B",$AK210,$AL210)),0),0) -> 106 | Y210: (mm) | AB210: （ | AC210: =IFERROR(SQRT(12)*AP210/W210,0) -> 94.60919034 | AE210: ） | AH210: 2 | AI210: =IF(AM210<=30,"A",IF(AN210<=100,"B","C")) -> B | AJ210: =SQRT(AB195) -> 62.51399843 | AK210: =AP210/75.05+SQRT((AP210/75.05)^2+1/1.3*AB195) -> 105.6125506 | AL210: =((12*AP210^2)/3000*AB195)^(1/4) -> 106.986239 | AM210: =SQRT(12)*AP210/ROUNDUP(AJ210,0) -> 159.1837171 | AN210: =SQRT(12)*AP210/ROUNDUP(AK210,0) -> 94.60919034 | AO210: =SQRT(12)*AP210/ROUNDUP(AL210,0) -> 93.7249923 | AP210: =$K165 -> 2895
C211: ="2階"&$O$137 -> 2階中柱 | D211: =IF(W211=0,"",IF(AI211="A",$AM$208,IF(AI211="B",$AN$208,$AO$208))) -> (100＜λ') | I211: dbe2 | J211: = | K211: ((12*2895^2)/3000*958)^(1/4) | V211: = | W211: =IFERROR(ROUNDUP(IF($AI211="A",$AJ211,IF($AI211="B",$AK211,$AL211)),0),0) -> 76 | Y211: (mm) | AB211: （ | AC211: =IFERROR(SQRT(12)*AP211/W211,0) -> 131.9549234 | AE211: ） | AH211: 3 | AI211: =IF(AM211<=30,"A",IF(AN211<=100,"B","C")) -> C | AJ211: =SQRT(AB196) -> 30.95157508 | AK211: =AP211/75.05+SQRT((AP211/75.05)^2+1/1.3*AB196) -> 85.74311301 | AL211: =((12*AP211^2)/3000*AB196)^(1/4) -> 75.28018178 | AM211: =SQRT(12)*AP211/ROUNDUP(AJ211,0) -> 323.5023928 | AN211: =SQRT(12)*AP211/ROUNDUP(AK211,0) -> 116.6113276 | AO211: =SQRT(12)*AP211/ROUNDUP(AL211,0) -> 131.9549234 | AP211: =$K166 -> 2895
C212: ="1階"&$O$137 -> 1階中柱 | D212: =IF(W212=0,"",IF(AI212="A",$AM$208,IF(AI212="B",$AN$208,$AO$208))) -> (100＜λ') | I212: dbe1 | J212: = | K212: ((12*2895^2)/3000*2730)^(1/4) | V212: = | W212: =IFERROR(ROUNDUP(IF($AI212="A",$AJ212,IF($AI212="B",$AK212,$AL212)),0),0) -> 98 | Y212: (mm) | AB212: （ | AC212: =IFERROR(SQRT(12)*AP212/W212,0) -> 102.3323895 | AE212: ） | AH212: 4 | AI212: =IF(AM212<=30,"A",IF(AN212<=100,"B","C")) -> C | AJ212: =SQRT(AB197) -> 52.24940191 | AK212: =AP212/75.05+SQRT((AP212/75.05)^2+1/1.3*AB197) -> 98.47399476 | AL212: =((12*AP212^2)/3000*AB197)^(1/4) -> 97.80925335 | AM212: =SQRT(12)*AP212/ROUNDUP(AJ212,0) -> 189.2183807 | AN212: 101.298729 | AO212: =SQRT(12)*AP212/ROUNDUP(AL212,0) -> 102.3323895 | AP212: =$K167 -> 2895
B214: Output② 柱の必要最小径の算定（※正方形断面の場合） | AH214: No | AI214: 必要径 | AJ214: λ小径 | AK214: de/ℓ
C215: ="2階"&$K$137 -> 2階外柱 | E215: de2 | F215: = | G215: max(dse, dbe) | K215: = | L215: =DispFormula(AI215) -> MAX(67,85) | P215: = | Q215: =ROUNDUP(AI215,0) -> 85 | S215: (mm) | W215: de2/ℓ2 | X215: = | Y215: =IFERROR(DispFormula(AK215),"") -> 85/2895 | AB215: = | AC215: =IFERROR("1/"&ROUNDUP(1/AK215,0),"") -> 1/35 | AH215: 1 | AI215: =MAX(AJ215,W209) -> 85 | AJ215: =$AB170 -> 67 | AK215: =Q215/K164 -> 0.02936096718
C216: ="1階"&$K$137 -> 1階外柱 | E216: de1 | F216: = | G216: max(dse, dbe) | K216: = | L216: =DispFormula(AI216) -> MAX(67,106) | P216: = | Q216: =ROUNDUP(AI216,0) -> 106 | S216: (mm) | W216: de1/ℓ1 | X216: = | Y216: =IFERROR(DispFormula(AK216),"") -> 106/2895 | AB216: = | AC216: =IFERROR("1/"&ROUNDUP(1/AK216,0),"") -> 1/28 | AH216: 2 | AI216: =MAX(AJ216,W210) -> 106 | AJ216: =$AB171 -> 67 | AK216: =Q216/K165 -> 0.0366148532
C217: ="2階"&$O$137 -> 2階中柱 | E217: de2 | F217: = | G217: max(dse, dbe) | K217: = | L217: =DispFormula(AI217) -> MAX(67,76) | P217: = | Q217: =ROUNDUP(AI217,0) -> 76 | S217: (mm) | W217: de2/ℓ2 | X217: = | Y217: 76/2895 | AB217: = | AC217: 1/39 | AH217: 3 | AI217: =MAX(AJ217,W211) -> 76 | AJ217: =$AB172 -> 67 | AK217: 0.02625215889
C218: ="1階"&$O$137 -> 1階中柱 | E218: de1 | F218: = | G218: max(dse, dbe) | K218: = | L218: =DispFormula(AI218) -> MAX(67,98) | P218: = | Q218: =ROUNDUP(AI218,0) -> 98 | S218: (mm) | W218: de1/ℓ1 | X218: = | Y218: 98/2895 | AB218: = | AC218: 1/30 | AH218: 4 | AI218: =MAX(AJ218,W212) -> 98 | AJ218: =$AB173 -> 67 | AK218: =Q218/K167 -> 0.03385146805
B220: Output③ 柱の最大負担面積の算定（※2階と1階の柱が同じ負担面積であると仮定したときの最大負担面積を算定します。） | AI220: 分布荷重
F221: 2階柱の等分布荷重： | G221: Σω2 | I221: = | J221: W2-4+ω8/2 | P221: = | Q221: =IF($Y221=0,"",DispFormula($AI221)) -> 1068 +350 /2 | X221: = | Y221: =ROUNDUP($AI221,0) -> 1243 | AA221: (N/mm2) | AI221: =$AD$98+$I$43/2 -> 1243
F222: 1階柱の等分布荷重： | G222: Σω1 | I222: = | J222: W2-4+W2-5+ω8*(1+1/2) | P222: = | Q222: =IF($Y222=0,"",DispFormula($AI222)) -> 1068 +1950 +350 *(1+1/2) | X222: = | Y222: =ROUNDUP($AI222,0) -> 3543 | AA222: (N/mm2) | AI222: =$AD$98+$AD$99+$I$43*(1+1/2) -> 3543
B224: 【算定式】 | D224: (100＜λ) | I224: Ae_max | J224: = | K224: (1.1/3*Fc*Ac*100*3000/λ2-Pc*1000)/(Σω+Σωc) | AH224: 行数 | AI224: ― | AJ224: ― | AK224: ― | AL224: ― | AM224: ― | AN224: 7 | AO224: 17 | AR224: 14 | AS224: 15
D225: (30＜λ≦100) | I225: Ae_max | J225: = | K225: {1.1/3*Fc*Ac*100*(1.3-0.01*λ)-Pc*1000}/(Σω+Σωc) | AH225: No | AI225: 採用値 | AJ225: 最大負担面積 | AM225: λ | AN225: Fc | AO225: 柱断面 | AP225: Pc | AQ225: Σω | AR225: 2階ωc | AS225: 1階ωc | AT225: 係数（参考）
D226: (λ≦30) | I226: Ae_max | J226: = | K226: (1.1/3*Fc*Ac*100-Pc*1000)/(Σω+Σωc) | AJ226: (A)λ≦30 | AK226: (B)30＜λ≦100 | AL226: (C)100＜λ | AT226: λ≦30 | AU226: 30＜λ≦100 | AV226: 100＜λ
C227: 2階外柱 | D227: =IF(AC227=0,"",IF($AM227>150,"【有効細長比NG】",IF(AI227="A",$AJ$175,IF(AI227="B",$AK$175,$AL$175)))) ->  | I227: Ae_max2 | J227: = | K227: =IF(AC227=0,"",IF($AI227="A",DispFormula($AJ227),IF($AI227="B",DispFormula($AK227),DispFormula($AL227)))) ->  | AB227: = | AC227: =IF($AI164=FALSE,0,ROUNDDOWN(IF($AI227="A",$AJ227,IF($AI227="B",$AK227,$AL227)),3)) ->  | AE227: (㎡) | AH227: 1 | AI227: =IF(AM227<=30,"A",IF(AM227<=100,"B","C")) -> B | AJ227: =(1.1/3*$AN227*$AO227*100-AP227*1000)/($AQ227+AR227) ->  | AK227: =(1.1/3*$AN227*$AO227*100*(1.3-0.01*$AM227)-$AP227*1000)/($AQ227+AR227) ->  | AL227: =(1.1/3*$AN227*$AO227*100*3000/($AM227^2)-$AP227*1000)/($AQ227+AR227) ->  | AM227: =$J170 -> 95.52 | AN227: =HLOOKUP($AH227,List_柱,AN$224,FALSE) -> 17.7 | AP227: =$W194 -> 3.86 | AQ227: =$Y$221 -> 1243 | AR227: =HLOOKUP($AH227,List_柱,AR$224,FALSE) -> 5 | AT227: =1 -> 1 | AU227: =(1.3-0.01*$AM227) -> 0.3448 | AV227: =3000/($AM227^2) -> 0.3288006195
C228: 1階外柱 | D228: =IF(AC228=0,"",IF($AM228>150,"【有効細長比NG】",IF(AI228="A",$AJ$175,IF(AI228="B",$AK$175,$AL$175)))) -> (30＜λ≦100) | I228: Ae_max1 | J228: = | K228: =IF(AC228=0,"",IF($AI228="A",DispFormula($AJ228),IF($AI228="B",DispFormula($AK228),DispFormula($AL228)))) -> (1.1/3*17.7*0.0*100*(1.3-0.01*83.58)-7.64*1000)/(3543+5+5) | AB228: = | AC228: =IF($AI165=FALSE,0,ROUNDDOWN(IF($AI228="A",$AJ228,IF($AI228="B",$AK228,$AL228)),3)) -> -2.15 | AE228: (㎡) | AH228: 2 | AI228: =IF(AM228<=30,"A",IF(AM228<=100,"B","C")) -> B | AJ228: =(1.1/3*$AN228*$AO228*100-AP228*1000)/($AQ228+AR228+AS228) -> -2.150295525 | AK228: =(1.1/3*$AN228*$AO228*100*(1.3-0.01*$AM228)-$AP228*1000)/($AQ228+AR228+AS228) -> -2.150295525 | AL228: =(1.1/3*$AN228*$AO228*100*3000/($AM228^2)-$AP228*1000)/($AQ228+AR228+AS228) -> -2.150295525 | AM228: =$J171 -> 83.58 | AN228: 17.7 | AO228: 0 | AP228: =$W195 -> 7.64 | AQ228: =$Y$222 -> 3543 | AR228: 5 | AS228: 5 | AT228: =1 -> 1 | AU228: =(1.3-0.01*$AM228) -> 0.4642 | AV228: =3000/($AM228^2) -> 0.4294538704
C229: 2階中柱 | D229: =IF(AC229=0,"",IF($AM229>150,"【有効細長比NG】",IF(AI229="A",$AJ$175,IF(AI229="B",$AK$175,$AL$175)))) ->  | I229: Ae_max2 | J229: = | K229: =IF(AC229=0,"",IF($AI229="A",DispFormula($AJ229),IF($AI229="B",DispFormula($AK229),DispFormula($AL229)))) ->  | AB229: = | AC229: =IF($AI166=FALSE,0,ROUNDDOWN(IF($AI229="A",$AJ229,IF($AI229="B",$AK229,$AL229)),3)) ->  | AE229: (㎡) | AH229: 3 | AI229: =IF(AM229<=30,"A",IF(AM229<=100,"B","C")) -> B | AJ229: =(1.1/3*$AN229*$AO229*100-AP229*1000)/($AQ229+AR229) ->  | AK229: =(1.1/3*$AN229*$AO229*100*(1.3-0.01*$AM229)-$AP229*1000)/($AQ229+AR229) ->  | AL229: =(1.1/3*$AN229*$AO229*100*3000/($AM229^2)-$AP229*1000)/($AQ229+AR229) ->  | AM229: =$J172 -> 95.52 | AN229: 17.7 | AP229: =$W196 -> 0 | AQ229: =$Y$221 -> 1243 | AR229: 5 | AT229: =1 -> 1 | AU229: =(1.3-0.01*$AM229) -> 0.3448 | AV229: =3000/($AM229^2) -> 0.3288006195
C230: 1階中柱 | D230: =IF(AC230=0,"",IF($AM230>150,"【有効細長比NG】",IF(AI230="A",$AJ$175,IF(AI230="B",$AK$175,$AL$175)))) ->  | I230: Ae_max1 | J230: = | K230: =IF(AC230=0,"",IF($AI230="A",DispFormula($AJ230),IF($AI230="B",DispFormula($AK230),DispFormula($AL230)))) ->  | AB230: = | AC230: =IF($AI167=FALSE,0,ROUNDDOWN(IF($AI230="A",$AJ230,IF($AI230="B",$AK230,$AL230)),3)) -> 0 | AE230: (㎡) | AH230: 4 | AI230: =IF(AM230<=30,"A",IF(AM230<=100,"B","C")) -> B | AJ230: =(1.1/3*$AN230*$AO230*100-AP230*1000)/($AQ230+AR230+AS230) -> 0 | AK230: =(1.1/3*$AN230*$AO230*100*(1.3-0.01*$AM230)-$AP230*1000)/($AQ230+AR230+AS230) -> 0 | AL230: =(1.1/3*$AN230*$AO230*100*3000/($AM230^2)-$AP230*1000)/($AQ230+AR230+AS230) -> 0 | AM230: =$J173 -> 83.58 | AN230: 17.7 | AO230: 0 | AP230: =$W197 -> 0 | AQ230: =$Y$222 -> 3543 | AR230: 5 | AS230: 5 | AT230: =1 -> 1 | AU230: =(1.3-0.01*$AM230) -> 0.4642 | AV230: =3000/($AM230^2) -> 0.4294538704
B232: Output③ 柱の算定結果一覧
B234: No | C234: 柱種類 | E234: 階 | G234: 柱符号 | I234: 柱短辺 | K234: 基準強度 | M234: 細長比 | O234: 座屈許容応力度 | R234: 圧縮応力度 | U234: 検定比 | W234: 判定 | Y234: 必要最小径
I235: Bc | K235: Fc | M235: λ | O235: Fk | R235: σC | Y235: dse | AA235: dbe | AC235: de | AH235: 行数 | AI235: =MATCH(AI236,$A$139:$A$157,0) -> 3 | AJ235: =MATCH(AJ236,$A$139:$A$157,0) -> 4 | AK235: =MATCH(AK236,$A$139:$A$157,0) -> 5 | AL235: =MATCH(AL236,$A$139:$A$157,0) -> 7
I236: (mm) | K236: (N/mm2) | M236: (―) | O236: (N/mm2) | R236: (N/mm2) | Y236: (mm) | AA236: (mm) | AC236: (mm) | AH236: No | AI236: 要否 | AJ236: 符号 | AK236: 柱短辺 | AL236: Fc
B237: =AH237 -> 1 | C237: =$K$137 -> 外柱 | E237: 2階 | G237: =IF($AI237=TRUE,AJ237,"―") -> C2o | I237: =IF($AI237=TRUE,AK237,"―") -> 105 | K237: =IF($AI237=TRUE,AL237,"―") -> 17.7 | M237: =IF($AI237=TRUE,J170,"―") -> 95.52 | O237: =IF($AI237=TRUE,AB176,"―") -> 2.23 | R237: =IF($AI237=TRUE,P200,"―") -> 0.92 | U237: =IF($AI237=TRUE,AA200,"―") -> 0.42 | W237: =IF($AI237=TRUE,IF(AND(R237>0,O237>=R237,M237<=150),"【OK】","【NG】"),"―") -> 【OK】 | Y237: =IF($AI237=TRUE,AB170,"―") -> 67 | AA237: =IF($AI237=TRUE,W209,"―") -> 85 | AC237: =IF($AI237=TRUE,Q215,"―") -> 85 | AH237: 1 | AI237: =HLOOKUP($AH237,List_柱,AI$235,FALSE) -> TRUE | AJ237: C2o | AK237: 105 | AL237: 17.7
B238: =AH238 -> 2 | C238: =$K$137 -> 外柱 | E238: 1階 | G238: =IF($AI238=TRUE,AJ238,"―") -> C1o | I238: =IF($AI238=TRUE,AK238,"―") -> 120 | K238: =IF($AI238=TRUE,AL238,"―") -> 17.7 | M238: =IF($AI238=TRUE,J171,"―") -> 83.58 | O238: =IF($AI238=TRUE,AB177,"―") -> 3.01 | R238: =IF($AI238=TRUE,P201,"―") -> 1.77 | U238: =IF($AI238=TRUE,AA201,"―") -> 0.59 | W238: =IF($AI238=TRUE,IF(AND(R238>0,O238>=R238,M238<=150),"【OK】","【NG】"),"―") -> 【OK】 | Y238: =IF($AI238=TRUE,AB171,"―") -> 67 | AA238: =IF($AI238=TRUE,W210,"―") -> 106 | AC238: =IF($AI238=TRUE,Q216,"―") -> 106 | AH238: 2 | AI238: TRUE | AJ238: C1o | AK238: 120 | AL238: 17.7
B239: =AH239 -> 3 | C239: =$O$137 -> 中柱 | E239: 2階 | G239: =IF($AI239=TRUE,AJ239,"―") -> C2i | I239: =IF($AI239=TRUE,AK239,"―") -> 105 | K239: =IF($AI239=TRUE,AL239,"―") -> 17.7 | M239: =IF($AI239=TRUE,J172,"―") -> 95.52 | O239: =IF($AI239=TRUE,AB178,"―") -> 2.23 | R239: =IF($AI239=TRUE,P202,"―") -> 0.57 | U239: =IF($AI239=TRUE,AA202,"―") -> 0.26 | W239: 【OK】 | Y239: =IF($AI239=TRUE,AB172,"―") -> 67 | AA239: =IF($AI239=TRUE,W211,"―") -> 76 | AC239: =IF($AI239=TRUE,Q217,"―") -> 76 | AH239: 3 | AI239: TRUE | AJ239: C2i | AK239: 105 | AL239: 17.7
B240: =AH240 -> 4 | C240: =$O$137 -> 中柱 | E240: 1階 | G240: =IF($AI240=TRUE,AJ240,"―") -> C1i | I240: =IF($AI240=TRUE,AK240,"―") -> 120 | K240: =IF($AI240=TRUE,AL240,"―") -> 17.7 | M240: =IF($AI240=TRUE,J173,"―") -> 83.58 | O240: =IF($AI240=TRUE,AB179,"―") -> 3.01 | R240: =IF($AI240=TRUE,P203,"―") -> 1.24 | U240: =IF($AI240=TRUE,AA203,"―") -> 0.42 | W240: 【OK】 | Y240: =IF($AI240=TRUE,AB173,"―") -> 67 | AA240: =IF($AI240=TRUE,W212,"―") -> 98 | AC240: =IF($AI240=TRUE,Q218,"―") -> 98 | AH240: 4 | AI240: TRUE | AJ240: C1i | AK240: 120 | AL240: 17.7
... 3 more rows

Sheet 柱の追加検討（2F）
B2: 3.柱の小径の算定（追加検討）
B4: （参考）木材の圧縮基準強度 | AI4: 検索用
B5: No | C5: JAS規格 | H5: 樹種等 | M5: 等級等 | R5: 基準強度Fc | AI5: 全体 | AJ5: 集成材用
B6: 1 | C6: 無等級材 | H6: ひのき | M6: ― | R6: =IFERROR(VLOOKUP(AI6,List_Fc,6,FALSE),"該当無し") -> 20.7 | T6: (N/m㎡) | V6: =IF(AND(C6="無等級材",NOT(M6="―")),"※等級等を「－」としてください。",IF(AND(C6="対称異等級構成集成材",NOT(H6="―")),"※樹種等を「－」としてください。","")) ->  | AI6: =IFERROR(VLOOKUP(C6&"_"&H6,List_No,3,FALSE)&M6,"") -> 22― | AJ6: =IF(C6="同一等級構成集成材",H6,"") -> 
B7: 2 | C7: 無等級材 | H7: すぎ | M7: ― | R7: =IFERROR(VLOOKUP(AI7,List_Fc,6,FALSE),"該当無し") -> 17.7 | T7: (N/m㎡) | V7: =IF(AND(C7="無等級材",NOT(M7="―")),"※等級等を「－」としてください。",IF(AND(C7="対称異等級構成集成材",NOT(H7="―")),"※樹種等を「－」としてください。","")) ->  | AI7: =IFERROR(VLOOKUP(C7&"_"&H7,List_No,3,FALSE)&M7,"") -> 24― | AJ7: =IF(C7="同一等級構成集成材",H7,"") -> 
B8: 3 | C8: 同一等級構成集成材 | H8: 4層以上 | M8: E95－F315 | R8: =IFERROR(VLOOKUP(AI8,List_Fc,6,FALSE),"該当無し") -> 26 | T8: (N/m㎡) | AI8: =IFERROR(VLOOKUP(C8&"_"&H8,List_No,3,FALSE)&M8,"") -> 31E95－F315 | AJ8: =IF(C8="同一等級構成集成材",H8,"") -> 4層以上
B11: Input④基本条件 | S11: ※ | T11: 2階柱と1階柱の入力内容は計算上リンクしていません。追加荷重等はそれぞれの柱ごとに入力してください。
B12: 項目 | I12: 単位 | K12: 外柱 | O12: 中柱
K13: 2階 | M13: 1階 | O13: 2階 | Q13: 1階
A14: 柱No | B14: 柱No | I14: (―) | K14: 1 | M14: 2 | O14: 3 | Q14: 4
A15: - | B15: 検討要否 | I15: (―) | S15: ← | AI15: Input1-3の入力内容（引用）
A16: 要否 | K16: TRUE | M16: TRUE | O16: TRUE | Q16: TRUE
A17: 符号 | B17: 柱符号 | I17: (―) | K17: C2o | M17: C1o | O17: C2i | Q17: C1i | S17: ← | AI17: ω8 | AJ17: 内壁(面積当たり) ω8 | AL17: =VLOOKUP(AI17,Input1_3,4,FALSE) -> 350
A18: 柱短辺 | B18: 柱短辺 | H18: Bc | I18: (mｍ) | K18: 105 | M18: 120 | O18: 105 | Q18: 120 | AI18: W2_4 | AJ18: 屋根荷重 W2-4（柱梁LL） | AL18: 1068
A19: 柱長辺 | B19: 柱長辺 | H19: Dc | I19: (mｍ) | K19: 105 | M19: 120 | O19: 105 | Q19: 120 | AI19: W2_5 | AJ19: 床荷重 W2-5（柱梁LL） | AL19: 1950
A20: Fc | B20: 基準強度 | H20: Fc | I20: (N/m㎡) | K20: 17.7 | M20: 17.7 | O20: 17.7 | Q20: 17.7 | AI20: ωo1 | AJ20: 外壁+断熱材 ωO1 | AL20: 720
A21: 高さ判定 | B21: 柱上部の梁せい HG 又は横架材間距離 ℓ | I21: (mｍ) | K21: 梁せい | M21: 梁せい | O21: 梁せい | Q21: 梁せい | AI21: ωo2 | AJ21: 補正外壁重量 ωO2 | AL21: 692
A22: 梁せい等 | K22: 105 | M22: 105 | O22: 105 | Q22: 105 | AI22: h3 | AJ22: 最高高さ―軒高さ h3 | AL22: 1.5
A23: 軒算定 | B23: 外壁を負担する2階柱 上部の軒上外壁高さ | H23: Ho | I23: (m) | K23: 自動計算 | M23: 自動計算 | O23: 直接入力 | Q23: 直接入力 | AI23: h2 | AJ23: 軒高さ―2階梁天 h2 | AL23: 3
A24: 軒上 | K24: 0 | M24: 0 | O24: 0 | Q24: 0 | AI24: h1 | AJ24: 2階梁天―土台天 h1 | AL24: 3
A25: 2階Lo | B25: 2階柱の外壁負担長さ | H25: LO2 | I25: (m) | K25: 1.82 | M25: 1.82 | O25: 0 | Q25: 0
A26: 1階Lo | B26: 1階柱の外壁負担長さ | H26: LO1 | I26: (m) | M26: 1.82 | Q26: 0
A27: 2階Ae | B27: 2階柱の負担面積 | H27: Ae2 | I27: (㎡) | K27: 5 | M27: 5 | O27: 5 | Q27: 5 | S27: ←
A28: 1階Ae | B28: 1階柱の負担面積 | H28: Ae1 | I28: (㎡) | M28: 5 | Q28: 5
A29: R階ω | B29: R階屋根の追加等分布荷重(※) | H29: ωC2 | I29: (N/㎡) | K29: 0 | M29: 0 | O29: 0 | Q29: 0 | S29: ←
A30: 2階ω | B30: 2階床の追加等分布荷重(※) | H30: ωC1 | I30: (N/㎡) | M30: 0 | Q30: 0 | AJ30: 案内文 | AK30: =IF(COUNTIF($K$33:$R$33,"NG1")>0,1,IF(COUNTIF($K$33:$R$33,"NG2")>0,2,0)) -> 0
A31: 追加Pc | B31: 柱の追加集中荷重(※) | H31: Pc | I31: (kN) | K31: 0 | M31: 0 | O31: 0 | Q31: 0 | S31: ← | AJ31: NG1は、HG又はℓの項目が「梁せい」「横架材間」以外となっています。
A32: 柱断面 | B32: 柱断面積 | H32: Ac | I32: (c㎡) | K32: =IF(K16=FALSE,0,K18*K19/100) -> 110.25 | M32: =IF(M16=FALSE,0,M18*M19/100) -> 144 | O32: =IF(O16=FALSE,0,O18*O19/100) -> 110.25 | Q32: =IF(Q16=FALSE,0,Q18*Q19/100) -> 144 | AJ32: NG2は、Hoの項目が「自動計算」「直接入力」以外となっています。
K33: =IF(NOT(OR(K$21="梁せい",K$21="横架材間")),"NG1",IF(NOT(OR(K$23="自動計算",K$23="直接入力")),"NG2","")) ->  | M33: =IF(NOT(OR(M$21="梁せい",M$21="横架材間")),"NG1",IF(NOT(OR(M$23="自動計算",M$23="直接入力")),"NG2","")) ->  | O33: =IF(NOT(OR(O$21="梁せい",O$21="横架材間")),"NG1",IF(NOT(OR(O$23="自動計算",O$23="直接入力")),"NG2","")) ->  | Q33: =IF(NOT(OR(Q$21="梁せい",Q$21="横架材間")),"NG1",IF(NOT(OR(Q$23="自動計算",Q$23="直接入力")),"NG2","")) ->  | S33: =IF($AK$30=0,"","←") ->  | T33: =IF(AK30=1,$AJ$31,IF(AK30=2,$AJ$32,"")) -> 
A35: （※） | C35: 下記の検討は外壁（軒上を含む）、内壁、屋根、2階床を考慮した検討です。
C36: 「Input③その他の荷重入力」で入力した追加荷重は別途（※）印の追加荷重で入力してください。
AH37: 行数 | AI37: =MATCH(AI38,$A$14:$A$32,0) -> 3 | AJ37: ℓ （計算） | AK37: ℓ （採用値） | AL37: =MATCH(AL38,$A$14:$A$32,0) -> 8 | AM37: =MATCH(AM38,$A$14:$A$32,0) -> 9 | AN37: ― | AO37: ― | AP37: =MATCH(AP38,$A$14:$A$32,0) -> 5
B38: 1）横架材間距離 {ℓ = h * 1000 - HG 又は直接入力} | S38: 2）断面二次半径（弱軸） { iy = Bc / √(12) } | AH38: No | AI38: 要否 | AL38: 高さ判定 | AM38: 梁せい等 | AN38: 階高 | AO38: i（弱軸） | AP38: 柱短辺
C39: ="2階"&$K$12 -> 2階外柱 | D39: ℓ2 | E39: = | F39: =IF($K39=0,"",IF(AL39="横架材間","【直接入力】",DispFormula($AJ39))) -> 3.000*1000-105 | J39: = | K39: =IF(AI39=FALSE,0,ROUNDUP(AK39,0)) -> 2895 | M39: (mm) | U39: iy2 | V39: = | W39: =IF($AB39=0,"",DispFormula($AO39)) -> 105/√(12) | AA39: = | AB39: =IF(AI39=FALSE,0,ROUNDDOWN(AO39,2)) -> 30.31 | AD39: (mm) | AH39: 1 | AI39: =HLOOKUP($AH39,List_柱,AI$37,FALSE) -> TRUE | AJ39: =$AN39*1000-$AM39 -> 2895 | AK39: =IF(AL39="横架材間",AM39,AJ39) -> 2895 | AL39: =HLOOKUP($AH39,List_柱,AL$37,FALSE) -> 梁せい | AM39: 105 | AN39: =$AL$23 -> 3 | AO39: =$AP39/SQRT(12) -> 30.31088913 | AP39: =HLOOKUP($AH39,List_柱,AP$37,FALSE) -> 105
C40: ="1階"&$K$12 -> 1階外柱 | D40: ℓ1 | E40: = | F40: =IF($K40=0,"",IF(AL40="横架材間","【直接入力】",DispFormula($AJ40))) -> 3.000*1000-105 | J40: = | K40: =IF(AI40=FALSE,0,ROUNDUP(AK40,0)) -> 2895 | M40: (mm) | U40: iy1 | V40: = | W40: =IF($AB40=0,"",DispFormula($AO40)) -> 120/√(12) | AA40: = | AB40: =IF(AI40=FALSE,0,ROUNDDOWN(AO40,2)) -> 34.64 | AD40: (mm) | AH40: 2 | AI40: =HLOOKUP($AH40,List_柱,AI$37,FALSE) -> TRUE | AJ40: =$AN40*1000-$AM40 -> 2895 | AK40: =IF(AL40="横架材間",AM40,AJ40) -> 2895 | AL40: 梁せい | AM40: 105 | AN40: =$AL$24 -> 3 | AO40: =$AP40/SQRT(12) -> 34.64101615 | AP40: =HLOOKUP($AH40,List_柱,AP$37,FALSE) -> 120
C41: ="2階"&$O$12 -> 2階中柱 | D41: ℓ2 | E41: = | F41: 3.000*1000-105 | J41: = | K41: =IF(AI41=FALSE,0,ROUNDUP(AK41,0)) -> 2895 | M41: (mm) | U41: iy2 | V41: = | W41: =IF($AB41=0,"",DispFormula($AO41)) -> 105/√(12) | AA41: = | AB41: =IF(AI41=FALSE,0,ROUNDDOWN(AO41,2)) -> 30.31 | AD41: (mm) | AH41: 3 | AI41: =HLOOKUP($AH41,List_柱,AI$37,FALSE) -> TRUE | AJ41: =$AN41*1000-$AM41 -> 2895 | AK41: =IF(AL41="横架材間",AM41,AJ41) -> 2895 | AL41: 梁せい | AM41: 105 | AN41: =$AL$23 -> 3 | AO41: =$AP41/SQRT(12) -> 30.31088913 | AP41: =HLOOKUP($AH41,List_柱,AP$37,FALSE) -> 105
C42: ="1階"&$O$12 -> 1階中柱 | D42: ℓ1 | E42: = | F42: 3.000*1000-105 | J42: = | K42: =IF(AI42=FALSE,0,ROUNDUP(AK42,0)) -> 2895 | M42: (mm) | U42: iy1 | V42: = | W42: =IF($AB42=0,"",DispFormula($AO42)) -> 120/√(12) | AA42: = | AB42: =IF(AI42=FALSE,0,ROUNDDOWN(AO42,2)) -> 34.64 | AD42: (mm) | AH42: 4 | AI42: =HLOOKUP($AH42,List_柱,AI$37,FALSE) -> TRUE | AJ42: =$AN42*1000-$AM42 -> 2895 | AK42: =IF(AL42="横架材間",AM42,AJ42) -> 2895 | AL42: 梁せい | AM42: 105 | AN42: =$AL$24 -> 3 | AO42: =$AP42/SQRT(12) -> 34.64101615 | AP42: =HLOOKUP($AH42,List_柱,AP$37,FALSE) -> 120
B44: 3）有効細長比 {λ = ℓ / iy } | S44: 4）有効細長比による必要最小径 { dse = √(12)*ℓ / 150 } | AI44: 細長比 | AJ44: 必要径
C45: ="2階"&$K$12 -> 2階外柱 | D45: λ2 | E45: = | F45: =IF($J45=0,"",DispFormula($AI45)) -> 2895/30.31 | I45: = | J45: =IFERROR(ROUNDUP(AI45,2),0) -> 95.52 | L45: =IF(J45<=M45,"≦",">") -> ≦ | M45: 150 | O45: =IF(J45=0,"",IF(J45<=M45,"【OK】","【NG】")) -> 【OK】 | U45: dse2 | V45: = | W45: =IF($AB45=0,"",DispFormula($AJ45)) -> √(12)*2895/150 | AA45: = | AB45: =ROUNDUP(AJ45,0) -> 67 | AD45: (mm) | AI45: =K39/AB39 -> 95.513032 | AJ45: =SQRT(12)*$K39/150 -> 66.85716117
C46: ="1階"&$K$12 -> 1階外柱 | D46: λ1 | E46: = | F46: =IF($J46=0,"",DispFormula($AI46)) -> 2895/34.64 | I46: = | J46: =IFERROR(ROUNDUP(AI46,2),0) -> 83.58 | L46: =IF(J46<=M46,"≦",">") -> ≦ | M46: 150 | O46: =IF(J46=0,"",IF(J46<=M46,"【OK】","【NG】")) -> 【OK】 | U46: dse1 | V46: = | W46: =IF($AB46=0,"",DispFormula($AJ46)) -> √(12)*2895/150 | AA46: = | AB46: 67 | AD46: (mm) | AI46: =K40/AB40 -> 83.573903 | AJ46: =SQRT(12)*$K40/150 -> 66.85716117
C47: ="2階"&$O$12 -> 2階中柱 | D47: λ2 | E47: = | F47: =IF($J47=0,"",DispFormula($AI47)) -> 2895/30.31 | I47: = | J47: =IFERROR(ROUNDUP(AI47,2),0) -> 95.52 | L47: =IF(J47<=M47,"≦",">") -> ≦ | M47: 150 | O47: =IF(J47=0,"",IF(J47<=M47,"【OK】","【NG】")) -> 【OK】 | U47: dse2 | V47: = | W47: √(12)*2895/150 | AA47: = | AB47: 67 | AD47: (mm) | AI47: =K41/AB41 -> 95.513032 | AJ47: =SQRT(12)*$K41/150 -> 66.85716117
C48: ="1階"&$O$12 -> 1階中柱 | D48: λ1 | E48: = | F48: =IF($J48=0,"",DispFormula($AI48)) -> 2895/34.64 | I48: = | J48: =IFERROR(ROUNDUP(AI48,2),0) -> 83.58 | L48: =IF(J48<=M48,"≦",">") -> ≦ | M48: 150 | O48: =IF(J48=0,"",IF(J48<=M48,"【OK】","【NG】")) -> 【OK】 | U48: dse1 | V48: = | W48: √(12)*2895/150 | AA48: = | AB48: 67 | AD48: (mm) | AI48: =K42/AB42 -> 83.573903 | AJ48: =SQRT(12)*$K42/150 -> 66.85716117 | AN48: =MATCH(AN49,$A$14:$A$32,0) -> 7
AH49: No | AI49: 採用値 | AJ49: （A） | AK49: （B） | AL49: （C） | AM49: λ | AN49: Fc | AQ49: 算定式
B50: 5）座屈の許容応力度の算定 | AJ50: (λ≦30) | AK50: (30＜λ≦100) | AL50: (100＜λ) | AP50: (λ≦30) | AQ50: 1.1/3*Fc
C51: ="2階"&$K$12 -> 2階外柱 | D51: =IF(AB51=0,"",IF(AI51="A",$AJ$50,IF(AI51="B",$AK$50,$AL$50))) -> (30＜λ≦100) | H51: Fk2 | I51: = | J51: =IF(AB51=0,"",IF(AI51="A",$AQ$50,IF(AI51="B",$AQ$51,$AQ$52))) -> 1.1/3*(1.3-0.01*λ)*Fc | Q51: = | R51: =IF(AB51=0,"",IF($AI51="A",DispFormula($AJ51),IF($AI51="B",DispFormula($AK51),DispFormula($AL51)))) -> 1.1/3*(1.3-0.01*95.52)*17.7 | AA51: = | AB51: =IF(AI39=FALSE,0,ROUNDDOWN(IF($AI51="A",$AJ51,IF($AI51="B",$AK51,$AL51)),2)) -> 2.23 | AD51: (N/mm2) | AH51: 1 | AI51: =IF(AM51<=30,"A",IF(AM51<=100,"B","C")) -> B | AJ51: =1.1/3*$AN51 -> 6.49 | AK51: =1.1/3*(1.3-0.01*$AM51)*$AN51 -> 2.237752 | AL51: =1.1/3*3000/($AM51^2)*$AN51 -> 2.133916021 | AM51: =$J45 -> 95.52 | AN51: =HLOOKUP($AH51,List_柱,AN$48,FALSE) -> 17.7 | AP51: (30＜λ≦100) | AQ51: 1.1/3*(1.3-0.01*λ)*Fc
C52: ="1階"&$K$12 -> 1階外柱 | D52: =IF(AB52=0,"",IF(AI52="A",$AJ$50,IF(AI52="B",$AK$50,$AL$50))) -> (30＜λ≦100) | H52: Fk1 | I52: = | J52: =IF(AB52=0,"",IF(AI52="A",$AQ$50,IF(AI52="B",$AQ$51,$AQ$52))) -> 1.1/3*(1.3-0.01*λ)*Fc | Q52: = | R52: =IF(AB52=0,"",IF($AI52="A",DispFormula($AJ52),IF($AI52="B",DispFormula($AK52),DispFormula($AL52)))) -> 1.1/3*(1.3-0.01*83.58)*17.7 | AA52: = | AB52: =IF(AI40=FALSE,0,ROUNDDOWN(IF($AI52="A",$AJ52,IF($AI52="B",$AK52,$AL52)),2)) -> 3.01 | AD52: (N/mm2) | AH52: 2 | AI52: =IF(AM52<=30,"A",IF(AM52<=100,"B","C")) -> B | AJ52: =1.1/3*$AN52 -> 6.49 | AK52: =1.1/3*(1.3-0.01*$AM52)*$AN52 -> 3.012658 | AL52: =1.1/3*3000/($AM52^2)*$AN52 -> 2.787155619 | AM52: =$J46 -> 83.58 | AN52: =HLOOKUP($AH52,List_柱,AN$48,FALSE) -> 17.7 | AP52: (100＜λ) | AQ52: 1.1/3*3000/(λ^2)*Fc
C53: ="2階"&$O$12 -> 2階中柱 | D53: =IF(AB53=0,"",IF(AI53="A",$AJ$50,IF(AI53="B",$AK$50,$AL$50))) -> (30＜λ≦100) | H53: Fk2 | I53: = | J53: =IF(AB53=0,"",IF(AI53="A",$AQ$50,IF(AI53="B",$AQ$51,$AQ$52))) -> 1.1/3*(1.3-0.01*λ)*Fc | Q53: = | R53: =IF(AB53=0,"",IF($AI53="A",DispFormula($AJ53),IF($AI53="B",DispFormula($AK53),DispFormula($AL53)))) -> 1.1/3*(1.3-0.01*95.52)*17.7 | AA53: = | AB53: =IF(AI41=FALSE,0,ROUNDDOWN(IF($AI53="A",$AJ53,IF($AI53="B",$AK53,$AL53)),2)) -> 2.23 | AD53: (N/mm2) | AH53: 3 | AI53: B | AJ53: =1.1/3*$AN53 -> 6.49 | AK53: =1.1/3*(1.3-0.01*$AM53)*$AN53 -> 2.237752 | AL53: =1.1/3*3000/($AM53^2)*$AN53 -> 2.133916021 | AM53: =$J47 -> 95.52 | AN53: =HLOOKUP($AH53,List_柱,AN$48,FALSE) -> 17.7
C54: ="1階"&$O$12 -> 1階中柱 | D54: =IF(AB54=0,"",IF(AI54="A",$AJ$50,IF(AI54="B",$AK$50,$AL$50))) -> (30＜λ≦100) | H54: Fk1 | I54: = | J54: =IF(AB54=0,"",IF(AI54="A",$AQ$50,IF(AI54="B",$AQ$51,$AQ$52))) -> 1.1/3*(1.3-0.01*λ)*Fc | Q54: = | R54: =IF(AB54=0,"",IF($AI54="A",DispFormula($AJ54),IF($AI54="B",DispFormula($AK54),DispFormula($AL54)))) -> 1.1/3*(1.3-0.01*83.58)*17.7 | AA54: = | AB54: =IF(AI42=FALSE,0,ROUNDDOWN(IF($AI54="A",$AJ54,IF($AI54="B",$AK54,$AL54)),2)) -> 3.01 | AD54: (N/mm2) | AH54: 4 | AI54: =IF(AM54<=30,"A",IF(AM54<=100,"B","C")) -> B | AJ54: =1.1/3*$AN54 -> 6.49 | AK54: =1.1/3*(1.3-0.01*$AM54)*$AN54 -> 3.012658 | AL54: =1.1/3*3000/($AM54^2)*$AN54 -> 2.787155619 | AM54: =$J48 -> 83.58 | AN54: =HLOOKUP($AH54,List_柱,AN$48,FALSE) -> 17.7
B57: 6）等分布荷重による柱の軸力（屋根、2階床、内壁、追加等分布荷重を考慮）
B58: 【算定式】 | E58: NW2 = {(W2-4+ω8/2+ωC2)*Ae2}/1000 | AJ58: =MATCH(AJ59,$A$14:$A$32,0) -> 14 | AK58: =MATCH(AK59,$A$14:$A$32,0) -> 15 | AL58: =MATCH(AL59,$A$14:$A$32,0) -> 16 | AM58: =MATCH(AM59,$A$14:$A$32,0) -> 17
E59: NW1 = {(W2-4+ω8+ωC2)*Ae2+(W2-5+ω8/2+ωC1)*Ae1}/1000 | AH59: No | AI59: Wc | AJ59: 2階Ae | AK59: 1階Ae | AL59: R階ω | AM59: 2階ω
C60: ="2階"&$K$12 -> 2階外柱 | D60: NW2 | E60: = | F60: =IF($W60=0,"",DispFormula($AI60)) -> (1068 +350 /2+0)*5.00/1000 | V60: = | W60: =IF(AI39=FALSE,0,ROUNDUP(AI60,2)) -> 6.22 | Y60: (kN) | AH60: 1 | AI60: =($AL$18+$AL$17/2+$AL60)*$AJ60/1000 -> 6.215 | AJ60: =HLOOKUP($AH60,List_柱,AJ$58,FALSE) -> 5 | AL60: 0
C61: ="1階"&$K$12 -> 1階外柱 | D61: NW1 | E61: = | F61: =IF($W61=0,"",DispFormula($AI61)) -> ((1068 +350 +0)*5.00+(1950 +350 /2+0)*5.00)/1000 | V61: = | W61: =IF(AI40=FALSE,0,ROUNDUP(AI61,2)) -> 17.72 | Y61: (kN) | AH61: 2 | AI61: =(($AL$18+$AL$17+$AL61)*AJ61+($AL$19+$AL$17/2+$AM61)*$AK61)/1000 -> 17.715 | AJ61: 5 | AK61: 5 | AL61: 0 | AM61: 0
C62: ="2階"&$O$12 -> 2階中柱 | D62: NW2 | E62: = | F62: =IF($W62=0,"",DispFormula($AI62)) -> (1068 +350 /2+0)*5.00/1000 | V62: = | W62: =IF(AI41=FALSE,0,ROUNDUP(AI62,2)) -> 6.22 | Y62: (kN) | AH62: 3 | AI62: =($AL$18+$AL$17/2+$AL62)*$AJ62/1000 -> 6.215 | AJ62: 5 | AL62: 0
C63: ="1階"&$O$12 -> 1階中柱 | D63: NW1 | E63: = | F63: =IF($W63=0,"",DispFormula($AI63)) -> ((1068 +350 +0)*5.00+(1950 +350 /2+0)*5.00)/1000 | V63: = | W63: =IF(AI42=FALSE,0,ROUNDUP(AI63,2)) -> 17.72 | Y63: (kN) | AH63: 4 | AI63: =(($AL$18+$AL$17+$AL63)*AJ63+($AL$19+$AL$17/2+$AM63)*$AK63)/1000 -> 17.715 | AJ63: 5 | AK63: 5 | AL63: 0 | AM63: 0
B66: 7）外壁・追加集中荷重による柱の軸力
B67: 【算定式】 | E67: NP2 = (ωO1*HO*LO2+ωO2*h2/2*LO2)/1000+Pc | Z67: 【座屈検討時の係数】 | AH67: 行数 | AI67: ― | AJ67: ― | AK67: ― | AL67: =MATCH(AL68,$A$14:$A$32,0) -> 10 | AM67: 11 | AN67: 12 | AO67: 13 | AP67: 18 | AQ67: 7
E68: NP1 = {ωO1*HO*LO2+ωO2*(h2*LO2+h1/2*LO1)}/1000+Pc | Y68: γ=(NP+NW)*1000/(1.1/3*Fc) | AH68: No | AI68: Pc | AJ68: 係数 | AK68: 階高 | AL68: 軒算定 | AM68: 軒上 | AN68: 2階Lo | AO68: 1階Lo | AP68: 追加Pc | AQ68: Fc
C69: ="2階"&$K$12 -> 2階外柱 | D69: NP2 | E69: = | F69: =IF($W69=0,"【該当無し】",DispFormula($AI69)) -> (720 *1.500*1.82+692 *3.000/2*1.82)/1000+0.00 | V69: = | W69: =IF($AI39=FALSE,0,ROUNDUP($AI69,2)) -> 3.86 | Y69: (kN) | AA69: （ | AB69: =IFERROR(IF($AI39=FALSE,0,ROUND($AJ69,0)),"") -> 1553 | AD69: ） | AH69: 1 | AI69: =($AL$20*AM69*$AN69+$AL$21*$AK69/2*$AN69)/1000+$AP69 -> 3.85476 | AJ69: =($W69+$W60)*1000/(1.1/3*$AQ69) -> 1553.158706 | AK69: =AN39 -> 3 | AL69: =HLOOKUP($AH69,List_柱,AL$67,FALSE) -> 自動計算 | AM69: =IF($AL69="直接入力",HLOOKUP($AH69,List_柱,AM$67,FALSE),$AL$22) -> 1.5 | AN69: =HLOOKUP($AH69,List_柱,AN$67,FALSE) -> 1.82 | AP69: 0 | AQ69: 17.7
C70: ="1階"&$K$12 -> 1階外柱 | D70: NP1 | E70: = | F70: =IF($W70=0,"【該当無し】",DispFormula($AI70)) -> (720 *1.500*1.82+692 *(3.000*1.82+3.000/2*1.82))/1000+0.00 | V70: = | W70: =IF($AI40=FALSE,0,ROUNDUP($AI70,2)) -> 7.64 | Y70: (kN) | AA70: （ | AB70: =IFERROR(IF($AI40=FALSE,0,ROUND($AJ70,0)),"") -> 3908 | AD70: ） | AH70: 2 | AI70: =($AL$20*$AM70*$AN70+$AL$21*(AK69*$AN70+$AK70/2*$AO70))/1000+$AP70 -> 7.63308 | AJ70: =($W70+$W61)*1000/(1.1/3*$AQ70) -> 3907.550077 | AK70: =AN40 -> 3 | AL70: 自動計算 | AM70: =IF($AL70="直接入力",HLOOKUP($AH70,List_柱,AM$67,FALSE),$AL$22) -> 1.5 | AN70: 1.82 | AO70: 1.82 | AP70: 0 | AQ70: 17.7
C71: ="2階"&$O$12 -> 2階中柱 | D71: NP2 | E71: = | F71: 【該当無し】 | V71: = | W71: =IF($AI41=FALSE,0,ROUNDUP($AI71,2)) -> 0 | Y71: (kN) | AA71: （ | AB71: 958 | AD71: ） | AH71: 3 | AI71: =($AL$20*AM71*$AN71+$AL$21*$AK71/2*$AN71)/1000+$AP71 -> 0 | AJ71: =($W71+$W62)*1000/(1.1/3*$AQ71) -> 958.3975347 | AK71: =AN41 -> 3 | AL71: 直接入力 | AM71: =IF($AL71="直接入力",HLOOKUP($AH71,List_柱,AM$67,FALSE),$AL$22) -> 0 | AN71: 0 | AP71: 0 | AQ71: 17.7
C72: ="1階"&$O$12 -> 1階中柱 | D72: NP1 | E72: = | F72: 【該当無し】 | V72: = | W72: =IF($AI42=FALSE,0,ROUNDUP($AI72,2)) -> 0 | Y72: (kN) | AA72: （ | AB72: 2730 | AD72: ） | AH72: 4 | AI72: =($AL$20*$AM72*$AN72+$AL$21*(AK71*$AN72+$AK72/2*$AO72))/1000+$AP72 -> 0 | AJ72: =($W72+$W63)*1000/(1.1/3*$AQ72) -> 2730.354391 | AK72: =AN42 -> 3 | AL72: 直接入力 | AM72: =IF($AL72="直接入力",HLOOKUP($AH72,List_柱,AM$67,FALSE),$AL$22) -> 0 | AN72: 0 | AO72: 0 | AP72: 0 | AQ72: 17.7
AH73: 行数 | AI73: ― | AJ73: =MATCH(AJ74,$A$14:$A$32,0) -> 19
B74: 8）柱の応力度 { σc = (NP+NW)*1000 )/ (Ac*100) } | V74: 【許容座屈応力度】 | AA74: 【検定比】 | AH74: No | AI74: σ | AJ74: 柱断面
C75: ="2階"&$K$12 -> 2階外柱 | D75: σC2 | E75: = | F75: =IF($P75=0,"",DispFormula($AI75)) -> (3.86+6.22)*1000/(110.25*100) | O75: = | P75: =IFERROR(ROUNDUP(AI75,2),0) -> 0.92 | R75: (N/mm2) | U75: =IF(P75<=V75,"≦",">") -> ≦ | V75: =$AB51 -> 2.23 | X75: (N/mm2) | Z75: （ | AA75: =IFERROR(ROUNDUP(P75/V75,2),"") -> 0.42 | AC75: ） | AD75: =IF(P75=0,"",IF(P75<=V75,"【OK】","【NG】")) -> 【OK】 | AH75: 1 | AI75: =($W69+W60)*1000/($AJ75*100) -> 0.9142857143 | AJ75: =HLOOKUP($AH75,List_柱,AJ$73,FALSE) -> 110.25
C76: ="1階"&$K$12 -> 1階外柱 | D76: σC1 | E76: = | F76: =IF($P76=0,"",DispFormula($AI76)) -> (7.64+17.72)*1000/(144.00*100) | O76: = | P76: =IFERROR(ROUNDUP(AI76,2),0) -> 1.77 | R76: (N/mm2) | U76: =IF(P76<=V76,"≦",">") -> ≦ | V76: =$AB52 -> 3.01 | X76: (N/mm2) | Z76: （ | AA76: =IFERROR(ROUNDUP(P76/V76,2),"") -> 0.59 | AC76: ） | AD76: =IF(P76=0,"",IF(P76<=V76,"【OK】","【NG】")) -> 【OK】 | AH76: 2 | AI76: =($W70+W61)*1000/($AJ76*100) -> 1.761111111 | AJ76: =HLOOKUP($AH76,List_柱,AJ$73,FALSE) -> 144
C77: ="2階"&$O$12 -> 2階中柱 | D77: σC2 | E77: = | F77: =IF($P77=0,"",DispFormula($AI77)) -> (0.00+6.22)*1000/(110.25*100) | O77: = | P77: =IFERROR(ROUNDUP(AI77,2),0) -> 0.57 | R77: (N/mm2) | U77: =IF(P77<=V77,"≦",">") -> ≦ | V77: =$AB53 -> 2.23 | X77: (N/mm2) | Z77: （ | AA77: =IFERROR(ROUNDUP(P77/V77,2),"") -> 0.26 | AC77: ） | AD77: =IF(P77=0,"",IF(P77<=V77,"【OK】","【NG】")) -> 【OK】 | AH77: 3 | AI77: =($W71+W62)*1000/($AJ77*100) -> 0.5641723356 | AJ77: =HLOOKUP($AH77,List_柱,AJ$73,FALSE) -> 110.25
C78: ="1階"&$O$12 -> 1階中柱 | D78: σC1 | E78: = | F78: =IF($P78=0,"",DispFormula($AI78)) -> (0.00+17.72)*1000/(144.00*100) | O78: = | P78: =IFERROR(ROUNDUP(AI78,2),0) -> 1.24 | R78: (N/mm2) | U78: =IF(P78<=V78,"≦",">") -> ≦ | V78: =$AB54 -> 3.01 | X78: (N/mm2) | Z78: （ | AA78: =IFERROR(ROUNDUP(P78/V78,2),"") -> 0.42 | AC78: ） | AD78: =IF(P78=0,"",IF(P78<=V78,"【OK】","【NG】")) -> 【OK】 | AH78: 4 | AI78: =($W72+W63)*1000/($AJ78*100) -> 1.230555556 | AJ78: =HLOOKUP($AH78,List_柱,AJ$73,FALSE) -> 144
B80: 9）柱の応力度による必要最小径
B81: 【算定式】 | D81: (100＜λ') | I81: dbe | J81: = | K81: {12*ℓ2/3000*γ}(1/4) | T81: ※ | U81: γは 7) 参照 { γ=(NP+NW)*1000/(1.1/3*Fc) }
D82: (30＜λ'≦100) | I82: dbe | J82: = | K82: ℓ/75.05+√{(ℓ/75.05)2+1/1.3*γ} | AH82: No | AI82: 採用値 | AJ82: 必要最小径 | AM82: 有効細長比 | AP82: 横架材間距離
D83: (λ'≦30) | I83: dbe | J83: = | K83: √(γ) | AB83: 【有効細長比λ'】 | AJ83: (A)λ≦30 | AK83: (B)30＜λ≦100 | AL83: (C)100＜λ | AM83: (λ'≦30) | AN83: (30＜λ'≦100) | AO83: (100＜λ')
C84: ="2階"&$K$12 -> 2階外柱 | D84: =IF(W84=0,"",IF(AI84="A",$AM$83,IF(AI84="B",$AN$83,$AO$83))) -> (100＜λ') | I84: dbe2 | J84: = | K84: =IF(W84=0,"",IF($AI84="A",DispFormula($AJ84),IF($AI84="B",DispFormula($AK84),DispFormula($AL84)))) -> ((12*2895^2)/3000*1553)^(1/4) | V84: = | W84: =IFERROR(ROUNDUP(IF($AI84="A",$AJ84,IF($AI84="B",$AK84,$AL84)),0),0) -> 85 | Y84: (mm) | AB84: （ | AC84: =IFERROR(SQRT(12)*AP84/W84,0) -> 117.9832256 | AE84: ） | AH84: 1 | AI84: =IF(AM84<=30,"A",IF(AN84<=100,"B","C")) -> C | AJ84: =SQRT(AB69) -> 39.40812099 | AK84: =AP84/75.05+SQRT((AP84/75.05)^2+1/1.3*AB69) -> 90.3680166 | AL84: =((12*AP84^2)/3000*AB69)^(1/4) -> 84.94389004 | AM84: =SQRT(12)*AP84/ROUNDUP(AJ84,0) -> 250.7143544 | AN84: =SQRT(12)*AP84/ROUNDUP(AK84,0) -> 110.2041118 | AO84: =SQRT(12)*AP84/ROUNDUP(AL84,0) -> 117.9832256 | AP84: =$K39 -> 2895
C85: ="1階"&$K$12 -> 1階外柱 | D85: =IF(W85=0,"",IF(AI85="A",$AM$83,IF(AI85="B",$AN$83,$AO$83))) -> (30＜λ'≦100) | I85: dbe1 | J85: = | K85: 2895/75.05+√((2895/75.05)^2+1/1.3*3908) | V85: = | W85: =IFERROR(ROUNDUP(IF($AI85="A",$AJ85,IF($AI85="B",$AK85,$AL85)),0),0) -> 106 | Y85: (mm) | AB85: （ | AC85: =IFERROR(SQRT(12)*AP85/W85,0) -> 94.60919034 | AE85: ） | AH85: 2 | AI85: =IF(AM85<=30,"A",IF(AN85<=100,"B","C")) -> B | AJ85: =SQRT(AB70) -> 62.51399843 | AK85: =AP85/75.05+SQRT((AP85/75.05)^2+1/1.3*AB70) -> 105.6125506 | AL85: =((12*AP85^2)/3000*AB70)^(1/4) -> 106.986239 | AM85: =SQRT(12)*AP85/ROUNDUP(AJ85,0) -> 159.1837171 | AN85: =SQRT(12)*AP85/ROUNDUP(AK85,0) -> 94.60919034 | AO85: =SQRT(12)*AP85/ROUNDUP(AL85,0) -> 93.7249923 | AP85: =$K40 -> 2895
C86: ="2階"&$O$12 -> 2階中柱 | D86: =IF(W86=0,"",IF(AI86="A",$AM$83,IF(AI86="B",$AN$83,$AO$83))) -> (100＜λ') | I86: dbe2 | J86: = | K86: ((12*2895^2)/3000*958)^(1/4) | V86: = | W86: =IFERROR(ROUNDUP(IF($AI86="A",$AJ86,IF($AI86="B",$AK86,$AL86)),0),0) -> 76 | Y86: (mm) | AB86: （ | AC86: =IFERROR(SQRT(12)*AP86/W86,0) -> 131.9549234 | AE86: ） | AH86: 3 | AI86: =IF(AM86<=30,"A",IF(AN86<=100,"B","C")) -> C | AJ86: =SQRT(AB71) -> 30.95157508 | AK86: =AP86/75.05+SQRT((AP86/75.05)^2+1/1.3*AB71) -> 85.74311301 | AL86: =((12*AP86^2)/3000*AB71)^(1/4) -> 75.28018178 | AM86: =SQRT(12)*AP86/ROUNDUP(AJ86,0) -> 323.5023928 | AN86: =SQRT(12)*AP86/ROUNDUP(AK86,0) -> 116.6113276 | AO86: =SQRT(12)*AP86/ROUNDUP(AL86,0) -> 131.9549234 | AP86: =$K41 -> 2895
C87: ="1階"&$O$12 -> 1階中柱 | D87: =IF(W87=0,"",IF(AI87="A",$AM$83,IF(AI87="B",$AN$83,$AO$83))) -> (100＜λ') | I87: dbe1 | J87: = | K87: ((12*2895^2)/3000*2730)^(1/4) | V87: = | W87: =IFERROR(ROUNDUP(IF($AI87="A",$AJ87,IF($AI87="B",$AK87,$AL87)),0),0) -> 98 | Y87: (mm) | AB87: （ | AC87: =IFERROR(SQRT(12)*AP87/W87,0) -> 102.3323895 | AE87: ） | AH87: 4 | AI87: =IF(AM87<=30,"A",IF(AN87<=100,"B","C")) -> C | AJ87: =SQRT(AB72) -> 52.24940191 | AK87: =AP87/75.05+SQRT((AP87/75.05)^2+1/1.3*AB72) -> 98.47399476 | AL87: =((12*AP87^2)/3000*AB72)^(1/4) -> 97.80925335 | AM87: =SQRT(12)*AP87/ROUNDUP(AJ87,0) -> 189.2183807 | AN87: 101.298729 | AO87: =SQRT(12)*AP87/ROUNDUP(AL87,0) -> 102.3323895 | AP87: =$K42 -> 2895
B89: Output② 柱の必要最小径の算定（※正方形断面の場合） | AH89: No | AI89: 必要径 | AJ89: λ小径 | AK89: de/ℓ
C90: ="2階"&$K$12 -> 2階外柱 | E90: de2 | F90: = | G90: max(dse, dbe) | K90: = | L90: =DispFormula(AI90) -> MAX(67,85) | P90: = | Q90: =ROUNDUP(AI90,0) -> 85 | S90: (mm) | W90: de2/ℓ2 | X90: = | Y90: =IFERROR(DispFormula(AK90),"") -> 85/2895 | AB90: = | AC90: =IFERROR("1/"&ROUNDUP(1/AK90,0),"") -> 1/35 | AH90: 1 | AI90: =MAX(AJ90,W84) -> 85 | AJ90: =$AB45 -> 67 | AK90: =Q90/K39 -> 0.02936096718
C91: ="1階"&$K$12 -> 1階外柱 | E91: de1 | F91: = | G91: max(dse, dbe) | K91: = | L91: =DispFormula(AI91) -> MAX(67,106) | P91: = | Q91: =ROUNDUP(AI91,0) -> 106 | S91: (mm) | W91: de1/ℓ1 | X91: = | Y91: =IFERROR(DispFormula(AK91),"") -> 106/2895 | AB91: = | AC91: =IFERROR("1/"&ROUNDUP(1/AK91,0),"") -> 1/28 | AH91: 2 | AI91: =MAX(AJ91,W85) -> 106 | AJ91: =$AB46 -> 67 | AK91: =Q91/K40 -> 0.0366148532
C92: ="2階"&$O$12 -> 2階中柱 | E92: de2 | F92: = | G92: max(dse, dbe) | K92: = | L92: =DispFormula(AI92) -> MAX(67,76) | P92: = | Q92: =ROUNDUP(AI92,0) -> 76 | S92: (mm) | W92: de2/ℓ2 | X92: = | Y92: 76/2895 | AB92: = | AC92: 1/39 | AH92: 3 | AI92: =MAX(AJ92,W86) -> 76 | AJ92: =$AB47 -> 67 | AK92: 0.02625215889
C93: ="1階"&$O$12 -> 1階中柱 | E93: de1 | F93: = | G93: max(dse, dbe) | K93: = | L93: =DispFormula(AI93) -> MAX(67,98) | P93: = | Q93: =ROUNDUP(AI93,0) -> 98 | S93: (mm) | W93: de1/ℓ1 | X93: = | Y93: 98/2895 | AB93: = | AC93: 1/30 | AH93: 4 | AI93: =MAX(AJ93,W87) -> 98 | AJ93: =$AB48 -> 67 | AK93: =Q93/K42 -> 0.03385146805
B95: Output③ 柱の最大負担面積の算定（※2階と1階の柱が同じ負担面積であると仮定したときの最大負担面積を算定します。） | AI95: 分布荷重
F96: 2階柱の等分布荷重： | G96: Σω2 | I96: = | J96: W2-4+ω8/2 | P96: = | Q96: =IF($Y96=0,"",DispFormula($AI96)) ->  | X96: = | Y96: =ROUNDUP($AI96,0) ->  | AA96: (N/mm2) | AI96: =#REF!+#REF!/2 -> 
F97: 1階柱の等分布荷重： | G97: Σω1 | I97: = | J97: W2-4+W2-5+ω8*(1+1/2) | P97: = | Q97: =IF($Y97=0,"",DispFormula($AI97)) ->  | X97: = | Y97: =ROUNDUP($AI97,0) ->  | AA97: (N/mm2) | AI97: =#REF!+#REF!+#REF!*(1+1/2) -> 
B99: 【算定式】 | D99: (100＜λ) | I99: Ae_max | J99: = | K99: (1.1/3*Fc*Ac*100*3000/λ2-Pc*1000)/(Σω+Σωc) | AH99: 行数 | AI99: ― | AJ99: ― | AK99: ― | AL99: ― | AM99: ― | AN99: 7 | AO99: 17 | AR99: 14 | AS99: 15
D100: (30＜λ≦100) | I100: Ae_max | J100: = | K100: {1.1/3*Fc*Ac*100*(1.3-0.01*λ)-Pc*1000}/(Σω+Σωc) | AH100: No | AI100: 採用値 | AJ100: 最大負担面積 | AM100: λ | AN100: Fc | AO100: 柱断面 | AP100: Pc | AQ100: Σω | AR100: 2階ωc | AS100: 1階ωc | AT100: 係数（参考）
D101: (λ≦30) | I101: Ae_max | J101: = | K101: (1.1/3*Fc*Ac*100-Pc*1000)/(Σω+Σωc) | AJ101: (A)λ≦30 | AK101: (B)30＜λ≦100 | AL101: (C)100＜λ | AT101: λ≦30 | AU101: 30＜λ≦100 | AV101: 100＜λ
C102: 2階外柱 | D102: =IF(AC102=0,"",IF($AM102>150,"【有効細長比NG】",IF(AI102="A",$AJ$50,IF(AI102="B",$AK$50,$AL$50)))) ->  | I102: Ae_max2 | J102: = | K102: =IF(AC102=0,"",IF($AI102="A",DispFormula($AJ102),IF($AI102="B",DispFormula($AK102),DispFormula($AL102)))) ->  | AB102: = | AC102: =IF($AI39=FALSE,0,ROUNDDOWN(IF($AI102="A",$AJ102,IF($AI102="B",$AK102,$AL102)),3)) ->  | AE102: (㎡) | AH102: 1 | AI102: =IF(AM102<=30,"A",IF(AM102<=100,"B","C")) -> B | AJ102: =(1.1/3*$AN102*$AO102*100-AP102*1000)/($AQ102+AR102) ->  | AK102: =(1.1/3*$AN102*$AO102*100*(1.3-0.01*$AM102)-$AP102*1000)/($AQ102+AR102) ->  | AL102: =(1.1/3*$AN102*$AO102*100*3000/($AM102^2)-$AP102*1000)/($AQ102+AR102) ->  | AM102: =$J45 -> 95.52 | AN102: =HLOOKUP($AH102,List_柱,AN$99,FALSE) -> 17.7 | AP102: =$W69 -> 3.86 | AQ102: =$Y$96 ->  | AR102: =HLOOKUP($AH102,List_柱,AR$99,FALSE) -> 5 | AT102: =1 -> 1 | AU102: =(1.3-0.01*$AM102) -> 0.3448 | AV102: =3000/($AM102^2) -> 0.3288006195
C103: 1階外柱 | D103: =IF(AC103=0,"",IF($AM103>150,"【有効細長比NG】",IF(AI103="A",$AJ$50,IF(AI103="B",$AK$50,$AL$50)))) ->  | I103: Ae_max1 | J103: = | K103: =IF(AC103=0,"",IF($AI103="A",DispFormula($AJ103),IF($AI103="B",DispFormula($AK103),DispFormula($AL103)))) ->  | AB103: = | AC103: =IF($AI40=FALSE,0,ROUNDDOWN(IF($AI103="A",$AJ103,IF($AI103="B",$AK103,$AL103)),3)) ->  | AE103: (㎡) | AH103: 2 | AI103: =IF(AM103<=30,"A",IF(AM103<=100,"B","C")) -> B | AJ103: =(1.1/3*$AN103*$AO103*100-AP103*1000)/($AQ103+AR103+AS103) ->  | AK103: =(1.1/3*$AN103*$AO103*100*(1.3-0.01*$AM103)-$AP103*1000)/($AQ103+AR103+AS103) ->  | AL103: =(1.1/3*$AN103*$AO103*100*3000/($AM103^2)-$AP103*1000)/($AQ103+AR103+AS103) ->  | AM103: =$J46 -> 83.58 | AN103: 17.7 | AO103: 0 | AP103: =$W70 -> 7.64 | AQ103: =$Y$97 ->  | AR103: 5 | AS103: 5 | AT103: =1 -> 1 | AU103: =(1.3-0.01*$AM103) -> 0.4642 | AV103: =3000/($AM103^2) -> 0.4294538704
C104: 2階中柱 | D104: =IF(AC104=0,"",IF($AM104>150,"【有効細長比NG】",IF(AI104="A",$AJ$50,IF(AI104="B",$AK$50,$AL$50)))) ->  | I104: Ae_max2 | J104: = | K104: =IF(AC104=0,"",IF($AI104="A",DispFormula($AJ104),IF($AI104="B",DispFormula($AK104),DispFormula($AL104)))) ->  | AB104: = | AC104: =IF($AI41=FALSE,0,ROUNDDOWN(IF($AI104="A",$AJ104,IF($AI104="B",$AK104,$AL104)),3)) ->  | AE104: (㎡) | AH104: 3 | AI104: =IF(AM104<=30,"A",IF(AM104<=100,"B","C")) -> B | AJ104: =(1.1/3*$AN104*$AO104*100-AP104*1000)/($AQ104+AR104) ->  | AK104: =(1.1/3*$AN104*$AO104*100*(1.3-0.01*$AM104)-$AP104*1000)/($AQ104+AR104) ->  | AL104: =(1.1/3*$AN104*$AO104*100*3000/($AM104^2)-$AP104*1000)/($AQ104+AR104) ->  | AM104: =$J47 -> 95.52 | AN104: 17.7 | AP104: =$W71 -> 0 | AQ104: =$Y$96 ->  | AR104: 5 | AT104: =1 -> 1 | AU104: =(1.3-0.01*$AM104) -> 0.3448 | AV104: =3000/($AM104^2) -> 0.3288006195
C105: 1階中柱 | D105: =IF(AC105=0,"",IF($AM105>150,"【有効細長比NG】",IF(AI105="A",$AJ$50,IF(AI105="B",$AK$50,$AL$50)))) ->  | I105: Ae_max1 | J105: = | K105: =IF(AC105=0,"",IF($AI105="A",DispFormula($AJ105),IF($AI105="B",DispFormula($AK105),DispFormula($AL105)))) ->  | AB105: = | AC105: =IF($AI42=FALSE,0,ROUNDDOWN(IF($AI105="A",$AJ105,IF($AI105="B",$AK105,$AL105)),3)) ->  | AE105: (㎡) | AH105: 4 | AI105: =IF(AM105<=30,"A",IF(AM105<=100,"B","C")) -> B | AJ105: =(1.1/3*$AN105*$AO105*100-AP105*1000)/($AQ105+AR105+AS105) ->  | AK105: =(1.1/3*$AN105*$AO105*100*(1.3-0.01*$AM105)-$AP105*1000)/($AQ105+AR105+AS105) ->  | AL105: =(1.1/3*$AN105*$AO105*100*3000/($AM105^2)-$AP105*1000)/($AQ105+AR105+AS105) ->  | AM105: =$J48 -> 83.58 | AN105: 17.7 | AO105: 0 | AP105: =$W72 -> 0 | AQ105: =$Y$97 ->  | AR105: 5 | AS105: 5 | AT105: =1 -> 1 | AU105: =(1.3-0.01*$AM105) -> 0.4642 | AV105: =3000/($AM105^2) -> 0.4294538704
B107: Output③ 柱の算定結果一覧
B109: No | C109: 柱種類 | E109: 階 | G109: 柱符号 | I109: 柱短辺 | K109: 基準強度 | M109: 細長比 | O109: 座屈許容応力度 | R109: 圧縮応力度 | U109: 検定比 | W109: 判定 | Y109: 必要最小径
I110: Bc | K110: Fc | M110: λ | O110: Fk | R110: σC | Y110: dse | AA110: dbe | AC110: de | AH110: 行数 | AI110: =MATCH(AI111,$A$14:$A$32,0) -> 3 | AJ110: =MATCH(AJ111,$A$14:$A$32,0) -> 4 | AK110: =MATCH(AK111,$A$14:$A$32,0) -> 5 | AL110: =MATCH(AL111,$A$14:$A$32,0) -> 7
I111: (mm) | K111: (N/mm2) | M111: (―) | O111: (N/mm2) | R111: (N/mm2) | Y111: (mm) | AA111: (mm) | AC111: (mm) | AH111: No | AI111: 要否 | AJ111: 符号 | AK111: 柱短辺 | AL111: Fc
B112: =AH112 -> 1 | C112: =$K$12 -> 外柱 | E112: 2階 | G112: =IF($AI112=TRUE,AJ112,"―") -> C2o | I112: =IF($AI112=TRUE,AK112,"―") -> 105 | K112: =IF($AI112=TRUE,AL112,"―") -> 17.7 | M112: =IF($AI112=TRUE,J45,"―") -> 95.52 | O112: =IF($AI112=TRUE,AB51,"―") -> 2.23 | R112: =IF($AI112=TRUE,P75,"―") -> 0.92 | U112: =IF($AI112=TRUE,AA75,"―") -> 0.42 | W112: =IF($AI112=TRUE,IF(AND(R112>0,O112>=R112,M112<=150),"【OK】","【NG】"),"―") -> 【OK】 | Y112: =IF($AI112=TRUE,AB45,"―") -> 67 | AA112: =IF($AI112=TRUE,W84,"―") -> 85 | AC112: =IF($AI112=TRUE,Q90,"―") -> 85 | AH112: 1 | AI112: =HLOOKUP($AH112,List_柱,AI$110,FALSE) -> TRUE | AJ112: C2o | AK112: 105 | AL112: 17.7
B113: =AH113 -> 2 | C113: =$K$12 -> 外柱 | E113: 1階 | G113: =IF($AI113=TRUE,AJ113,"―") -> C1o | I113: =IF($AI113=TRUE,AK113,"―") -> 120 | K113: =IF($AI113=TRUE,AL113,"―") -> 17.7 | M113: =IF($AI113=TRUE,J46,"―") -> 83.58 | O113: =IF($AI113=TRUE,AB52,"―") -> 3.01 | R113: =IF($AI113=TRUE,P76,"―") -> 1.77 | U113: =IF($AI113=TRUE,AA76,"―") -> 0.59 | W113: =IF($AI113=TRUE,IF(AND(R113>0,O113>=R113,M113<=150),"【OK】","【NG】"),"―") -> 【OK】 | Y113: =IF($AI113=TRUE,AB46,"―") -> 67 | AA113: =IF($AI113=TRUE,W85,"―") -> 106 | AC113: =IF($AI113=TRUE,Q91,"―") -> 106 | AH113: 2 | AI113: TRUE | AJ113: C1o | AK113: 120 | AL113: 17.7
B114: =AH114 -> 3 | C114: =$O$12 -> 中柱 | E114: 2階 | G114: =IF($AI114=TRUE,AJ114,"―") -> C2i | I114: =IF($AI114=TRUE,AK114,"―") -> 105 | K114: =IF($AI114=TRUE,AL114,"―") -> 17.7 | M114: =IF($AI114=TRUE,J47,"―") -> 95.52 | O114: =IF($AI114=TRUE,AB53,"―") -> 2.23 | R114: =IF($AI114=TRUE,P77,"―") -> 0.57 | U114: =IF($AI114=TRUE,AA77,"―") -> 0.26 | W114: 【OK】 | Y114: =IF($AI114=TRUE,AB47,"―") -> 67 | AA114: =IF($AI114=TRUE,W86,"―") -> 76 | AC114: =IF($AI114=TRUE,Q92,"―") -> 76 | AH114: 3 | AI114: TRUE | AJ114: C2i | AK114: 105 | AL114: 17.7
B115: =AH115 -> 4 | C115: =$O$12 -> 中柱 | E115: 1階 | G115: =IF($AI115=TRUE,AJ115,"―") -> C1i | I115: =IF($AI115=TRUE,AK115,"―") -> 120 | K115: =IF($AI115=TRUE,AL115,"―") -> 17.7 | M115: =IF($AI115=TRUE,J48,"―") -> 83.58 | O115: =IF($AI115=TRUE,AB54,"―") -> 3.01 | R115: =IF($AI115=TRUE,P78,"―") -> 1.24 | U115: =IF($AI115=TRUE,AA78,"―") -> 0.42 | W115: 【OK】 | Y115: =IF($AI115=TRUE,AB48,"―") -> 67 | AA115: =IF($AI115=TRUE,W87,"―") -> 98 | AC115: =IF($AI115=TRUE,Q93,"―") -> 98 | AH115: 4 | AI115: TRUE | AJ115: C1i | AK115: 120 | AL115: 17.7
B118: （参考）柱の小径の算定【H12国交告第1349号第1第1項 】 | O118: de = (0.027 + 22.5・Wd／ℓ2)・ℓ | AI118: 生値
C119: 2階柱 | E119: de2 | F119: = | G119: =DispFormula(AI119) -> (0.027+22.5*3.86/2895^2)*2895 | O119: = | P119: =ROUNDUP(AI119,1) -> 78.2 | R119: (mm) | U119: ≦ | V119: =$AP$39 -> 105 | X119: =IF(P119<=V119,"【OK】","【NG】") -> 【OK】 | AI119: =(0.027+22.5*W69/K39^2)*K39 -> 78.195
C120: 1階柱 | E120: de1 | F120: = | G120: =DispFormula(AI120) -> (0.027+22.5*7.64/2895^2)*2895 | O120: = | P120: =ROUNDUP(AI120,1) -> 78.3 | R120: (mm) | U120: ≦ | V120: =$AP$40 -> 120 | X120: =IF(P120<=V120,"【OK】","【NG】") -> 【OK】 | AI120: =(0.027+22.5*W70/K41^2)*K41 -> 78.22437824

Sheet 壁量計算 (平屋)
AB2: 更新日： | AC2: ='壁量計算（2F）'!AC2 -> 2025-12-08
AB3: version： | AC3: ='壁量計算（2F）'!AC3 -> 1
Y4: （大阪府内建築行政連絡協議会）
F5: 壁量等手計算支援ツール（大連協版）（平屋Ver）
B8: この表計算ツールの計算内容及び計算結果については、設計者として問題ないことを確認しており、自己の責任において使用することに同意します。
J11: 建築士番号 | V11: 設計者氏名
B14: 1.基本条件の入力 | AI14: 荷重リスト
AI15: 分類 | AJ15: No | AK15: 仕様名
AI16: 屋根 | AJ16: 1 | AK16: =IFERROR(VLOOKUP(AJ16,荷重リスト,2,FALSE),"") -> 【標準】 瓦屋根（ふき土無）
B17: Input➀基本条件 | O17: 【セル着色の凡例】 | AJ17: 2 | AK17: 【標準】 スレート屋根
B18: 項目 | I18: 入力欄 | L18: 単位 | R18: ： | S18: 入力必須の項目 | Y18: ： | Z18: 案件ごとに適宜入力する項目 | AJ18: 3 | AK18: 【標準】 金属板ぶき
B19: 1階外壁のX方向長さ(合計) | H19: LX1 | I19: 20 | L19: (ｍ) | AJ19: 4 | AK19: 【45分準耐】 瓦屋根（ふき土無）
B20: 1階外壁のY方向長さ(合計) | H20: LY1 | I20: 20 | L20: (ｍ) | R20: ： | S20: 空白となっているセルは赤く着色されます。 数字（0を含む）の入力又はリストの選択を行ってください。 | AJ20: 5 | AK20: 【45分準耐】 スレート屋根
B21: 最高高さ | E21: ― | F21: 軒高さ | H21: h3 | I21: 1.5 | L21: (ｍ) | AJ21: 6 | AK21: 【45分準耐】 金属板ぶき
B22: 軒高さ | E22: ― | F22: 土台天 | H22: h1 | I22: 3 | L22: (ｍ) | AJ22: 7 | AK22: 【任意仕様1】
B23: 土台天 | E23: ― | F23: 地盤面 | H23: h0 | I23: 0.5 | L23: (ｍ) | AJ23: - | AK23: 【荷重の直接入力】
B24: 1階床面積(重量算定用) | H24: AfW1 | I24: 100 | L24: (㎡) | N24: ← | O24: 床面積に算入されないﾎﾟｰﾁ･ｲﾝﾅｰﾊﾞﾙｺﾆｰ、吹抜け等も含めた見上げ面積を入力。 | AI24: 外壁 | AJ24: 31 | AK24: =IFERROR(VLOOKUP(AJ24,荷重リスト,2,FALSE),"") -> 【標準】 土塗り壁等
B25: 1階床面積(壁量算定用) | H25: Af1 | I25: 100 | L25: (㎡) | N25: ← | O25: 告示で定義されている床面積で、床面積に補正した小屋裏面積を加算したものを入力。 | AJ25: 32 | AK25: 【標準】 モルタル等
B26: 軒の出 | H26: Lr | I26: 0.5 | L26: (ｍ) | N26: ← | O26: 外壁芯からの出の長さを入力してください。(外壁長さ×軒の出を軒面積として考慮。) | AJ26: 33 | AK26: 【標準】 窯業系サイディング
B27: ="屋根勾配（"&ROUND(ATAN(I27/10)*180/PI(),1)& " °）" -> 屋根勾配（0 °） | H27: ⊿ | I27: 0 | L27: (寸) | N27: ← | O27: 屋根重量の勾配補正に使用。複数ある場合は、一番大きい勾配を入力。（推奨） | AJ27: 34 | AK27: 【標準】 金属板張
B28: 開口比率 | H28: η | I28: 0.09 | L28: (－) | N28: ← | O28: 外壁面積（軒下）に対する開口部面積の割合を入力してください。（η>0.09とする場合は、根拠資料を添付してください。） | AJ28: 35 | AK28: 【標準】 下見板張
B29: 標準せん断力係数 | H29: C0 | I29: 0.2 | L29: (－) | AJ29: 36 | AK29: 【45分準耐】 窯業系サイディング
AJ30: 37 | AK30: 【45分準耐】 金属板張
B31: Input②荷重入力 | AJ31: 38 | AK31: 【任意仕様6】
B32: 項目 | I32: 単位荷重 | L32: 単位 | N32: 仕様名 | V32: 直接入力 | AJ32: - | AK32: 【荷重の直接入力】
B33: 屋根重量 | H33: ω1 | I33: =IF($N33="【荷重の直接入力】",$V33,VLOOKUP($N33,荷重数値_屋根,6,FALSE)) -> 800 | L33: (N/㎡) | N33: 【標準】 スレート屋根 | V33: 740
B34: 外壁重量 | H34: ω3 | I34: =IF($N34="【荷重の直接入力】",$V34,VLOOKUP($N34,荷重数値_外壁,6,FALSE)) -> 650 | L34: (N/㎡) | N34: 【標準】 窯業系サイディング | V34: 600
B35: 屋根断熱材 | H35: ω4 | I35: 100 | L35: (N/㎡) | N35: ← | O35: ﾃﾞﾌｫﾙﾄではGW24K 400㎜を想定し100N/㎡としています。
B36: 外壁断熱材 | H36: ω5 | I36: 70 | L36: (N/㎡) | N36: ← | O36: ﾃﾞﾌｫﾙﾄではGW24K 170㎜ + 胴縁を想定し70N/㎡としています。
B37: 開口部 | H37: ω6 | I37: 400 | L37: (N/㎡) | N37: ← | O37: ﾃﾞﾌｫﾙﾄではﾄﾘﾌﾟﾙｶﾞﾗｽ（400N/㎡）を想定。荷重表を参考に適宜入力してください。
B38: 太陽光発電設備等 | H38: ω7 | I38: （機器重量の合計） | N38: ← | O38: 機器重量の合計又は単位面積当たりの重量（屋根全面に適用）を選択してください。
I39: 0 | L39: =IF(I38="（面積当たりの荷重）","(N/㎡)","(kg)") -> (kg) | O39: ﾃﾞﾌｫﾙﾄでは両面石膏ﾎﾞｰﾄで天井高さ2.7m程度を想定して350N/㎡としています。実情に応じて適宜調整してください。
B40: 内壁(床面積当たり) | H40: ω8 | I40: 350 | L40: (N/㎡) | N40: ←
B42: Input③その他の荷重入力 （※壁量計算用）
B43: 項目 | I43: 入力欄 | L43: 単位 | N43: 面積 | Q43: 単位
B44: 軒上外壁面積 | H44: AO | I44: 面積の直接入力 | N44: 0 | Q44: (㎡)
B45: 1～R階間の小屋裏物置 | G45: ω13,A13 | I45: 300 | L45: (N/㎡) | N45: 0 | Q45: (㎡)
B47: 項目 | I47: 入力欄 | L47: 単位 | N47: 面積 | Q47: 単位 | S47: 備考（追加荷重の種類・根拠等を記載）
B48: R階屋根の追加等分布荷重 | G48: ω15,A15 | I48: 0 | L48: (N/㎡) | N48: 0 | Q48: (㎡)
B49: 1F上部への追加集中荷重 | H49: ω17 | I49: 0 | L49: (kN)
B52: 1）地震力算定用の建物高さ { H = h3/2+h1+h0 } | S52: 2）勾配を考慮した補正係数 { β1 = √(⊿2+102)/10 } | AI52: 建物高さ | AJ52: 勾配係数
C53: H | D53: = | E53: =DispFormula(AI53) -> 1.500 /2+3.000 +0.500 | M53: = | N53: =ROUNDUP(AI53,2) -> 4.25 | P53: (m) | T53: β1 | U53: = | V53: =DispFormula(AJ53) -> √(0.0 ^2+10^2)/10 | AB53: = | AC53: =ROUNDUP(AJ53,3) -> 1 | AI53: =I21/2+I22+I23 -> 4.25 | AJ53: =SQRT(I27^2+10^2)/10 -> 1
B55: 3）軒を考慮した補正係数 〔 β2 = {(LX1+LY1+4*Lr)*Lr+AfW1}/AfW1 〕 | AI55: 軒係数 | AJ55: 1階X方向 | AK55: 1階Y方向 | AL55: 軒の出 | AM55: 1階面積
C56: β2 | D56: = | E56: =DispFormula(AI56) -> ((20.00 +20.00 +4*0.50 )*0.50 +100.00 )/100.00 | P56: = | Q56: =ROUNDUP(AI56,3) -> 1.21 | AI56: =((AJ56+AK56+4*AL56)*AL56+AM56)/AM56 -> 1.21 | AJ56: =$I$19 -> 20 | AK56: =$I$20 -> 20 | AL56: =$I$26 -> 0.5 | AM56: =$I$24 -> 100
B58: 4）勾配（β1）・軒（β2）・太陽光発電設備を考慮した補正荷重 | AI58: 屋根重量 | AJ58: 太陽光発電設備 | AL58: 屋根断熱
C59: 補正屋根重量： | G59: ω"1 | H59: = | I59: ω1*β1*β2 | M59: = | N59: =DispFormula(AI60) -> 800 *1.000*1.210 | S59: = | T59: =ROUNDUP(AI60,0) -> 968 | V59: (N/㎡) | AJ59: 面積当たり | AK59: 機器重量
C60: 補正断熱重量： | G60: ω"4 | H60: = | I60: ω4*β1 | M60: = | N60: =DispFormula(AL60) -> 100 *1.000 | S60: = | T60: =ROUNDUP(AL60,0) -> 100 | V60: (N/㎡) | AI60: =$I$33*$AC53*$Q$56 -> 968 | AJ60: =$I$39*$AC$53*$Q$56 -> 0 | AK60: =$I$39*9.8/I24 -> 0 | AL60: =$I$35*$AC$53 -> 100
B61: 補正太陽光設備： | G61: ω"7 | H61: = | I61: =IF(I38="（面積当たりの荷重）",AJ61,AK61) -> ω7*9.8/Afw1 | M61: = | N61: =IF($T$61=0,"【該当無し】",IF($I$38="（面積当たりの荷重）",DispFormula($AJ$60),DispFormula($AK$60))) -> 【該当無し】 | S61: = | T61: =ROUNDUP(IF(I38="（面積当たりの荷重）",AJ60,AK60),0) -> 0 | V61: (N/㎡) | AJ61: ω7*β1*β2 | AK61: ω7*9.8/Afw1
B63: 5）開口部を考慮した補正外壁重量 | AI63: 外壁重量
C64: 外壁+断熱材： | G64: ωO1 | H64: = | I64: ω3+ω5 | N64: = | O64: =DispFormula(AI64) -> 650 +70 | V64: = | W64: =ROUNDUP(AI64,0) -> 720 | Y64: (N/m2) | AI64: =$I$34+$I$36 -> 720
F65: 補正外壁重量： | G65: ωO2 | H65: = | I65: ωO1*(1-η)+ω6*η | N65: = | O65: =DispFormula(AI65) -> 720 *(1-0.09 )+400 *0.09 | V65: = | W65: =ROUNDUP(AI65,0) -> 692 | Y65: (N/m2) | AI65: =$W$64*(1-$I$28)+$I$37*$I$28 -> 691.2
AM66: （参考）
B67: 6）軒上外壁面積の計算 | AI67: 片流れ | AJ67: 直接入力 | AM67: 切妻（X） | AN67: 切妻（Y）
C68: 軒上外壁面積： | G68: Ao | H68: = | I68: =IF($I$44="自動計算",$AI$69,IF($I$44="面積の直接入力",$AJ$69,"")) -> 【直接入力】 | N68: = | O68: =IF($I$44="自動計算",DispFormula($AI$68),"") ->  | V68: = | W68: =ROUNDUP(IF($I$44="自動計算",$AI$68,IF($I$44="面積の直接入力",$AJ$68,0)),2) -> 0 | Y68: (N/m2) | AI68: =($I$19+$I$20)*$I$21/2 -> 30 | AJ68: =N44 -> 0 | AM68: =$I$19*$I$21/2 -> 15 | AN68: =$I$20*$I$21/2 -> 15
AI69: (LX1+LY1)*h3/2 | AJ69: 【直接入力】 | AM69: LX2*h3/2 | AN69: LY2*h3/2
B70: 2.壁量の算定
B71: 1）外壁荷重 | AI71: 外壁荷重
C72: 1階 | D72: 外壁荷重（軒上） | H72: W2-1 | J72: = | K72: ωO1*AO/1000 | Q72: = | R72: =IF($AI72=0,"【該当無し】",DispFormula($AI72)) -> 【該当無し】 | AB72: = | AC72: =ROUNDUP(AI72,2) -> 0 | AE72: (kN) | AI72: =$W$64*$W$68/1000 -> 0 | AJ72: X方向の壁長 | AK72: Y方向の壁長 | AL72: 階高
C73: 1階 | D73: 外壁荷重（軒下） | H73: W1-1 | J73: = | K73: ωO2*h1*(LX1+LY1)/1000 | Q73: = | R73: =IF($AI73=0,"",DispFormula($AI73)) -> 692 *3.000 *(20.000 +20.000 )/1000 | AB73: = | AC73: =ROUNDUP(AI73,2) -> 83.04 | AE73: (kN) | AI73: =$W$65*$AL73*(AJ73+AK73)/1000 -> 83.04 | AJ73: =$I$19 -> 20 | AK73: =$I$20 -> 20 | AL73: =$I$22 -> 3
B75: 2）当該階が支えている部分の固定荷重（外壁・内壁） | AI75: 壁荷重
C76: 1階 | D76: 壁荷重（軒下） | H76: W1-2 | J76: = | K76: W1-1+ω8*AfW1/1000 | Q76: = | R76: =IF($AI76=0,"",DispFormula($AI76)) -> 83.04+350 *100.00 /1000 | AB76: = | AC76: =ROUNDUP(AI76,2) -> 118.04 | AE76: (kN) | AI76: =AC73+$I$40*$I$24/1000 -> 118.04
B78: 3）当該階が支えている部分の固定荷重と積載荷重の和（屋根、床） | AC78: 柱梁用のLL | AI78: 屋根・床 | AJ78: 柱梁用のLL
C79: 各階 | D79: 屋根荷重 | H79: W2-4 | J79: = | K79: ω"1+ω"4+ω"7 | Q79: = | R79: =IF($AI79=0,"",DispFormula($AI79)) -> 968 +100 +0 | X79: = | Y79: =ROUNDUP(AI79,0) -> 1068 | AA79: (N/m2) | AC79: （ | AD79: =ROUNDUP(AJ79,0) -> 1068 | AF79: ） | AI79: =$T$59+$T$60+$T$61 -> 1068 | AJ79: =$T$59+$T$60+$T$61 -> 1068
B81: 4）追加荷重 | AI81: 地震用 | AJ81: 確認用
C82: 1-R階 | D82: 小屋裏荷重 | H82: W" 1-11 | J82: = | K82: {ω13+LL(住宅)*2/3}*A13/1000 | S82: = | T82: =IF($AJ82=0,"【該当無し】",DispFormula($AI82)) -> 【該当無し】 | AB82: = | AC82: =IF($AJ82=0,0,ROUNDUP($AI82,2)) -> 0 | AE82: (kN) | AI82: =($I$45+600*2/3)*$N$45/1000 -> 0 | AJ82: =$I$45*$N$45/1000 -> 0
C83: R階 | D83: 追加等分布荷重 | H83: W" 1-12 | J83: = | K83: ω15*A15/1000 | S83: = | T83: =IF($AI83=0,"【該当無し】",DispFormula($AI83)) -> 【該当無し】 | AB83: = | AC83: =ROUNDUP(AI83,2) -> 0 | AE83: (kN) | AI83: =$I$48*$N$48/1000 -> 0
C84: 1階 | D84: 追加荷重合計 | H84: ΣW" 1 | J84: = | K84: W"1-11+W"1-12+ω17 | S84: = | T84: =IF($AI84=0,"【該当無し】",DispFormula($AI84)) -> 【該当無し】 | AB84: = | AC84: =ROUNDUP(AI84,2) -> 0 | AE84: (kN) | AI84: =$AC$82+$AC$83+$I$49 -> 0
B86: 5）壁量計算用の各階重量 | AI86: 1階重量
C87: 1階 | D87: ΣW1 | F87: = | G87: W2-4*AfW1/1000+W2-1+W1-2/2+ΣW" 1 | Q87: = | R87: =IF($AI87=0,"",DispFormula($AI87)) -> 1068*100.00 /1000+0.00+118.04/2+0.00 | AB87: = | AC87: =ROUNDUP(AI87,0) -> 166 | AE87: (kN) | AI87: =$Y$79*$I$24/1000+$AC$72+$AC$76/2+$AC$84 -> 165.82
B89: Output➀ 単位面積当たりの必要壁量Lwの算定 | AI89: T
D90: A1 | E90: = | F90: 1 | AI90: =0.03*N53 -> 0.1275
D91: ΣLW | E91: = | F91: Ai*C0*ΣWi/(0.0196*Afi) | Y91: 1.25倍 | AC91: 1.50倍 | AI91: Lw
C92: 1階 | D92: LW1 | E92: = | F92: =IF($AI92=0,"",DispFormula($AI92)) -> 1.0*0.2*166 /(0.0196*100.00 ) | M92: = | N92: =IFERROR(ROUNDUP(AI92,1),"") -> 17 | P92: (cm/m2) | R92: → | S92: =IFERROR(ROUNDUP($N92,0),"") -> 17 | U92: (cm/m2) | X92: （ | Y92: =IFERROR(ROUNDUP(1.25*$N92,0),"") -> 22 | AA92: ） | AB92: （ | AC92: =IFERROR(ROUNDUP(1.5*$N92,0),"") -> 26 | AE92: ） | AI92: =$F$90*$I$29*AC87/(0.0196*$I$25) -> 16.93877551
B95: 3.柱の小径の算定
B97: （参考）木材の圧縮基準強度 | AI97: 検索用
B98: No | C98: JAS規格 | H98: 樹種等 | M98: 等級等 | R98: 基準強度Fc | AI98: 全体 | AJ98: 集成材用
B99: 1 | C99: 無等級材 | H99: ひのき | M99: ― | R99: =IFERROR(VLOOKUP(AI99,List_Fc,6,FALSE),"該当無し") -> 20.7 | T99: (N/m㎡) | V99: =IF(AND(C99="無等級材",NOT(M99="―")),"※等級等を「－」としてください。",IF(AND(C99="対称異等級構成集成材",NOT(H99="―")),"※樹種等を「－」としてください。","")) ->  | AI99: =IFERROR(VLOOKUP(C99&"_"&H99,List_No,3,FALSE)&M99,"") -> 22― | AJ99: =IF(C99="同一等級構成集成材",H99,"") -> 
B100: 2 | C100: 無等級材 | H100: すぎ | M100: ― | R100: =IFERROR(VLOOKUP(AI100,List_Fc,6,FALSE),"該当無し") -> 17.7 | T100: (N/m㎡) | V100: =IF(AND(C100="無等級材",NOT(M100="―")),"※等級等を「－」としてください。",IF(AND(C100="対称異等級構成集成材",NOT(H100="―")),"※樹種等を「－」としてください。","")) ->  | AI100: =IFERROR(VLOOKUP(C100&"_"&H100,List_No,3,FALSE)&M100,"") -> 24― | AJ100: =IF(C100="同一等級構成集成材",H100,"") -> 
B101: 3 | C101: 同一等級構成集成材 | H101: 4層以上 | M101: E95－F315 | R101: =IFERROR(VLOOKUP(AI101,List_Fc,6,FALSE),"該当無し") -> 26 | T101: (N/m㎡) | AI101: =IFERROR(VLOOKUP(C101&"_"&H101,List_No,3,FALSE)&M101,"") -> 31E95－F315 | AJ101: =IF(C101="同一等級構成集成材",H101,"") -> 4層以上
B104: Input④基本条件 | S104: ※ | T104: 2階柱と1階柱の入力内容は計算上リンクしていません。追加荷重等はそれぞれの柱ごとに入力してください。
B105: 項目 | I105: 単位 | K105: 外柱 | O105: 中柱
K106: 1階 | M106: 1階 | O106: 1階 | Q106: 1階
A107: 柱No | B107: 柱No | I107: (―) | K107: 1 | M107: 2 | O107: 3 | Q107: 4
A108: - | B108: 検討要否 | I108: (―) | S108: ← | AI108: Input1-3の入力内容（引用）
A109: 要否 | K109: TRUE | M109: TRUE | O109: TRUE | Q109: TRUE
A110: 符号 | B110: 柱符号 | I110: (―) | K110: C2o | M110: C1o | O110: C2i | Q110: C1i | S110: ← | AI110: ω8 | AJ110: 内壁(面積当たり) ω8 | AL110: =$I$40 -> 350
A111: 柱短辺 | B111: 柱短辺 | H111: Bc | I111: (mｍ) | K111: 105 | M111: 105 | O111: 105 | Q111: 105 | AI111: W2_4 | AJ111: 屋根荷重 W2-4（柱梁LL） | AL111: =$AD$79 -> 1068
A112: 柱長辺 | B112: 柱長辺 | H112: Dc | I112: (mｍ) | K112: 105 | M112: 105 | O112: 105 | Q112: 113 | AI112: ωo1 | AJ112: 外壁+断熱材 ωO1 | AL112: =$W$64 -> 720
A113: Fc | B113: 基準強度 | H113: Fc | I113: (N/m㎡) | K113: 17.7 | M113: 17.7 | O113: 17.7 | Q113: 17.7 | AI113: ωo2 | AJ113: 補正外壁重量 ωO2 | AL113: =$W$65 -> 692
A114: 高さ判定 | B114: 柱上部の梁せい HG 又は横架材間距離 ℓ | I114: (mｍ) | K114: 梁せい | M114: 梁せい | O114: 梁せい | Q114: 梁せい | AI114: h3 | AJ114: 最高高さ―軒高さ h3 | AL114: =$I$21 -> 1.5
A115: 梁せい等 | K115: 105 | M115: 105 | O115: 105 | Q115: 105 | AI115: h1 | AJ115: 軒高さ―土台天 h1 | AL115: =$I$22 -> 3
A116: 軒算定 | B116: 外壁を負担する2階柱 上部の軒上外壁高さ | H116: Ho | I116: (m) | K116: 自動計算 | M116: 自動計算 | O116: 直接入力 | Q116: 直接入力
A117: 軒上 | K117: 0 | M117: 0 | O117: 0 | Q117: 0
A118: 1階Lo | B118: 1階柱の外壁負担長さ | H118: LO1 | I118: (m) | K118: 1.82 | M118: 1.82 | O118: 0 | Q118: 0
A119: 1階Ae | B119: 1階柱の負担面積 | H119: Ae1 | I119: (㎡) | K119: 5 | M119: 5 | O119: 5 | Q119: 5 | S119: ←
A120: R階ω | B120: R階屋根の追加等分布荷重(※) | H120: ωC2 | I120: (N/㎡) | K120: 0 | M120: 0 | O120: 0 | Q120: 0 | S120: ← | AJ120: 案内文 | AK120: =IF(COUNTIF($K$123:$R$123,"NG1")>0,1,IF(COUNTIF($K$123:$R$123,"NG2")>0,2,0)) -> 0
A121: 追加Pc | B121: 柱の追加集中荷重(※) | H121: Pc | I121: (kN) | K121: 0 | M121: 0 | O121: 0 | Q121: 0 | S121: ← | AJ121: NG1は、HG又はℓの項目が「梁せい」「横架材間」以外となっています。
A122: 柱断面 | B122: 柱断面積 | H122: Ac | I122: (c㎡) | K122: =IF(K109=FALSE,0,K111*K112/100) -> 110.25 | M122: =IF(M109=FALSE,0,M111*M112/100) -> 110.25 | O122: =IF(O109=FALSE,0,O111*O112/100) -> 110.25 | Q122: =IF(Q109=FALSE,0,Q111*Q112/100) -> 118.65 | AJ122: NG2は、Hoの項目が「自動計算」「直接入力」以外となっています。
K123: =IF(NOT(OR(K$114="梁せい",K$114="横架材間")),"NG1",IF(NOT(OR(K$116="自動計算",K$116="直接入力")),"NG2","")) ->  | M123: =IF(NOT(OR(M$114="梁せい",M$114="横架材間")),"NG1",IF(NOT(OR(M$116="自動計算",M$116="直接入力")),"NG2","")) ->  | O123: =IF(NOT(OR(O$114="梁せい",O$114="横架材間")),"NG1",IF(NOT(OR(O$116="自動計算",O$116="直接入力")),"NG2","")) ->  | Q123: =IF(NOT(OR(Q$114="梁せい",Q$114="横架材間")),"NG1",IF(NOT(OR(Q$116="自動計算",Q$116="直接入力")),"NG2","")) ->  | S123: =IF(AK120=0,"","←") ->  | T123: =IF(AK120=1,$AJ$121,IF(AK120=2,$AJ$122,"")) -> 
A125: （※） | C125: 下記の検討は外壁（軒上を含む）、内壁、屋根、2階床を考慮した検討です。
C126: 「Input③その他の荷重入力」で入力した追加荷重は別途（※）印の追加荷重で入力してください。
AH127: 行数 | AI127: =MATCH(AI128,$A$107:$A$122,0) -> 3 | AJ127: ℓ （計算） | AK127: ℓ （採用値） | AL127: =MATCH(AL128,$A$107:$A$122,0) -> 8 | AM127: =MATCH(AM128,$A$107:$A$122,0) -> 9 | AN127: ― | AO127: ― | AP127: =MATCH(AP128,$A$107:$A$122,0) -> 5
B128: 1）横架材間距離 {ℓ = h * 1000 - HG 又は直接入力} | S128: 2）断面二次半径（弱軸） { iy = Bc / √(12) } | AH128: No | AI128: 要否 | AL128: 高さ判定 | AM128: 梁せい等 | AN128: 階高 | AO128: i（弱軸） | AP128: 柱短辺
C129: 外柱1 | D129: ℓ1 | E129: = | F129: =IF($K129=0,"",IF(AL129="横架材間","【直接入力】",DispFormula($AJ129))) -> 3.000*1000-105 | J129: = | K129: =IF(AI129=FALSE,0,ROUNDUP(AK129,0)) -> 2895 | M129: (mm) | U129: iy1 | V129: = | W129: =IF($AB129=0,"",DispFormula($AO129)) -> 105/√(12) | AA129: = | AB129: =IF(AI129=FALSE,0,ROUNDDOWN(AO129,2)) -> 30.31 | AD129: (mm) | AH129: 1 | AI129: =HLOOKUP($AH129,List_柱,AI$127,FALSE) -> TRUE | AJ129: =$AN129*1000-$AM129 -> 2895 | AK129: =IF(AL129="横架材間",AM129,AJ129) -> 2895 | AL129: =HLOOKUP($AH129,List_柱,AL$127,FALSE) -> 梁せい | AM129: =HLOOKUP($AH129,List_柱,AM$127,FALSE) -> 105 | AN129: =$AL$115 -> 3 | AO129: =$AP129/SQRT(12) -> 30.31088913 | AP129: =HLOOKUP($AH129,List_柱,AP$127,FALSE) -> 105
C130: 外柱2 | D130: ℓ1 | E130: = | F130: =IF($K130=0,"",IF(AL130="横架材間","【直接入力】",DispFormula($AJ130))) -> 3.000*1000-105 | J130: = | K130: =IF(AI130=FALSE,0,ROUNDUP(AK130,0)) -> 2895 | M130: (mm) | U130: iy1 | V130: = | W130: =IF($AB130=0,"",DispFormula($AO130)) -> 105/√(12) | AA130: = | AB130: =IF(AI130=FALSE,0,ROUNDDOWN(AO130,2)) -> 30.31 | AD130: (mm) | AH130: 2 | AI130: =HLOOKUP($AH130,List_柱,AI$127,FALSE) -> TRUE | AJ130: =$AN130*1000-$AM130 -> 2895 | AK130: =IF(AL130="横架材間",AM130,AJ130) -> 2895 | AL130: 梁せい | AM130: =HLOOKUP($AH130,List_柱,AM$127,FALSE) -> 105 | AN130: =$AL$115 -> 3 | AO130: =$AP130/SQRT(12) -> 30.31088913 | AP130: =HLOOKUP($AH130,List_柱,AP$127,FALSE) -> 105
C131: 中柱1 | D131: ℓ1 | E131: = | F131: 3.000*1000-105 | J131: = | K131: =IF(AI131=FALSE,0,ROUNDUP(AK131,0)) -> 2895 | M131: (mm) | U131: iy1 | V131: = | W131: =IF($AB131=0,"",DispFormula($AO131)) -> 105/√(12) | AA131: = | AB131: =IF(AI131=FALSE,0,ROUNDDOWN(AO131,2)) -> 30.31 | AD131: (mm) | AH131: 3 | AI131: =HLOOKUP($AH131,List_柱,AI$127,FALSE) -> TRUE | AJ131: =$AN131*1000-$AM131 -> 2895 | AK131: =IF(AL131="横架材間",AM131,AJ131) -> 2895 | AL131: 梁せい | AM131: =HLOOKUP($AH131,List_柱,AM$127,FALSE) -> 105 | AN131: =$AL$115 -> 3 | AO131: =$AP131/SQRT(12) -> 30.31088913 | AP131: =HLOOKUP($AH131,List_柱,AP$127,FALSE) -> 105
C132: 中柱2 | D132: ℓ1 | E132: = | F132: 3.000*1000-105 | J132: = | K132: =IF(AI132=FALSE,0,ROUNDUP(AK132,0)) -> 2895 | M132: (mm) | U132: iy1 | V132: = | W132: =IF($AB132=0,"",DispFormula($AO132)) -> 105/√(12) | AA132: = | AB132: =IF(AI132=FALSE,0,ROUNDDOWN(AO132,2)) -> 30.31 | AD132: (mm) | AH132: 4 | AI132: =HLOOKUP($AH132,List_柱,AI$127,FALSE) -> TRUE | AJ132: =$AN132*1000-$AM132 -> 2895 | AK132: =IF(AL132="横架材間",AM132,AJ132) -> 2895 | AL132: 梁せい | AM132: =HLOOKUP($AH132,List_柱,AM$127,FALSE) -> 105 | AN132: =$AL$115 -> 3 | AO132: =$AP132/SQRT(12) -> 30.31088913 | AP132: =HLOOKUP($AH132,List_柱,AP$127,FALSE) -> 105
B134: 3）有効細長比 {λ = ℓ / iy } | S134: 4）有効細長比による必要最小径 { dse = √(12)*ℓ / 150 } | AI134: 細長比 | AJ134: 必要径
C135: 外柱1 | D135: λ1 | E135: = | F135: =IF($J135=0,"",DispFormula($AI135)) -> 2895/30.31 | I135: = | J135: =IFERROR(ROUNDUP(AI135,2),0) -> 95.52 | L135: =IF(J135<=M135,"≦",">") -> ≦ | M135: 150 | O135: =IF(J135=0,"",IF(J135<=M135,"【OK】","【NG】")) -> 【OK】 | U135: dse1 | V135: = | W135: =IF($AB135=0,"",DispFormula($AJ135)) -> √(12)*2895/150 | AA135: = | AB135: =ROUNDUP(AJ135,0) -> 67 | AD135: (mm) | AI135: =K129/AB129 -> 95.513032 | AJ135: =SQRT(12)*$K129/150 -> 66.85716117
C136: 外柱2 | D136: λ1 | E136: = | F136: =IF($J136=0,"",DispFormula($AI136)) -> 2895/30.31 | I136: = | J136: =IFERROR(ROUNDUP(AI136,2),0) -> 95.52 | L136: =IF(J136<=M136,"≦",">") -> ≦ | M136: 150 | O136: =IF(J136=0,"",IF(J136<=M136,"【OK】","【NG】")) -> 【OK】 | U136: dse1 | V136: = | W136: =IF($AB136=0,"",DispFormula($AJ136)) -> √(12)*2895/150 | AA136: = | AB136: 67 | AD136: (mm) | AI136: =K130/AB130 -> 95.513032 | AJ136: =SQRT(12)*$K130/150 -> 66.85716117
C137: 中柱1 | D137: λ1 | E137: = | F137: =IF($J137=0,"",DispFormula($AI137)) -> 2895/30.31 | I137: = | J137: =IFERROR(ROUNDUP(AI137,2),0) -> 95.52 | L137: =IF(J137<=M137,"≦",">") -> ≦ | M137: 150 | O137: =IF(J137=0,"",IF(J137<=M137,"【OK】","【NG】")) -> 【OK】 | U137: dse1 | V137: = | W137: √(12)*2895/150 | AA137: = | AB137: 67 | AD137: (mm) | AI137: =K131/AB131 -> 95.513032 | AJ137: =SQRT(12)*$K131/150 -> 66.85716117
C138: 中柱2 | D138: λ1 | E138: = | F138: =IF($J138=0,"",DispFormula($AI138)) -> 2895/30.31 | I138: = | J138: =IFERROR(ROUNDUP(AI138,2),0) -> 95.52 | L138: =IF(J138<=M138,"≦",">") -> ≦ | M138: 150 | O138: =IF(J138=0,"",IF(J138<=M138,"【OK】","【NG】")) -> 【OK】 | U138: dse1 | V138: = | W138: √(12)*2895/150 | AA138: = | AB138: 67 | AD138: (mm) | AI138: =K132/AB132 -> 95.513032 | AJ138: =SQRT(12)*$K132/150 -> 66.85716117 | AN138: =MATCH(AN139,$A$107:$A$122,0) -> 7
AH139: No | AI139: 採用値 | AJ139: （A） | AK139: （B） | AL139: （C） | AM139: λ | AN139: Fc | AQ139: 算定式
B140: 5）座屈の許容応力度の算定 | AJ140: (λ≦30) | AK140: (30＜λ≦100) | AL140: (100＜λ) | AP140: (λ≦30) | AQ140: 1.1/3*Fc
C141: 外柱1 | D141: =IF(AB141=0,"",IF(AI141="A",$AJ$140,IF(AI141="B",$AK$140,$AL$140))) -> (30＜λ≦100) | H141: Fk1 | I141: = | J141: =IF(AB141=0,"",IF(AI141="A",$AQ$140,IF(AI141="B",$AQ$141,$AQ$142))) -> 1.1/3*(1.3-0.01*λ)*Fc | Q141: = | R141: =IF(AB141=0,"",IF($AI141="A",DispFormula($AJ141),IF($AI141="B",DispFormula($AK141),DispFormula($AL141)))) -> 1.1/3*(1.3-0.01*95.52)*17.7 | AA141: = | AB141: =IF(AI129=FALSE,0,ROUNDDOWN(IF($AI141="A",$AJ141,IF($AI141="B",$AK141,$AL141)),2)) -> 2.23 | AD141: (N/mm2) | AH141: 1 | AI141: =IF(AM141<=30,"A",IF(AM141<=100,"B","C")) -> B | AJ141: =1.1/3*$AN141 -> 6.49 | AK141: =1.1/3*(1.3-0.01*$AM141)*$AN141 -> 2.237752 | AL141: =1.1/3*3000/($AM141^2)*$AN141 -> 2.133916021 | AM141: =$J135 -> 95.52 | AN141: =HLOOKUP($AH141,List_柱,AN$138,FALSE) -> 17.7 | AP141: (30＜λ≦100) | AQ141: 1.1/3*(1.3-0.01*λ)*Fc
C142: 外柱2 | D142: =IF(AB142=0,"",IF(AI142="A",$AJ$140,IF(AI142="B",$AK$140,$AL$140))) -> (30＜λ≦100) | H142: Fk1 | I142: = | J142: =IF(AB142=0,"",IF(AI142="A",$AQ$140,IF(AI142="B",$AQ$141,$AQ$142))) -> 1.1/3*(1.3-0.01*λ)*Fc | Q142: = | R142: =IF(AB142=0,"",IF($AI142="A",DispFormula($AJ142),IF($AI142="B",DispFormula($AK142),DispFormula($AL142)))) -> 1.1/3*(1.3-0.01*95.52)*17.7 | AA142: = | AB142: =IF(AI130=FALSE,0,ROUNDDOWN(IF($AI142="A",$AJ142,IF($AI142="B",$AK142,$AL142)),2)) -> 2.23 | AD142: (N/mm2) | AH142: 2 | AI142: =IF(AM142<=30,"A",IF(AM142<=100,"B","C")) -> B | AJ142: =1.1/3*$AN142 -> 6.49 | AK142: =1.1/3*(1.3-0.01*$AM142)*$AN142 -> 2.237752 | AL142: =1.1/3*3000/($AM142^2)*$AN142 -> 2.133916021 | AM142: =$J136 -> 95.52 | AN142: =HLOOKUP($AH142,List_柱,AN$138,FALSE) -> 17.7 | AP142: (100＜λ) | AQ142: 1.1/3*3000/(λ^2)*Fc
C143: 中柱1 | D143: =IF(AB143=0,"",IF(AI143="A",$AJ$140,IF(AI143="B",$AK$140,$AL$140))) -> (30＜λ≦100) | H143: Fk1 | I143: = | J143: =IF(AB143=0,"",IF(AI143="A",$AQ$140,IF(AI143="B",$AQ$141,$AQ$142))) -> 1.1/3*(1.3-0.01*λ)*Fc | Q143: = | R143: =IF(AB143=0,"",IF($AI143="A",DispFormula($AJ143),IF($AI143="B",DispFormula($AK143),DispFormula($AL143)))) -> 1.1/3*(1.3-0.01*95.52)*17.7 | AA143: = | AB143: =IF(AI131=FALSE,0,ROUNDDOWN(IF($AI143="A",$AJ143,IF($AI143="B",$AK143,$AL143)),2)) -> 2.23 | AD143: (N/mm2) | AH143: 3 | AI143: B | AJ143: =1.1/3*$AN143 -> 6.49 | AK143: =1.1/3*(1.3-0.01*$AM143)*$AN143 -> 2.237752 | AL143: =1.1/3*3000/($AM143^2)*$AN143 -> 2.133916021 | AM143: =$J137 -> 95.52 | AN143: =HLOOKUP($AH143,List_柱,AN$138,FALSE) -> 17.7
C144: 中柱2 | D144: =IF(AB144=0,"",IF(AI144="A",$AJ$140,IF(AI144="B",$AK$140,$AL$140))) -> (30＜λ≦100) | H144: Fk1 | I144: = | J144: =IF(AB144=0,"",IF(AI144="A",$AQ$140,IF(AI144="B",$AQ$141,$AQ$142))) -> 1.1/3*(1.3-0.01*λ)*Fc | Q144: = | R144: =IF(AB144=0,"",IF($AI144="A",DispFormula($AJ144),IF($AI144="B",DispFormula($AK144),DispFormula($AL144)))) -> 1.1/3*(1.3-0.01*95.52)*17.7 | AA144: = | AB144: =IF(AI132=FALSE,0,ROUNDDOWN(IF($AI144="A",$AJ144,IF($AI144="B",$AK144,$AL144)),2)) -> 2.23 | AD144: (N/mm2) | AH144: 4 | AI144: =IF(AM144<=30,"A",IF(AM144<=100,"B","C")) -> B | AJ144: =1.1/3*$AN144 -> 6.49 | AK144: =1.1/3*(1.3-0.01*$AM144)*$AN144 -> 2.237752 | AL144: =1.1/3*3000/($AM144^2)*$AN144 -> 2.133916021 | AM144: =$J138 -> 95.52 | AN144: =HLOOKUP($AH144,List_柱,AN$138,FALSE) -> 17.7
B147: 6）等分布荷重による柱の軸力（屋根、2階床、内壁、追加等分布荷重を考慮） | AJ147: =MATCH(AJ148,$A$107:$A$122,0) -> 13 | AK147: =MATCH(AK148,$A$107:$A$122,0) -> 14
B148: 【算定式】 | E148: NW1 = {(W2-4+ω8/2+ωC1)*Ae1}/1000 | AH148: No | AI148: Wc | AJ148: 1階Ae | AK148: R階ω
C149: 外柱1 | D149: NW1 | E149: = | F149: =IF($W149=0,"",DispFormula($AI149)) -> (1068 +350 /2+0)*5.00/1000 | V149: = | W149: =IF(AI129=FALSE,0,ROUNDUP(AI149,2)) -> 6.22 | Y149: (kN) | AH149: 1 | AI149: =($AL$111+$AL$110/2+$AK149)*$AJ149/1000 -> 6.215 | AJ149: =HLOOKUP($AH149,List_柱,AJ$147,FALSE) -> 5 | AK149: 0
C150: 外柱2 | D150: NW1 | E150: = | F150: =IF($W150=0,"",DispFormula($AI150)) -> (1068 +350 /2+0)*5.00/1000 | V150: = | W150: =IF(AI130=FALSE,0,ROUNDUP(AI150,2)) -> 6.22 | Y150: (kN) | AH150: 2 | AI150: =($AL$111+$AL$110/2+$AK150)*$AJ150/1000 -> 6.215 | AJ150: 5 | AK150: 0
C151: 中柱1 | D151: NW1 | E151: = | F151: =IF($W151=0,"",DispFormula($AI151)) -> (1068 +350 /2+0)*5.00/1000 | V151: = | W151: =IF(AI131=FALSE,0,ROUNDUP(AI151,2)) -> 6.22 | Y151: (kN) | AH151: 3 | AI151: 6.215 | AJ151: 5 | AK151: 0
C152: 中柱2 | D152: NW1 | E152: = | F152: =IF($W152=0,"",DispFormula($AI152)) -> (1068 +350 /2+0)*5.00/1000 | V152: = | W152: =IF(AI132=FALSE,0,ROUNDUP(AI152,2)) -> 6.22 | Y152: (kN) | AH152: 4 | AI152: 6.215 | AJ152: 5 | AK152: 0
B155: 7）外壁・追加集中荷重による柱の軸力 | Z155: 【座屈検討時の係数】 | AH155: 行数 | AI155: ― | AJ155: ― | AK155: ― | AL155: =MATCH(AL156,$A$107:$A$122,0) -> 10 | AM155: =MATCH(AM156,$A$107:$A$122,0) -> 11 | AN155: =MATCH(AN156,$A$107:$A$122,0) -> 12 | AO155: =MATCH(AO156,$A$107:$A$122,0) -> 15 | AP155: =MATCH(AP156,$A$107:$A$122,0) -> 7
B156: 【算定式】 | E156: NP1 = (ωO1*HO*LO1+ωO2*h1/2*LO1)/1000+Pc | Y156: γ=(NP+NW)*1000/(1.1/3*Fc) | AH156: No | AI156: Pc | AJ156: 係数 | AK156: 階高 | AL156: 軒算定 | AM156: 軒上 | AN156: 1階Lo | AO156: 追加Pc | AP156: Fc
C157: 外柱1 | D157: NP1 | E157: = | F157: =IF($W157=0,"【該当無し】",DispFormula($AI157)) -> (720 *1.500*1.82+692 *3.000/2*1.82)/1000+0.00 | V157: = | W157: =IF($AI129=FALSE,0,ROUNDUP($AI157,2)) -> 3.86 | Y157: (kN) | AA157: （ | AB157: =IFERROR(IF($AI129=FALSE,0,ROUND($AJ157,0)),"") -> 1553 | AD157: ） | AH157: 1 | AI157: =($AL$112*AM157*AN157+$AL$113*$AK157/2*AN157)/1000+$AO157 -> 3.85476 | AJ157: =($W157+$W149)*1000/(1.1/3*$AP157) -> 1553.158706 | AK157: =AN129 -> 3 | AL157: =HLOOKUP($AH157,List_柱,AL$155,FALSE) -> 自動計算 | AM157: =IF($AL157="直接入力",HLOOKUP($AH157,List_柱,AM$155,FALSE),$AL$114) -> 1.5 | AN157: =HLOOKUP($AH157,List_柱,AN$155,FALSE) -> 1.82 | AO157: 0 | AP157: 17.7
C158: 外柱2 | D158: NP1 | E158: = | F158: =IF($W158=0,"【該当無し】",DispFormula($AI158)) -> (720 *1.500*1.82+692 *3.000/2*1.82)/1000+0.00 | V158: = | W158: =IF($AI130=FALSE,0,ROUNDUP($AI158,2)) -> 3.86 | Y158: (kN) | AA158: （ | AB158: =IFERROR(IF($AI130=FALSE,0,ROUND($AJ158,0)),"") -> 1553 | AD158: ） | AH158: 2 | AI158: =($AL$112*AM158*AN158+$AL$113*$AK158/2*AN158)/1000+$AO158 -> 3.85476 | AJ158: =($W158+$W150)*1000/(1.1/3*$AP158) -> 1553.158706 | AK158: =AN130 -> 3 | AL158: =HLOOKUP($AH158,List_柱,AL$155,FALSE) -> 自動計算 | AM158: =IF($AL158="直接入力",HLOOKUP($AH158,List_柱,AM$155,FALSE),$AL$114) -> 1.5 | AN158: 1.82 | AO158: 0 | AP158: 17.7
C159: 中柱1 | D159: NP1 | E159: = | F159: 【該当無し】 | V159: = | W159: =IF($AI131=FALSE,0,ROUNDUP($AI159,2)) -> 0 | Y159: (kN) | AA159: （ | AB159: =IFERROR(IF($AI131=FALSE,0,ROUND($AJ159,0)),"") -> 958 | AD159: ） | AH159: 3 | AI159: 0 | AJ159: =($W159+$W151)*1000/(1.1/3*$AP159) -> 958.3975347 | AK159: =AN131 -> 3 | AL159: =HLOOKUP($AH159,List_柱,AL$155,FALSE) -> 直接入力 | AM159: =IF($AL159="直接入力",HLOOKUP($AH159,List_柱,AM$155,FALSE),$AL$114) -> 0 | AN159: 0 | AO159: 0 | AP159: 17.7
C160: 中柱2 | D160: NP1 | E160: = | F160: 【該当無し】 | V160: = | W160: =IF($AI132=FALSE,0,ROUNDUP($AI160,2)) -> 0 | Y160: (kN) | AA160: （ | AB160: =IFERROR(IF($AI132=FALSE,0,ROUND($AJ160,0)),"") -> 958 | AD160: ） | AH160: 4 | AI160: 0 | AJ160: =($W160+$W152)*1000/(1.1/3*$AP160) -> 958.3975347 | AK160: =AN132 -> 3 | AL160: =HLOOKUP($AH160,List_柱,AL$155,FALSE) -> 直接入力 | AM160: =IF($AL160="直接入力",HLOOKUP($AH160,List_柱,AM$155,FALSE),$AL$114) -> 0 | AN160: 0 | AO160: 0 | AP160: 17.7
AH161: 行数 | AI161: ― | AJ161: =MATCH(AJ162,$A$107:$A$122,0) -> 16
B162: 8）柱の応力度 { σc = (NP+NW)*1000 )/ (Ac*100) } | V162: 【許容座屈応力度】 | AA162: 【検定比】 | AH162: No | AI162: σ | AJ162: 柱断面
C163: 外柱1 | D163: σC1 | E163: = | F163: =IF($P163=0,"",DispFormula($AI163)) -> (3.86+6.22)*1000/(110.25*100) | O163: = | P163: =IFERROR(ROUNDUP(AI163,2),0) -> 0.92 | R163: (N/mm2) | U163: =IF(P163<=V163,"≦",">") -> ≦ | V163: =$AB141 -> 2.23 | X163: (N/mm2) | Z163: （ | AA163: =IFERROR(ROUNDUP(P163/V163,2),"") -> 0.42 | AC163: ） | AD163: =IF(P163=0,"",IF(P163<=V163,"【OK】","【NG】")) -> 【OK】 | AH163: 1 | AI163: =($W157+W149)*1000/($AJ163*100) -> 0.9142857143 | AJ163: =HLOOKUP($AH163,List_柱,AJ$161,FALSE) -> 110.25
C164: 外柱2 | D164: σC1 | E164: = | F164: =IF($P164=0,"",DispFormula($AI164)) -> (3.86+6.22)*1000/(110.25*100) | O164: = | P164: =IFERROR(ROUNDUP(AI164,2),0) -> 0.92 | R164: (N/mm2) | U164: =IF(P164<=V164,"≦",">") -> ≦ | V164: =$AB142 -> 2.23 | X164: (N/mm2) | Z164: （ | AA164: =IFERROR(ROUNDUP(P164/V164,2),"") -> 0.42 | AC164: ） | AD164: =IF(P164=0,"",IF(P164<=V164,"【OK】","【NG】")) -> 【OK】 | AH164: 2 | AI164: =($W158+W150)*1000/($AJ164*100) -> 0.9142857143 | AJ164: =HLOOKUP($AH164,List_柱,AJ$161,FALSE) -> 110.25
C165: 中柱1 | D165: σC1 | E165: = | F165: =IF($P165=0,"",DispFormula($AI165)) -> (0.00+6.22)*1000/(110.25*100) | O165: = | P165: =IFERROR(ROUNDUP(AI165,2),0) -> 0.57 | R165: (N/mm2) | U165: =IF(P165<=V165,"≦",">") -> ≦ | V165: =$AB143 -> 2.23 | X165: (N/mm2) | Z165: （ | AA165: =IFERROR(ROUNDUP(P165/V165,2),"") -> 0.26 | AC165: ） | AD165: =IF(P165=0,"",IF(P165<=V165,"【OK】","【NG】")) -> 【OK】 | AH165: 3 | AI165: =($W159+W151)*1000/($AJ165*100) -> 0.5641723356 | AJ165: =HLOOKUP($AH165,List_柱,AJ$161,FALSE) -> 110.25
C166: 中柱2 | D166: σC1 | E166: = | F166: =IF($P166=0,"",DispFormula($AI166)) -> (0.00+6.22)*1000/(118.65*100) | O166: = | P166: =IFERROR(ROUNDUP(AI166,2),0) -> 0.53 | R166: (N/mm2) | U166: =IF(P166<=V166,"≦",">") -> ≦ | V166: =$AB144 -> 2.23 | X166: (N/mm2) | Z166: （ | AA166: =IFERROR(ROUNDUP(P166/V166,2),"") -> 0.24 | AC166: ） | AD166: =IF(P166=0,"",IF(P166<=V166,"【OK】","【NG】")) -> 【OK】 | AH166: 4 | AI166: =($W160+W152)*1000/($AJ166*100) -> 0.5242309313 | AJ166: =HLOOKUP($AH166,List_柱,AJ$161,FALSE) -> 118.65
B168: 9）柱の応力度による必要最小径
B169: 【算定式】 | D169: (100＜λ') | I169: dbe | J169: = | K169: {12*ℓ2/3000*γ}(1/4) | T169: ※ | U169: γは 7) 参照 { γ=(NP+NW)*1000/(1.1/3*Fc) }
D170: (30＜λ'≦100) | I170: dbe | J170: = | K170: ℓ/75.05+√{(ℓ/75.05)2+1/1.3*γ} | AH170: No | AI170: 採用値 | AJ170: 必要最小径 | AM170: 有効細長比 | AP170: 横架材間距離
D171: (λ'≦30) | I171: dbe | J171: = | K171: √(γ) | AB171: 【有効細長比λ'】 | AJ171: (A)λ≦30 | AK171: (B)30＜λ≦100 | AL171: (C)100＜λ | AM171: (λ'≦30) | AN171: (30＜λ'≦100) | AO171: (100＜λ')
C172: 外柱1 | D172: =IF(W172=0,"",IF(AI172="A",$AM$171,IF(AI172="B",$AN$171,$AO$171))) -> (100＜λ') | I172: dbe1 | J172: = | K172: =IF(W172=0,"",IF($AI172="A",DispFormula($AJ172),IF($AI172="B",DispFormula($AK172),DispFormula($AL172)))) -> ((12*2895^2)/3000*1553)^(1/4) | V172: = | W172: =IFERROR(ROUNDUP(IF($AI172="A",$AJ172,IF($AI172="B",$AK172,$AL172)),0),0) -> 85 | Y172: (mm) | AB172: （ | AC172: =IFERROR(SQRT(12)*AP172/W172,0) -> 117.9832256 | AE172: ） | AH172: 1 | AI172: =IF(AM172<=30,"A",IF(AN172<=100,"B","C")) -> C | AJ172: =SQRT(AB157) -> 39.40812099 | AK172: =AP172/75.05+SQRT((AP172/75.05)^2+1/1.3*AB157) -> 90.3680166 | AL172: =((12*AP172^2)/3000*AB157)^(1/4) -> 84.94389004 | AM172: =SQRT(12)*AP172/ROUNDUP(AJ172,0) -> 250.7143544 | AN172: =SQRT(12)*AP172/ROUNDUP(AK172,0) -> 110.2041118 | AO172: =SQRT(12)*AP172/ROUNDUP(AL172,0) -> 117.9832256 | AP172: =$K129 -> 2895
C173: 外柱2 | D173: =IF(W173=0,"",IF(AI173="A",$AM$171,IF(AI173="B",$AN$171,$AO$171))) -> (100＜λ') | I173: dbe1 | J173: = | K173: ((12*2895^2)/3000*1553)^(1/4) | V173: = | W173: =IFERROR(ROUNDUP(IF($AI173="A",$AJ173,IF($AI173="B",$AK173,$AL173)),0),0) -> 85 | Y173: (mm) | AB173: （ | AC173: =IFERROR(SQRT(12)*AP173/W173,0) -> 117.9832256 | AE173: ） | AH173: 2 | AI173: =IF(AM173<=30,"A",IF(AN173<=100,"B","C")) -> C | AJ173: =SQRT(AB158) -> 39.40812099 | AK173: =AP173/75.05+SQRT((AP173/75.05)^2+1/1.3*AB158) -> 90.3680166 | AL173: =((12*AP173^2)/3000*AB158)^(1/4) -> 84.94389004 | AM173: =SQRT(12)*AP173/ROUNDUP(AJ173,0) -> 250.7143544 | AN173: =SQRT(12)*AP173/ROUNDUP(AK173,0) -> 110.2041118 | AO173: =SQRT(12)*AP173/ROUNDUP(AL173,0) -> 117.9832256 | AP173: =$K130 -> 2895
C174: 中柱1 | D174: =IF(W174=0,"",IF(AI174="A",$AM$171,IF(AI174="B",$AN$171,$AO$171))) -> (100＜λ') | I174: dbe1 | J174: = | K174: ((12*2895^2)/3000*958)^(1/4) | V174: = | W174: =IFERROR(ROUNDUP(IF($AI174="A",$AJ174,IF($AI174="B",$AK174,$AL174)),0),0) -> 76 | Y174: (mm) | AB174: （ | AC174: =IFERROR(SQRT(12)*AP174/W174,0) -> 131.9549234 | AE174: ） | AH174: 3 | AI174: =IF(AM174<=30,"A",IF(AN174<=100,"B","C")) -> C | AJ174: =SQRT(AB159) -> 30.95157508 | AK174: =AP174/75.05+SQRT((AP174/75.05)^2+1/1.3*AB159) -> 85.74311301 | AL174: =((12*AP174^2)/3000*AB159)^(1/4) -> 75.28018178 | AM174: =SQRT(12)*AP174/ROUNDUP(AJ174,0) -> 323.5023928 | AN174: =SQRT(12)*AP174/ROUNDUP(AK174,0) -> 116.6113276 | AO174: =SQRT(12)*AP174/ROUNDUP(AL174,0) -> 131.9549234 | AP174: =$K131 -> 2895
C175: 中柱2 | D175: =IF(W175=0,"",IF(AI175="A",$AM$171,IF(AI175="B",$AN$171,$AO$171))) -> (100＜λ') | I175: dbe1 | J175: = | K175: ((12*2895^2)/3000*958)^(1/4) | V175: = | W175: =IFERROR(ROUNDUP(IF($AI175="A",$AJ175,IF($AI175="B",$AK175,$AL175)),0),0) -> 76 | Y175: (mm) | AB175: （ | AC175: =IFERROR(SQRT(12)*AP175/W175,0) -> 131.9549234 | AE175: ） | AH175: 4 | AI175: =IF(AM175<=30,"A",IF(AN175<=100,"B","C")) -> C | AJ175: =SQRT(AB160) -> 30.95157508 | AK175: =AP175/75.05+SQRT((AP175/75.05)^2+1/1.3*AB160) -> 85.74311301 | AL175: =((12*AP175^2)/3000*AB160)^(1/4) -> 75.28018178 | AM175: =SQRT(12)*AP175/ROUNDUP(AJ175,0) -> 323.5023928 | AN175: 116.6113276 | AO175: =SQRT(12)*AP175/ROUNDUP(AL175,0) -> 131.9549234 | AP175: =$K132 -> 2895
B177: Output② 柱の必要最小径の算定（※正方形断面の場合） | AH177: No | AI177: 必要径 | AJ177: λ小径 | AK177: de/ℓ
C178: 外柱1 | E178: de1 | F178: = | G178: max(dse, dbe) | K178: = | L178: =DispFormula(AI178) -> MAX(67,85) | P178: = | Q178: =ROUNDUP(AI178,0) -> 85 | S178: (mm) | W178: de2/ℓ2 | X178: = | Y178: =IFERROR(DispFormula(AK178),"") -> 85/2895 | AB178: = | AC178: =IFERROR("1/"&ROUNDUP(1/AK178,0),"") -> 1/35 | AH178: 1 | AI178: =MAX(AJ178,W172) -> 85 | AJ178: =$AB135 -> 67 | AK178: =Q178/K129 -> 0.02936096718
C179: 外柱2 | E179: de1 | F179: = | G179: max(dse, dbe) | K179: = | L179: =DispFormula(AI179) -> MAX(67,85) | P179: = | Q179: =ROUNDUP(AI179,0) -> 85 | S179: (mm) | W179: de1/ℓ1 | X179: = | Y179: =IFERROR(DispFormula(AK179),"") -> 85/2895 | AB179: = | AC179: =IFERROR("1/"&ROUNDUP(1/AK179,0),"") -> 1/35 | AH179: 2 | AI179: =MAX(AJ179,W173) -> 85 | AJ179: =$AB136 -> 67 | AK179: =Q179/K130 -> 0.02936096718
C180: 中柱1 | E180: de1 | F180: = | G180: max(dse, dbe) | K180: = | L180: =DispFormula(AI180) -> MAX(67,76) | P180: = | Q180: =ROUNDUP(AI180,0) -> 76 | S180: (mm) | W180: de2/ℓ2 | X180: = | Y180: 76/2895 | AB180: = | AC180: 1/39 | AH180: 3 | AI180: =MAX(AJ180,W174) -> 76 | AJ180: =$AB137 -> 67 | AK180: 0.02625215889
C181: 中柱2 | E181: de1 | F181: = | G181: max(dse, dbe) | K181: = | L181: =DispFormula(AI181) -> MAX(67,76) | P181: = | Q181: =ROUNDUP(AI181,0) -> 76 | S181: (mm) | W181: de1/ℓ1 | X181: = | Y181: 76/2895 | AB181: = | AC181: 1/39 | AH181: 4 | AI181: =MAX(AJ181,W175) -> 76 | AJ181: =$AB138 -> 67 | AK181: 0.02625215889
B183: Output③ 柱の最大負担面積の算定（※2階と1階の柱が同じ負担面積であると仮定したときの最大負担面積を算定します。） | AI183: 分布荷重
F184: 2階柱の等分布荷重： | G184: Σω2 | I184: = | J184: W2-4+ω8/2 | P184: = | Q184: =IF($Y184=0,"",DispFormula($AI184)) -> 1068 +350 /2 | X184: = | Y184: =ROUNDUP($AI184,0) -> 1243 | AA184: (N/mm2) | AI184: =$AD$79+$I$40/2 -> 1243
F185: 1階柱の等分布荷重： | G185: Σω1 | I185: = | J185: W2-4+W2-5+ω8*(1+1/2) | P185: = | Q185: =IF($Y185=0,"",DispFormula($AI185)) ->  | X185: = | Y185: =ROUNDUP($AI185,0) ->  | AA185: (N/mm2) | AI185: =$AD$79+#REF!+$I$40*(1+1/2) -> 
B187: 【算定式】 | D187: (100＜λ) | I187: Ae_max | J187: = | K187: (1.1/3*Fc*Ac*100*3000/λ2-Pc*1000)/(Σω+Σωc) | AH187: 行数 | AI187: ― | AJ187: ― | AK187: ― | AL187: ― | AM187: ― | AN187: 7 | AO187: 17 | AR187: 14 | AS187: 15
D188: (30＜λ≦100) | I188: Ae_max | J188: = | K188: {1.1/3*Fc*Ac*100*(1.3-0.01*λ)-Pc*1000}/(Σω+Σωc) | AH188: No | AI188: 採用値 | AJ188: 最大負担面積 | AM188: λ | AN188: Fc | AO188: 柱断面 | AP188: Pc | AQ188: Σω | AR188: 2階ωc | AS188: 1階ωc | AT188: 係数（参考）
D189: (λ≦30) | I189: Ae_max | J189: = | K189: (1.1/3*Fc*Ac*100-Pc*1000)/(Σω+Σωc) | AJ189: (A)λ≦30 | AK189: (B)30＜λ≦100 | AL189: (C)100＜λ | AT189: λ≦30 | AU189: 30＜λ≦100 | AV189: 100＜λ
C190: 2階外柱 | D190: =IF(AC190=0,"",IF($AM190>150,"【有効細長比NG】",IF(AI190="A",$AJ$140,IF(AI190="B",$AK$140,$AL$140)))) ->  | I190: Ae_max2 | J190: = | K190: =IF(AC190=0,"",IF($AI190="A",DispFormula($AJ190),IF($AI190="B",DispFormula($AK190),DispFormula($AL190)))) ->  | AB190: = | AC190: =IF($AI129=FALSE,0,ROUNDDOWN(IF($AI190="A",$AJ190,IF($AI190="B",$AK190,$AL190)),3)) ->  | AE190: (㎡) | AH190: 1 | AI190: =IF(AM190<=30,"A",IF(AM190<=100,"B","C")) -> B | AJ190: =(1.1/3*$AN190*$AO190*100-AP190*1000)/($AQ190+AR190) ->  | AK190: =(1.1/3*$AN190*$AO190*100*(1.3-0.01*$AM190)-$AP190*1000)/($AQ190+AR190) ->  | AL190: =(1.1/3*$AN190*$AO190*100*3000/($AM190^2)-$AP190*1000)/($AQ190+AR190) ->  | AM190: =$J135 -> 95.52 | AN190: =HLOOKUP($AH190,List_柱,AN$187,FALSE) -> 17.7 | AP190: =$W157 -> 3.86 | AQ190: =$Y$184 -> 1243 | AR190: =HLOOKUP($AH190,List_柱,AR$187,FALSE) -> 0 | AS190: 0 | AT190: =1 -> 1 | AU190: =(1.3-0.01*$AM190) -> 0.3448 | AV190: =3000/($AM190^2) -> 0.3288006195
C191: 1階外柱 | D191: =IF(AC191=0,"",IF($AM191>150,"【有効細長比NG】",IF(AI191="A",$AJ$140,IF(AI191="B",$AK$140,$AL$140)))) ->  | I191: Ae_max1 | J191: = | K191: =IF(AC191=0,"",IF($AI191="A",DispFormula($AJ191),IF($AI191="B",DispFormula($AK191),DispFormula($AL191)))) ->  | AB191: = | AC191: =IF($AI130=FALSE,0,ROUNDDOWN(IF($AI191="A",$AJ191,IF($AI191="B",$AK191,$AL191)),3)) ->  | AE191: (㎡) | AH191: 2 | AI191: =IF(AM191<=30,"A",IF(AM191<=100,"B","C")) -> B | AJ191: =(1.1/3*$AN191*$AO191*100-AP191*1000)/($AQ191+AR191+AS191) ->  | AK191: =(1.1/3*$AN191*$AO191*100*(1.3-0.01*$AM191)-$AP191*1000)/($AQ191+AR191+AS191) ->  | AL191: =(1.1/3*$AN191*$AO191*100*3000/($AM191^2)-$AP191*1000)/($AQ191+AR191+AS191) ->  | AM191: =$J136 -> 95.52 | AN191: 17.7 | AP191: =$W158 -> 3.86 | AQ191: =$Y$185 ->  | AR191: 0 | AS191: 0 | AT191: =1 -> 1 | AU191: =(1.3-0.01*$AM191) -> 0.3448 | AV191: =3000/($AM191^2) -> 0.3288006195
C192: 2階中柱 | D192: =IF(AC192=0,"",IF($AM192>150,"【有効細長比NG】",IF(AI192="A",$AJ$140,IF(AI192="B",$AK$140,$AL$140)))) ->  | I192: Ae_max2 | J192: = | K192: =IF(AC192=0,"",IF($AI192="A",DispFormula($AJ192),IF($AI192="B",DispFormula($AK192),DispFormula($AL192)))) ->  | AB192: = | AC192: =IF($AI131=FALSE,0,ROUNDDOWN(IF($AI192="A",$AJ192,IF($AI192="B",$AK192,$AL192)),3)) ->  | AE192: (㎡) | AH192: 3 | AI192: =IF(AM192<=30,"A",IF(AM192<=100,"B","C")) -> B | AJ192: =(1.1/3*$AN192*$AO192*100-AP192*1000)/($AQ192+AR192) ->  | AK192: =(1.1/3*$AN192*$AO192*100*(1.3-0.01*$AM192)-$AP192*1000)/($AQ192+AR192) ->  | AL192: =(1.1/3*$AN192*$AO192*100*3000/($AM192^2)-$AP192*1000)/($AQ192+AR192) ->  | AM192: =$J137 -> 95.52 | AN192: 17.7 | AP192: =$W159 -> 0 | AQ192: =$Y$184 -> 1243 | AR192: 0 | AS192: 0 | AT192: =1 -> 1 | AU192: =(1.3-0.01*$AM192) -> 0.3448 | AV192: =3000/($AM192^2) -> 0.3288006195
C193: 1階中柱 | D193: =IF(AC193=0,"",IF($AM193>150,"【有効細長比NG】",IF(AI193="A",$AJ$140,IF(AI193="B",$AK$140,$AL$140)))) ->  | I193: Ae_max1 | J193: = | K193: =IF(AC193=0,"",IF($AI193="A",DispFormula($AJ193),IF($AI193="B",DispFormula($AK193),DispFormula($AL193)))) ->  | AB193: = | AC193: =IF($AI132=FALSE,0,ROUNDDOWN(IF($AI193="A",$AJ193,IF($AI193="B",$AK193,$AL193)),3)) ->  | AE193: (㎡) | AH193: 4 | AI193: =IF(AM193<=30,"A",IF(AM193<=100,"B","C")) -> B | AJ193: =(1.1/3*$AN193*$AO193*100-AP193*1000)/($AQ193+AR193+AS193) ->  | AK193: =(1.1/3*$AN193*$AO193*100*(1.3-0.01*$AM193)-$AP193*1000)/($AQ193+AR193+AS193) ->  | AL193: =(1.1/3*$AN193*$AO193*100*3000/($AM193^2)-$AP193*1000)/($AQ193+AR193+AS193) ->  | AM193: =$J138 -> 95.52 | AN193: 17.7 | AP193: =$W160 -> 0 | AQ193: =$Y$185 ->  | AR193: 0 | AS193: 0 | AT193: =1 -> 1 | AU193: =(1.3-0.01*$AM193) -> 0.3448 | AV193: =3000/($AM193^2) -> 0.3288006195
B195: Output③ 柱の算定結果一覧
B197: No | C197: 柱種類 | E197: 階 | G197: 柱符号 | I197: 柱短辺 | K197: 基準強度 | M197: 細長比 | O197: 座屈許容応力度 | R197: 圧縮応力度 | U197: 検定比 | W197: 判定 | Y197: 必要最小径
I198: Bc | K198: Fc | M198: λ | O198: Fk | R198: σC | Y198: dse | AA198: dbe | AC198: de | AH198: 行数 | AI198: =MATCH(AI199,$A$107:$A$122,0) -> 3 | AJ198: =MATCH(AJ199,$A$107:$A$122,0) -> 4 | AK198: =MATCH(AK199,$A$107:$A$122,0) -> 5 | AL198: =MATCH(AL199,$A$107:$A$122,0) -> 7
I199: (mm) | K199: (N/mm2) | M199: (―) | O199: (N/mm2) | R199: (N/mm2) | Y199: (mm) | AA199: (mm) | AC199: (mm) | AH199: No | AI199: 要否 | AJ199: 符号 | AK199: 柱短辺 | AL199: Fc
B200: =AH200 -> 1 | C200: =$K$105 -> 外柱 | E200: 1階 | G200: =IF($AI200=TRUE,AJ200,"―") -> C2o | I200: =IF($AI200=TRUE,AK200,"―") -> 105 | K200: =IF($AI200=TRUE,AL200,"―") -> 17.7 | M200: =IF($AI200=TRUE,J135,"―") -> 95.52 | O200: =IF($AI200=TRUE,AB141,"―") -> 2.23 | R200: =IF($AI200=TRUE,P163,"―") -> 0.92 | U200: =IF($AI200=TRUE,AA163,"―") -> 0.42 | W200: =IF($AI200=TRUE,IF(AND(R200>0,O200>=R200,M200<=150),"【OK】","【NG】"),"―") -> 【OK】 | Y200: =IF($AI200=TRUE,AB135,"―") -> 67 | AA200: =IF($AI200=TRUE,W172,"―") -> 85 | AC200: =IF($AI200=TRUE,Q178,"―") -> 85 | AH200: 1 | AI200: =HLOOKUP($AH200,List_柱,AI$198,FALSE) -> TRUE | AJ200: C2o | AK200: 105 | AL200: 17.7
B201: =AH201 -> 2 | C201: =$K$105 -> 外柱 | E201: 1階 | G201: =IF($AI201=TRUE,AJ201,"―") -> C1o | I201: =IF($AI201=TRUE,AK201,"―") -> 105 | K201: =IF($AI201=TRUE,AL201,"―") -> 17.7 | M201: =IF($AI201=TRUE,J136,"―") -> 95.52 | O201: =IF($AI201=TRUE,AB142,"―") -> 2.23 | R201: =IF($AI201=TRUE,P164,"―") -> 0.92 | U201: =IF($AI201=TRUE,AA164,"―") -> 0.42 | W201: =IF($AI201=TRUE,IF(AND(R201>0,O201>=R201,M201<=150),"【OK】","【NG】"),"―") -> 【OK】 | Y201: =IF($AI201=TRUE,AB136,"―") -> 67 | AA201: =IF($AI201=TRUE,W173,"―") -> 85 | AC201: =IF($AI201=TRUE,Q179,"―") -> 85 | AH201: 2 | AI201: TRUE | AJ201: C1o | AK201: 105 | AL201: 17.7
B202: =AH202 -> 3 | C202: =$O$105 -> 中柱 | E202: 1階 | G202: =IF($AI202=TRUE,AJ202,"―") -> C2i | I202: =IF($AI202=TRUE,AK202,"―") -> 105 | K202: =IF($AI202=TRUE,AL202,"―") -> 17.7 | M202: =IF($AI202=TRUE,J137,"―") -> 95.52 | O202: =IF($AI202=TRUE,AB143,"―") -> 2.23 | R202: =IF($AI202=TRUE,P165,"―") -> 0.57 | U202: =IF($AI202=TRUE,AA165,"―") -> 0.26 | W202: 【OK】 | Y202: =IF($AI202=TRUE,AB137,"―") -> 67 | AA202: =IF($AI202=TRUE,W174,"―") -> 76 | AC202: =IF($AI202=TRUE,Q180,"―") -> 76 | AH202: 3 | AI202: TRUE | AJ202: C2i | AK202: 105 | AL202: 17.7
B203: =AH203 -> 4 | C203: =$O$105 -> 中柱 | E203: 1階 | G203: =IF($AI203=TRUE,AJ203,"―") -> C1i | I203: =IF($AI203=TRUE,AK203,"―") -> 105 | K203: =IF($AI203=TRUE,AL203,"―") -> 17.7 | M203: =IF($AI203=TRUE,J138,"―") -> 95.52 | O203: =IF($AI203=TRUE,AB144,"―") -> 2.23 | R203: =IF($AI203=TRUE,P166,"―") -> 0.53 | U203: =IF($AI203=TRUE,AA166,"―") -> 0.24 | W203: 【OK】 | Y203: =IF($AI203=TRUE,AB138,"―") -> 67 | AA203: =IF($AI203=TRUE,W175,"―") -> 76 | AC203: =IF($AI203=TRUE,Q181,"―") -> 76 | AH203: 4 | AI203: TRUE | AJ203: C1i | AK203: 105 | AL203: 17.7
B206: （参考）柱の小径の算定【H12国交告第1349号第1第1項 】 | O206: de = (0.027 + 22.5・Wd／ℓ2)・ℓ | AI206: 生値
C207: 2階柱 | E207: de2 | F207: = | G207: =DispFormula(AI207) -> (0.027+22.5*3.86/2895^2)*2895 | O207: = | P207: =ROUNDUP(AI207,1) -> 78.2 | R207: (mm) | U207: ≦ | V207: =$AP$129 -> 105 | X207: =IF(P207<=V207,"【OK】","【NG】") -> 【OK】 | AI207: =(0.027+22.5*W157/K129^2)*K129 -> 78.195
C208: 1階柱 | E208: de1 | F208: = | G208: =DispFormula(AI208) -> (0.027+22.5*3.86/2895^2)*2895 | O208: = | P208: =ROUNDUP(AI208,1) -> 78.2 | R208: (mm) | U208: ≦ | V208: =$AP$130 -> 105 | X208: =IF(P208<=V208,"【OK】","【NG】") -> 【OK】 | AI208: =(0.027+22.5*W158/K131^2)*K131 -> 78.195

Sheet 荷重表
B1: 【固定荷重】
D2: 【凡例】 （令）：令84条 （※1）：木造軸組工法住宅の許容応力度設計
D3: （※2）：木造住宅の耐震診断と補強方法 （※3）：荷重指針
D5: 【単位重量】 石膏ボード：8.0kN/㎥、 構造用合板：6.0kN/㎥
O7: kN/㎥
B8: 分類 | C8: No | D8: 仕様名 | E8: 構成部材 | F8: （凡例） | G8: 荷重 | H8: 合計 | I8: 丸め値 | M8: 材料 | N8: 厚み | O8: 比重 | P8: 重量 | R8: 備考
G9: (N/㎡) | H9: (N/㎡) | I9: 50 | M9: せっこうボード | N9: 9.5 | O9: 8 | P9: 80 | Q9: N/㎡ | R9: 石膏ボード工業会（γ=0.65～0.90）
P10: =N10*O10 -> 0
B11: 屋根 | C11: 1 | D11: 【標準】 瓦屋根（ふき土無） | E11: 瓦葺き（下地・垂木を含む） | F11: （令） | G11: 640 | H11: =SUM(G11:G15) -> 970 | I11: =IF(H11="","",IF(H11=0,0,IF($I$9=0,H11,CEILING(H11+10,$I$9)))) -> 1000 | M11: せっこうボード | N11: 12.5 | O11: 8 | P11: 100 | Q11: N/㎡ | R11: 石膏ボード工業会（γ=0.65～0.90）
E12: 小屋組（母屋・桁行つなぎ材を含む） | F12: （※1） | G12: 200 | M12: せっこうボード | N12: 15 | O12: 8 | P12: 120 | Q12: N/㎡ | R12: 石膏ボード工業会（γ=0.65～0.90）
E13: 天井吊り材 | F13: （※3） | G13: 50
E14: せっこうボード（t=9.5、γ =8.0） | G14: 80 | M14: 強化せっこうボード | N14: 12.5 | O14: 9 | P14: 120 | Q14: N/㎡ | R14: 石膏ボード工業会（γ=0.75～0.95）
M15: 強化せっこうボード | N15: 15 | O15: 9 | P15: 120 | Q15: N/㎡ | R15: 石膏ボード工業会（γ=0.75～0.95）
I16: =IF(H16="","",IF(H16=0,0,IF($I$9=0,H16,CEILING(H16+10,$I$9)))) -> 
C17: 2 | D17: 【標準】 スレート屋根 | E17: 厚型スレート葺き（下地・垂木を含む） | F17: （令） | G17: 440 | H17: =SUM(G17:G21) -> 770 | I17: =IF(H17="","",IF(H17=0,0,IF($I$9=0,H17,CEILING(H17+10,$I$9)))) -> 800 | M17: 構造用合板 | N17: 9 | O17: 7 | P17: 70 | Q17: N/㎡ | R17: γ=6.0～7.0程度
E18: 小屋組（母屋・桁行つなぎ材を含む） | F18: （※1） | G18: 200 | M18: 構造用合板 | N18: 12 | O18: 7 | P18: 90 | Q18: N/㎡ | R18: γ=6.0～7.0程度
E19: 天井吊り材 | F19: （※3） | G19: 50
E20: せっこうボード（t=9.5、γ =8.0） | G20: 80 | M20: 窯業系サイディング | P20: 200 | Q20: N/㎡
M21: 金属系サイディング | P21: 50 | Q21: N/㎡
C23: 3 | D23: 【標準】 金属板ぶき | E23: 鉄板かわら棒葺き（下地・垂木を含む） | F23: （令） | G23: 200 | H23: =SUM(G23:G27) -> 530 | I23: =IF(H23="","",IF(H23=0,0,IF($I$9=0,H23,CEILING(H23+10,$I$9)))) -> 550 | M23: 外壁タイル | P23: 300 | Q23: N/㎡
E24: 小屋組（母屋・桁行つなぎ材を含む） | F24: （※1） | G24: 200 | M24: 根太 | O24: 4 | P24: 40 | Q24: N/㎡ | R24: 45mm x 60mm x 4kN/㎥ / @300 =36
E25: 天井吊り材 | F25: （※3） | G25: 50
E26: せっこうボード（t=9.5、γ =8.0） | G26: 80 | M26: 野地板 | N26: 12 | O26: 6 | P26: 80 | Q26: N/㎡
M27: 垂木 | O27: 4 | P27: 30 | Q27: N/㎡ | R27: 45mm x 45mm x 4kN/㎥ / @300 =30
C29: 4 | D29: 【45分準耐】 瓦屋根（ふき土無） | E29: 瓦葺き（下地・垂木を含む） | F29: （令） | G29: 640 | H29: =SUM(G29:G33) -> 1050 | I29: =IF(H29="","",IF(H29=0,0,IF($I$9=0,H29,CEILING(H29+10,$I$9)))) -> 1100 | M29: スレート | P29: 200 | Q29: N/㎡
E30: 小屋組（母屋・桁行つなぎ材を含む） | F30: （※1） | G30: 200 | M30: ケイ酸カルシウム板 | N30: 12 | O30: 10 | P30: 120 | Q30: N/㎡ | R30: チヨダセラ（γ=0.8と1.0の商品有）
E31: 天井吊り材 | F31: （※3） | G31: 50
E32: せっこうボード（t=9.5x2、γ =8.0） | G32: 160
C35: 5 | D35: 【45分準耐】 スレート屋根 | E35: 厚型スレート葺き（下地・垂木を含む） | F35: （令） | G35: 440 | H35: =SUM(G35:G39) -> 850 | I35: =IF(H35="","",IF(H35=0,0,IF($I$9=0,H35,CEILING(H35+10,$I$9)))) -> 900 | M35: （※1）ではスレート葺き（下地・垂木を含む）：340N/㎡
E36: 小屋組（母屋・桁行つなぎ材を含む） | F36: （※1） | G36: 200
E37: 天井吊り材 | F37: （※3） | G37: 50
E38: せっこうボード（t=9.5x2、γ =8.0） | G38: 160
C41: 6 | D41: 【45分準耐】 金属板ぶき | E41: 鉄板かわら棒葺き（下地・垂木を含む） | F41: （令） | G41: 200 | H41: =SUM(G41:G45) -> 610 | I41: 650
E42: 小屋組（母屋・桁行つなぎ材を含む） | F42: （※1） | G42: 200
E43: 天井吊り材 | F43: （※3） | G43: 50
E44: せっこうボード（t=9.5x2、γ =8.0） | G44: 160
C47: 7 | D47: 【任意仕様1】 | H47: =SUM(G47:G51) -> 0 | I47: 0
B54: 分類 | C54: No | D54: 仕様名 | E54: 構成部材 | G54: 荷重 | H54: 合計 | I54: 丸め値
G55: (N/㎡) | H55: (N/㎡)
B57: 床 | C57: 11 | D57: 【標準】 居室 （板張り） | E57: 板張り（根太を含む） | F57: （令） | G57: 150 | H57: =SUM(G57:G61) -> 450 | I57: =IF(H57="","",IF(H57=0,0,IF($I$9=0,H57,CEILING(H57+10,$I$9)))) -> 500
E58: 床ばり（スパン6m以下） | F58: （令） | G58: 170
E59: 天井吊り材 | F59: （※3） | G59: 50
E60: せっこうボード（t=9.5、γ =8.0） | G60: 80
I62: =IF(H62="","",IF(H62=0,0,IF($I$9=0,H62,CEILING(H62+10,$I$9)))) -> 
C63: 12 | D63: 【標準】 居室 （板張り+畳敷き） | E63: 板張り+畳敷き（5：5の加重平均） | G63: 245 | H63: =SUM(G63:G67) -> 545 | I63: =IF(H63="","",IF(H63=0,0,IF($I$9=0,H63,CEILING(H63+10,$I$9)))) -> 600
E64: 床ばり（スパン6m以下） | F64: （令） | G64: 170
E65: 天井吊り材 | F65: （※3） | G65: 50
E66: せっこうボード（t=9.5、γ =8.0） | G66: 80
C69: 13 | D69: 【標準】 居室 （畳敷き） | E69: 畳敷き | F69: （令） | G69: 340 | H69: =SUM(G69:G73) -> 640 | I69: =IF(H69="","",IF(H69=0,0,IF($I$9=0,H69,CEILING(H69+10,$I$9)))) -> 650
E70: 床ばり（スパン6m以下） | F70: （令） | G70: 170
E71: 天井吊り材 | F71: （※3） | G71: 50
E72: せっこうボード（t=9.5、γ =8.0） | G72: 80
C75: 14 | D75: 【45分準耐】 居室（板張り） | E75: フローリング（t=12.0、γ =7.0） | F75: （※3） | G75: 90 | H75: =SUM(G75:G80) -> 620 | I75: =IF(H75="","",IF(H75=0,0,IF($I$9=0,H75,CEILING(H75+10,$I$9)))) -> 650
E76: 構造用合板（t=24.0）（根太無し） | G76: 150
E77: 床ばり（スパン6m以下） | F77: （令） | G77: 170
E78: 天井吊り材 | F78: （※3） | G78: 50
E79: せっこうボード（t=9.5x2、γ =8.0） | G79: 160
C82: 15 | D82: 【任意仕様2】 | H82: =SUM(G82:G87) -> 0 | I82: =IF(H82="","",IF(H82=0,0,IF($I$9=0,H82,CEILING(H82+10,$I$9)))) -> 0
B91: その他 | C91: 21 | D91: バルコニー | E91: 防水材 | G91: 100 | H91: =SUM(G91:G95) -> 670 | I91: =IF(H91="","",IF(H91=0,0,IF($I$9=0,H91,CEILING(H91+10,$I$9)))) -> 700
E92: 構造用合板（t=12x2）（下地・根太を含む） | G92: 250
E93: 床ばり（スパン6m以下） | F93: （令） | G93: 170
E94: 軒天井（合板又はせっこうボード）（下地を含む） | F94: （令） | G94: 150
I96: =IF(H96="","",IF(H96=0,0,IF($I$9=0,H96,CEILING(H96+10,$I$9)))) -> 
C97: 22 | D97: 小規模な小屋裏物置 （床下・天井裏） | E97: 床補強 | G97: 250 | H97: =SUM(G97:G98) -> 250 | I97: 300
C100: 23 | D100: ロフト | E100: 板張り（根太を含む） | F100: （令） | G100: 150 | H100: =SUM(G100:G103) -> 400 | I100: 450
E101: 床ばり（スパン4m以下） | F101: （令） | G101: 100
E102: 天井（合板又はせっこうボード）（下地を含む） | F102: （令） | G102: 150
C105: 24 | D105: 【任意仕様3】 | H105: =SUM(G105:G109) -> 0 | I105: 0
C111: 25 | D111: 【任意仕様4】 | H111: =SUM(G111:G114) -> 0 | I111: 0
C116: 26 | D116: 【任意仕様5】 | H116: =SUM(G116:G119) -> 0 | I116: 0
B122: 分類 | C122: No | D122: 仕様名 | E122: 構成部材 | G122: 荷重 | H122: 合計 | I122: 丸め値
G123: (N/㎡) | H123: (N/㎡)
B125: 外壁 | C125: 31 | D125: 【標準】 土塗り壁等 | E125: 土塗り壁（上塗りとも、厚6.5㎜） | G125: 850 | H125: =SUM(G125:G127) -> 1000 | I125: =IF(H125="","",IF(H125=0,0,IF($I$9=0,H125,CEILING(H125+10,$I$9)))) -> 1050
E126: 軸組（柱・間柱・筋交いを含む） | F126: （令） | G126: 150
C129: 32 | D129: 【標準】 モルタル等 | E129: モルタル壁 | F129: （令） | G129: 640 | H129: =SUM(G129:G132) -> 890 | I129: 900
E130: 軸組（柱・間柱・筋交いを含む） | F130: （令） | G130: 150
E131: せっこうボード | G131: 100
C134: 33 | D134: 【標準】 窯業系サイディング | E134: 窯業系サイディング | G134: 350 | H134: =SUM(G134:G137) -> 600 | I134: 650
E135: 軸組（柱・間柱・筋交いを含む） | F135: （令） | G135: 150
E136: せっこうボード | G136: 100
C139: 34 | D139: 【標準】 金属板張 | E139: 金属板張 | G139: 250 | H139: =SUM(G139:G142) -> 500 | I139: 550
E140: 軸組（柱・間柱・筋交いを含む） | F140: （令） | G140: 150
E141: せっこうボード | G141: 100
C144: 35 | D144: 【標準】 下見板張 | E144: 下見板張り | F144: （令） | G144: 100 | H144: =SUM(G144:G147) -> 350 | I144: 400
E145: 軸組（柱・間柱・筋交いを含む） | F145: （令） | G145: 150
E146: せっこうボード | G146: 100
C149: 36 | D149: 【45分準耐】 窯業系サイディング | E149: 窯業系サイディング（下地を含む） | G149: 350 | H149: =SUM(G149:G152) -> 680 | I149: 700
E150: 軸組（柱・間柱・筋交いを含む） | F150: （令） | G150: 150
E151: せっこうボード（t=9.5+12.5、γ =8.0） | G151: 180
C154: 37 | D154: 【45分準耐】 金属板張 | E154: 金属板張又は金属系サイディング | G154: 50 | H154: =SUM(G154:G158) -> 480 | I154: 500
E155: せっこうボード（t=12.5、γ =8.0） | G155: 100
E156: 軸組（柱・間柱・筋交いを含む） | F156: （令） | G156: 150
E157: せっこうボード（t=9.5+12.5、γ =8.0） | G157: 180
C160: 38 | D160: 【任意仕様6】 | H160: =SUM(G160:G164) -> 0 | I160: 0
B168: 内壁 | C168: 41 | D168: せっこうボード （床面積1㎡当たり） | E168: せっこうボード（床面積当たりの重量） | G168: 350 | H168: =SUM(G168) -> 350 | I168: ―
C169: 42 | D169: 【任意仕様7】 | H169: =G169 -> 0 | I169: ―
B171: 開口部 | C171: 43 | D171: トリプルガラス樹脂 | E171: トリプルガラス樹脂 | G171: 400 | H171: =G171 -> 400 | I171: ―
C172: 44 | D172: ペアガラス樹脂 | E172: ペアガラス樹脂 | G172: 320 | H172: =G172 -> 320 | I172: ―
C173: 45 | D173: ペアガラス樹脂 アルミ複合 | E173: ペアガラス樹脂アルミ複合 | G173: 250 | H173: =G173 -> 250 | I173: ―
C174: 46 | D174: 【任意仕様8】 | H174: =G174 -> 0 | I174: ―
B176: 断熱 | C176: 47 | D176: 天井断熱 | E176: GW24K（24kg/㎥）400㎜ | G176: 100 | H176: =SUM(G176:G177) -> 100 | I176: ―
C179: 48 | D179: 壁断熱材 | E179: GW24K（24kg/㎥）170㎜ | G179: 40 | H179: =SUM(G179:G181) -> 70 | I179: ―
E180: 胴縁 | G180: 30
C183: 49 | D183: 【任意仕様9】 | H183: =SUM(G183:G185) -> 0 | I183: ―

Sheet 更新履歴
A1: 日付 | B1: Ver | C1: 備考
A2: 2025-12-08 | B2: 1 | C2: ホームページ公開用

Sheet 許容応力度 (hidden)
I1: H12年建告第1452号
I2: 一 製材の日本農林規格（平成19年農林水産省告示第1083号）に適合する構造用製材（ただし、円柱類にあってはすぎ、からまつ及びひのきに限る。）の目視等級区分によるもの
B3: 区分 | C3: 目視等級区分 | G3: 検索用 | H3: 検索用 | I3: 樹種 | J3: 基準強度
C4: 樹種 | D4: 等級 | J4: No | K4: 等級 | L4: Fc
B5: 目視等級区分 | C5: あかまつ | D5: 一級 | G5: =J5&K5 -> 1一級 | H5: =IF(I5="","",$B$5&"_"&I5) -> 目視等級区分_あかまつ | I5: あかまつ | J5: 1 | K5: 一級 | L5: 27
B6: 機械等級区分 | C6: べいまつ | D6: 二級 | G6: =J6&K6 -> 1二級 | H6: =IF(I6="","",$B$5&"_"&I6) ->  | J6: 1 | K6: 二級 | L6: 16.8
B7: 無等級材 | C7: からまつ | D7: 三級 | G7: 1三級 | J7: 1 | K7: 三級 | L7: 11.4
B8: 同一等級構成集成材 | C8: ダフリカからまつ | G8: 2一級 | H8: 目視等級区分_べいまつ | I8: べいまつ | J8: =J5+1 -> 2 | K8: 一級 | L8: 27
B9: Ａ種構造用単板積層材 | C9: ひば | G9: 2二級 | J9: =J6+1 -> 2 | K9: 二級 | L9: 18
B10: 対称異等級構成集成材 | C10: ひのき | G10: 2三級 | J10: 2 | K10: 三級 | L10: 13.8
C11: べいつが | G11: 3一級 | H11: 目視等級区分_からまつ | I11: からまつ | J11: 3 | K11: 一級 | L11: 23.4
C12: えぞまつ | G12: 3二級 | J12: 3 | K12: 二級 | L12: 20.4
C13: とどまつ | G13: 3三級 | J13: 3 | K13: 三級 | L13: 18.6
C14: すぎ | G14: 4一級 | H14: 目視等級区分_ダフリカからまつ | I14: ダフリカからまつ | J14: 4 | K14: 一級 | L14: 28.8
G15: 4二級 | J15: 4 | K15: 二級 | L15: 25.2
G16: 4三級 | J16: 4 | K16: 三級 | L16: 22.2
G17: 5一級 | H17: 目視等級区分_ひば | I17: ひば | J17: 5 | K17: 一級 | L17: 28.2
G18: 5二級 | J18: 5 | K18: 二級 | L18: 27.6
G19: 5三級 | J19: 5 | K19: 三級 | L19: 23.4
G20: 6一級 | H20: 目視等級区分_ひのき | I20: ひのき | J20: 6 | K20: 一級 | L20: 30.6
G21: 6二級 | J21: 6 | K21: 二級 | L21: 27
G22: 6三級 | J22: 6 | K22: 三級 | L22: 23.4
G23: 7一級 | H23: 目視等級区分_べいつが | I23: べいつが | J23: 7 | K23: 一級 | L23: 21
G24: 7二級 | J24: 7 | K24: 二級 | L24: 21
G25: 7三級 | J25: 7 | K25: 三級 | L25: 17.4
G26: 8一級 | H26: 目視等級区分_えぞまつ | I26: えぞまつ | J26: 8 | K26: 一級 | L26: 27
G27: 8二級 | H27: 目視等級区分_とどまつ | I27: とどまつ | J27: 8 | K27: 二級 | L27: 22.8
G28: 8三級 | J28: 8 | K28: 三級 | L28: 13.8
G29: 9一級 | H29: 目視等級区分_すぎ | I29: すぎ | J29: 9 | K29: 一級 | L29: 21.6
G30: 9二級 | J30: 9 | K30: 二級 | L30: 20.4
G31: 9三級 | J31: 9 | K31: 三級 | L31: 18
I33: 二 製材の日本農林規格に適合する構造用製材（ただし、円柱類にあってはすぎ、からまつ及びひのきに限る。）の機械等級区分によるもの
C34: 機械等級区分 | G34: 検索用 | H34: 検索用 | I34: 樹種 | J34: 基準強度
C35: 樹種 | D35: 等級 | J35: No | K35: 等級 | L35: Fc
C36: あかまつ | D36: E50 | G36: =J36&K36 -> 11E70 | H36: =IF(I36="","",$B$6&"_"&I36) -> 機械等級区分_あかまつ | I36: あかまつ | J36: 11 | K36: E70 | L36: 9.6 | N36: あかまつ べいまつ ダフリカからまつ べいつが えぞまつ とどまつ
C37: べいまつ | D37: E70 | G37: =J37&K37 -> 11E90 | H37: =IF(I37="","",$B$6&"_"&I37) -> 機械等級区分_べいまつ | I37: べいまつ | J37: 11 | K37: E90 | L37: 16.8
C38: ダフリカからまつ | D38: E90 | G38: 11E110 | H38: 機械等級区分_ダフリカからまつ | I38: ダフリカからまつ | J38: 11 | K38: E110 | L38: 24.6
C39: べいつが | D39: E110 | G39: 11E130 | H39: 機械等級区分_べいつが | I39: べいつが | J39: 11 | K39: E130 | L39: 31.8
C40: えぞまつ | D40: E130 | G40: 11E150 | H40: 機械等級区分_えぞまつ | I40: えぞまつ | J40: 11 | K40: E150 | L40: 39
C41: とどまつ | D41: E150 | G41: 11― | H41: 機械等級区分_とどまつ | I41: とどまつ | J41: 11 | K41: ― | L41: ―
C42: からまつ | G42: 12E50 | H42: 機械等級区分_からまつ | I42: からまつ | J42: 12 | K42: E50 | L42: 11.4 | N42: からまつ ひのき ひば
C43: ひのき | G43: 12E70 | H43: 機械等級区分_ひのき | I43: ひのき | J43: 12 | K43: E70 | L43: 18
C44: ひば | G44: 12E90 | H44: 機械等級区分_ひば | I44: ひば | J44: 12 | K44: E90 | L44: 24.6
C45: すぎ | G45: 12E110 | J45: 12 | K45: E110 | L45: 31.2
G46: 12E130 | J46: 12 | K46: E130 | L46: 37.8
G47: 12E150 | J47: 12 | K47: E150 | L47: 44.4
G48: 13E50 | H48: 機械等級区分_すぎ | I48: すぎ | J48: 13 | K48: E50 | L48: 19.2
G49: 13E70 | J49: 13 | K49: E70 | L49: 23.4
G50: 13E90 | J50: 13 | K50: E90 | L50: 28.2
G51: =J51&K51 -> 13E110 | J51: 13 | K51: E110 | L51: 32.4
G52: 13E130 | J52: 13 | K52: E130 | L52: 37.2
G53: 13E150 | J53: 13 | K53: E150 | L53: 41.4
I55: 五 無等級材（日本農林規格に定められていない木材をいう。）
C56: 無等級材 | G56: 検索用 | H56: 検索用 | I56: 樹種 | J56: 基準強度
C57: 樹種 | D57: 等級 | J57: No | K57: ― | L57: Fc
C58: あかまつ | D58: ― | G58: =J58&K58 -> 21― | H58: =IF(I58="",22,$B$7&"_"&I58) -> 無等級材_あかまつ | I58: あかまつ | J58: 21 | K58: ― | L58: 22.2 | N58: あかまつ くろまつ べいまつ
C59: くろまつ | H59: =IF(I59="",22,$B$7&"_"&I59) -> 無等級材_くろまつ | I59: くろまつ | J59: 21
C60: べいまつ | H60: 無等級材_べいまつ | I60: べいまつ | J60: 21
C61: からまつ | G61: 22― | H61: 無等級材_からまつ | I61: からまつ | J61: 22 | K61: ― | L61: 20.7 | N61: からまつ ひば ひのき べいひ べいひば
C62: ひば | H62: 無等級材_ひば | I62: ひば | J62: 22
C63: ひのき | H63: 無等級材_ひのき | I63: ひのき | J63: 22
C64: べいひ | H64: 無等級材_べいひ | I64: べいひ | J64: 22
C65: べいひば | H65: 無等級材_べいひば | I65: べいひば | J65: 22
C66: つが | G66: 23― | H66: 無等級材_つが | I66: つが | J66: 23 | K66: ― | L66: 19.2 | N66: つが べいつが
C67: べいつが | H67: 無等級材_べいつが | I67: べいつが | J67: 23
C68: もみ | G68: 24― | H68: 無等級材_もみ | I68: もみ | J68: 24 | K68: ― | L68: 17.7 | N68: もみ えぞまつ とどまつ べにまつ すぎ べいすぎ スプルース
C69: えぞまつ | H69: 無等級材_えぞまつ | I69: えぞまつ | J69: 24
C70: とどまつ | H70: 無等級材_とどまつ | I70: とどまつ | J70: 24
C71: べにまつ | H71: 無等級材_べにまつ | I71: べにまつ | J71: 24
C72: すぎ | H72: 無等級材_すぎ | I72: すぎ | J72: 24
C73: べいすぎ | H73: 無等級材_べいすぎ | I73: べいすぎ | J73: 24
C74: スプルース | H74: 無等級材_スプルース | I74: スプルース | J74: 24
C75: かし | G75: 25― | H75: 無等級材_かし | I75: かし | J75: 25 | K75: ― | L75: 27 | N75: かし
C76: くり | G76: 26― | H76: 無等級材_くり | I76: くり | J76: 26 | K76: ― | L76: 21 | N76: くり なら ぶな けやき
C77: なら | H77: 無等級材_なら | I77: なら | J77: 26
C78: ぶな | H78: 無等級材_ぶな | I78: ぶな | J78: 26
C79: けやき | H79: 無等級材_けやき | I79: けやき | J79: 26
I81: 平成13年6月12日国土交通省告示第1024号(2) 特殊な許容応力度及び特殊な材料強度を定める件(2)
I82: 表四 同一等級構成集成材の圧縮、引張り及び曲げの基準強度
C83: 同一等級構成集成材 | G83: 検索用 | H83: 検索用 | I83: ひき板の 積層数 | J83: 基準強度 | M83: Ft | N83: Fb
C84: ひき板積層数 | D84: 等級 | J84: No | K84: 強度等級 | L84: Fc | O84: （それぞれ数値に、集成材の厚さ方向の辺長（単位 ミリメートル）が対応する集成材規格第5条表26（等級が同じひき板で構成された内層特殊構成集成材にあっては表33）の左欄の区分に応じて、同表右欄に掲げる数値を乗じたものとする。）
C85: 4層以上 | D85: E190－F615 | G85: =J85&K85 -> 31E190－F615 | H85: =IF(I85="","",$B$8&"_"&I85) -> 同一等級構成集成材_4層以上 | I85: 4層以上 | J85: 31 | K85: E190－F615 | L85: 50.3 | M85: 43.9 | N85: 61.5
C86: 3層 | D86: E170－F540 | G86: =J86&K86 -> 31E170－F540 | H86: =IF(I86="","",$B$8&"_"&I86) ->  | J86: 31 | K86: E170－F540 | L86: 44.6 | M86: 38.9 | N86: 54
C87: 2層 | D87: E150－F465 | G87: 31E150－F465 | J87: 31 | K87: E150－F465 | L87: 39.2 | M87: 34.2 | N87: 46.5
D88: E135－F405 | G88: 31E135－F405 | J88: 31 | K88: E135－F405 | L88: 33.4 | M88: 29.2 | N88: 40.5
D89: E120－F375 | G89: 31E120－F375 | J89: 31 | K89: E120－F375 | L89: 30.1 | M89: 26.3 | N89: 37.5
D90: E105－F345 | G90: 31E105－F345 | J90: 31 | K90: E105－F345 | L90: 28.1 | M90: 24.5 | N90: 34.5
D91: E95－F315 | G91: 31E95－F315 | J91: 31 | K91: E95－F315 | L91: 26 | M91: 22.7 | N91: 31.5
D92: E85－F300 | G92: 31E85－F300 | J92: 31 | K92: E85－F300 | L92: 24.3 | M92: 21.2 | N92: 30
D93: E75－F270 | G93: 31E75－F270 | J93: 31 | K93: E75－F270 | L93: 22.3 | M93: 19.4 | N93: 27
D94: E35－F255 | G94: 31E35－F255 | J94: 31 | K94: E35－F255 | L94: 20.6 | M94: 18 | N94: 25.5
D95: E55－F225 | G95: 31E55－F225 | J95: 31 | K95: E55－F225 | L95: 18.6 | M95: 16.2 | N95: 22.5
D96: E190－F555 | G96: 32E190－F555 | H96: 同一等級構成集成材_3層 | I96: 3層 | J96: 32 | K96: E190－F555 | L96: 45.8 | M96: 40.3 | N96: 55.5
D97: E170－F495 | G97: 32E170－F495 | J97: 32 | K97: E170－F495 | L97: 40.5 | M97: 35.6 | N97: 49.5
D98: E150－F435 | G98: 32E150－F435 | J98: 32 | K98: E150－F435 | L98: 35.6 | M98: 31.4 | N98: 43.5
D99: E135－F375 | G99: 32E135－F375 | J99: 32 | K99: E135－F375 | L99: 30.4 | M99: 26.7 | N99: 37.5
D100: E120－F330 | G100: 32E120－F330 | J100: 32 | K100: E120－F330 | L100: 27.4 | M100: 24.1 | N100: 33
D101: E105－F300 | G101: 32E105－F300 | J101: 32 | K101: E105－F300 | L101: 25.5 | M101: 22.4 | N101: 30
D102: E95－F285 | G102: 32E95－F285 | J102: 32 | K102: E95－F285 | L102: 23.6 | M102: 20.8 | N102: 18.5
D103: E85－F270 | G103: 32E85－F270 | J103: 32 | K103: E85－F270 | L103: 22.1 | M103: 19.5 | N103: 27
D104: E75－F255 | G104: 32E75－F255 | J104: 32 | K104: E75－F255 | L104: 20.3 | M104: 17.8 | N104: 25.5
D105: E65－F240 | G105: 32E65－F240 | J105: 32 | K105: E65－F240 | L105: 18.8 | M105: 16.5 | N105: 24
D106: E55－F225 | G106: 32E55－F225 | J106: 32 | K106: E55－F225 | L106: 16.9 | M106: 14.9 | N106: 22.5
D107: E190－F510 | G107: 33E190－F510 | H107: 同一等級構成集成材_2層 | I107: 2層 | J107: 33 | K107: E190－F510 | L107: 45.8 | M107: 36.6 | N107: 51
D108: E170－F450 | G108: 33E170－F450 | J108: 33 | K108: E170－F450 | L108: 40.5 | M108: 32.4 | N108: 45
D109: E150－F390 | G109: 33E150－F390 | J109: 33 | K109: E150－F390 | L109: 35.6 | M109: 28.5 | N109: 39
D110: E135－F345 | G110: 33E135－F345 | J110: 33 | K110: E135－F345 | L110: 30.4 | M110: 24.3 | N110: 34.5
D111: E120－F300 | G111: 33E120－F300 | J111: 33 | K111: E120－F300 | L111: 27.4 | M111: 21.9 | N111: 30
D112: E105－F285 | G112: 33E105－F285 | J112: 33 | K112: E105－F285 | L112: 25.5 | M112: 20.4 | N112: 28.5
D113: E95－F270 | G113: 33E95－F270 | J113: 33 | K113: E95－F270 | L113: 23.6 | M113: 18.9 | N113: 27
D114: E85－F255 | G114: 33E85－F255 | J114: 33 | K114: E85－F255 | L114: 22.1 | M114: 17.7 | N114: 25.5
D115: E75－F240 | G115: 33E75－F240 | J115: 33 | K115: E75－F240 | L115: 20.3 | M115: 16.2 | N115: 24
D116: E65－F225 | G116: 33E65－F225 | J116: 33 | K116: E65－F225 | L116: 18.8 | M116: 15 | N116: 22.5
D117: E55－F200 | G117: 33E55－F200 | J117: 33 | K117: E55－F200 | L117: 16.9 | M117: 13.5 | N117: 20
I119: 表六 Ａ種構造用単板積層材の圧縮、引張り及び曲げの基準強度
C120: Ａ種構造用単板積層材 | G120: 検索用 | H120: 検索用 | I120: 曲げヤング 係数区分 | J120: 基準強度
C121: 曲げヤング係区分 | D121: 等級 | J121: No | K121: 等級 | L121: 圧縮基準強度Fc（N/mm２）
C122: 180E | D122: 特級 | G122: =J122&K122 -> 41特級 | H122: =IF(I122="","",$B$9&"_"&I122) -> Ａ種構造用単板積層材_180E | I122: 180E | J122: 41 | K122: 特級 | L122: 46.8
C123: 160E | D123: 一級 | G123: =J123&K123 -> 41一級 | H123: =IF(I123="","",$B$9&"_"&I123) ->  | J123: 41 | K123: 一級 | L123: 45
C124: 140E | D124: 二級 | G124: 41二級 | J124: 41 | K124: 二級 | L124: 42
C125: 120E | G125: 42特級 | H125: Ａ種構造用単板積層材_160E | I125: 160E | J125: =J122+1 -> 42 | K125: 特級 | L125: 41.4
C126: 110E | G126: 42一級 | J126: =J123+1 -> 42 | K126: 一級 | L126: 40.2
C127: 100E | G127: 42二級 | J127: 42 | K127: 二級 | L127: 37.2
C128: 90E | G128: 43特級 | H128: Ａ種構造用単板積層材_140E | I128: 140E | J128: 43 | K128: 特級 | L128: 36
C129: 80E | G129: 43一級 | J129: 43 | K129: 一級 | L129: 34.8
C130: 70E | G130: 43二級 | J130: 43 | K130: 二級 | L130: 32.4
C131: 60E | G131: 44特級 | H131: Ａ種構造用単板積層材_120E | I131: 120E | J131: 44 | K131: 特級 | L131: 31.2
C132: 50E | G132: 44一級 | J132: 44 | K132: 一級 | L132: 30
G133: 44二級 | J133: 44 | K133: 二級 | L133: 27.6
G134: 45特級 | H134: Ａ種構造用単板積層材_110E | I134: 110E | J134: 45 | K134: 特級 | L134: 28.2
G135: 45一級 | J135: 45 | K135: 一級 | L135: 27
G136: 45二級 | J136: 45 | K136: 二級 | L136: 25.8
G137: 46特級 | H137: Ａ種構造用単板積層材_100E | I137: 100E | J137: 46 | K137: 特級 | L137: 25.8
G138: 46一級 | J138: 46 | K138: 一級 | L138: 25.2
G139: 46二級 | J139: 46 | K139: 二級 | L139: 23.4
G140: 47特級 | H140: Ａ種構造用単板積層材_90E | I140: 90E | J140: 47 | K140: 特級 | L140: 23.4
G141: 47一級 | J141: 47 | K141: 一級 | L141: 22.8
G142: 47二級 | J142: 47 | K142: 二級 | L142: 21
G143: 48特級 | H143: Ａ種構造用単板積層材_80E | I143: 80E | J143: 48 | K143: 特級 | L143: 21
G144: 48一級 | J144: 48 | K144: 一級 | L144: 19.8
G145: 48二級 | J145: 48 | K145: 二級 | L145: 18.6
G146: 49特級 | H146: Ａ種構造用単板積層材_70E | I146: 70E | J146: 49 | K146: 特級 | L146: 18
G147: 49一級 | J147: 49 | K147: 一級 | L147: 17.4
G148: 49二級 | J148: 49 | K148: 二級 | L148: 16.2
G149: 50特級 | H149: Ａ種構造用単板積層材_60E | I149: 60E | J149: 50 | K149: 特級 | L149: 15.6
G150: 50一級 | J150: 50 | K150: 一級 | L150: 15
G151: 50二級 | J151: 50 | K151: 二級 | L151: 13.8
G152: 51特級 | H152: Ａ種構造用単板積層材_50E | I152: 50E | J152: 51 | K152: 特級 | L152: 12.7
G153: 51一級 | J153: 51 | K153: 一級 | L153: 12.3
G154: 51二級 | J154: 51 | K154: 二級 | L154: 11.1
I156: 表一 対称異等級構成集成材（特定対称異等級構成集成材を除く。）
C157: 対称異等級構成集成材 | G157: 検索用 | H157: 検索用 | I157: 区分 | J157: 基準強度 | M157: Ft | N157: Fb | Q157: 積層方向（それぞれの数値に、集成材の厚さ方向の辺長（単位 ミリメートル）が対応する集成材規格第5条表18（等級が異なるひき板で構成された内層特殊構成集成材にあっては表32）の左欄の区分に応じて、同表右欄に掲げる数値を乗じたものとする。）
C158: 区分 | D158: 強度等級 | J158: No | K158: 強度等級 | L158: Fc | N158: 積層方向 | O158: 幅方向
C159: ― | D159: E170－F495 | G159: =J159&K159 -> 61E170－F495 | H159: =IF(I159="","",$B$10&"_"&I159) -> 対称異等級構成集成材_― | I159: ― | J159: 61 | K159: E170－F495 | L159: 38.4 | M159: 33.5 | N159: 49.5 | O159: 35.4
D160: E150－F435 | G160: =J160&K160 -> 61E150－F435 | H160: =IF(I160="","",$B$10&"_"&I160) ->  | J160: 61 | K160: E150－F435 | L160: 33.4 | M160: 29.2 | N160: 43.5 | O160: 3.6
D161: E135－F375 | G161: 61E135－F375 | J161: 61 | K161: E135－F375 | L161: 29.7 | M161: 25.9 | N161: 37.5 | O161: 27.6
D162: E120－F330 | G162: 61E120－F330 | J162: 61 | K162: E120－F330 | L162: 25.9 | M162: 22.4 | N162: 33 | O162: 24
D163: E105－F300 | G163: 61E105－F300 | J163: 61 | K163: E105－F300 | L163: 23.2 | M163: 20.2 | N163: 30 | O163: 21.6
D164: E95－F270 | G164: 61E95－F270 | J164: 61 | K164: E95－F270 | L164: 21.7 | M164: 18.9 | N164: 27 | O164: 20.4
D165: E85－F255 | G165: 61E85－F255 | J165: 61 | K165: E85－F255 | L165: 19.5 | M165: 17 | N165: 25.5 | O165: 18
D166: E75－F240 | G166: 61E75－F240 | J166: 61 | K166: E75－F240 | L166: 17.6 | M166: 15.3 | N166: 24 | O166: 15.6
D167: E65－F225 | G167: 61E65－F225 | J167: 61 | K167: E65－F225 | L167: 16.7 | M167: 14.6 | N167: 22.5 | O167: 15
D168: E65－F220 | G168: 61E65－F220 | J168: 61 | K168: E65－F220 | L168: 15.3 | M168: 13.4 | N168: 22 | O168: 12.6
D169: E55－F200 | G169: 61E55－F200 | J169: 61 | K169: E55－F200 | L169: 13.3 | M169: 11.6 | N169: 20 | O169: 10.2
